Workbook

Sheet Правила расчёта
A2: Рейтинг трассы (сложность) | B2: =Y+X/100
A3: Расстояние, км | B3: Y
A4: Набор высоты, м | B4: X
A5: Количество пунктов питания | B5: Z
A7: Средний интервал между пунктами питания (к-т автономности) | B7: =(Y+X/100)/Z
A9: Штраф за автономность
A10: Коэф-т автономности | B10: 13 и более | C10: 11 - 12 | D10: 9 - 10 | E10: 7 - 8 | F10: 5 - 6 | G10: меньше 5
A11: Штраф в очках | B11: 0 | C11: -10 | D11: -15 | E11: -20 | F11: -25 | G11: -30
C12: -2 | D12: -3 | E12: -4 | F12: -15 | G12: -30
A13: Коэф-т автономности | B13: 13 | C13: 12 | D13: 11 | E13: 10 | F13: 9 | G13: 8 | H13: 7 | I13: 6 | J13: 5 | K13: 4 | L13: 3 | M13: 2 | N13: 1 | O13: 0
A14: Штраф в очках | B14: 0 | C14: -10 | D14: -10 | E14: -15 | F14: -15 | G14: -20 | H14: -20 | I14: -25 | J14: -25 | K14: -30 | L14: -30 | M14: -30 | N14: -30 | O14: 0
A15: Штрафы новые в очках | B15: 0 | C15: -2 | D15: -2 | E15: -3 | F15: -3 | G15: -4 | H15: -4 | I15: -15 | J15: -15 | K15: -30 | L15: -30 | M15: -30 | N15: -30 | O15: 0
A16: Штраф за круги
A17: Кол-во кругов | B17: 0 | C17: 1 | D17: 2 | E17: 3 | F17: 4 | G17: 5 | H17: 6 | I17: 7 | J17: 8 | K17: 9 | L17: 10 | M17: 11
A18: Штраф в очках | B18: 0 | C18: 0 | D18: 0 | E18: -10 | F18: -15 | G18: -20 | H18: -25 | I18: -30 | J18: -35 | K18: -40 | L18: -45 | M18: -50
B19: 0 | C19: 0 | D19: 0 | E19: -2 | F19: -4 | G19: -10 | H19: -20 | I19: -30 | J19: -35 | K19: -40 | L19: -45 | M19: -50
A21: Итог ОЧКИ дистанции = Сложность МИНУС штраф за автономность МИНУС штраф за круги | I21: Округление до двух знаков
A23: Формула личного рез-та дистанции = 100 - ((место участника в итоговом протоколе-1)/количество стартовавших) × 100.
A25: Формула личного результата за соревнования = Квадратный корень ( Итог ОЧКИ за дистанцию) умножить на личный результат

Sheet Гонки
A1: № | B1: дата | C1: название гонки | D1: название дистанции | E1: Служебн 1 - где | F1: длина | G1: набор высоты | H1: сложность | I1: круги | J1: штраф круги | K1: ПП | L1: К-т автономности | M1: штраф пп | N1: Итог ОЧКИ | O1: кол-во стартов. Ж. | P1: кол-во стартов. М.
A2: 1 | B2: 2018-01-27 | C2: Зима минус 100 | D2: Трейл 50 | E2: =CONCATENATE(C2," ",D2,) -> Зима минус 100 Трейл 50 | F2: 50.8 | G2: 350 | H2: =F2+G2/100 -> 54.3 | I2: 0 | J2: =HLOOKUP(I2,'Правила расчёта'!$A$17:$M$19,3,FALSE) -> 0 | K2: 0 | L2: =MROUND(IF(K2=0,0,H2/K2),0) -> 0 | M2: =IF(L2=0,0,IF(L2>=13,0,HLOOKUP(Гонки!L2,'Правила расчёта'!$A$13:$O$15,3,FALSE))) -> 0 | N2: =H2+J2+M2 -> 54.3 | O2: 14 | P2: 34
A3: 2 | B3: 2018-01-27 | C3: Зима минус 100 | D3: Трейл 100 | E3: =CONCATENATE(C3," ",D3,) -> Зима минус 100 Трейл 100 | F3: 106.2 | G3: 760 | H3: =F3+G3/100 -> 113.8 | I3: 0 | J3: =HLOOKUP(I3,'Правила расчёта'!$A$17:$M$19,3,FALSE) -> 0 | K3: 1 | L3: =MROUND(IF(K3=0,0,H3/K3),1) -> 114 | M3: =IF(L3=0,0,IF(L3>=13,0,HLOOKUP(Гонки!L3,'Правила расчёта'!$A$13:$O$15,3,FALSE))) -> 0 | N3: =H3+J3+M3 -> 113.8 | O3: 5 | P3: 25
A4: 3 | B4: 2018-03-04 | C4: Жук-трейл # 4 Минское Море | D4: Трейл 25 | E4: =CONCATENATE(C4," ",D4,) -> Жук-трейл # 4 Минское Море Трейл 25 | F4: =8.45*3 -> 25.35 | G4: =112*3 -> 336 | H4: =F4+G4/100 -> 28.71 | I4: 3 | J4: =HLOOKUP(I4,'Правила расчёта'!$A$17:$M$19,3,FALSE) -> -2 | K4: 2 | L4: =MROUND(IF(K4=0,0,H4/K4),1) -> 14 | M4: =IF(L4=0,0,IF(L4>=13,0,HLOOKUP(Гонки!L4,'Правила расчёта'!$A$13:$O$15,3,FALSE))) -> 0 | N4: =H4+J4+M4 -> 26.71 | O4: 11 | P4: 81
A5: 4 | B5: 2018-03-04 | C5: Жук-трейл # 4 Минское Море | D5: Трейл 16 | E5: =CONCATENATE(C5," ",D5,) -> Жук-трейл # 4 Минское Море Трейл 16 | F5: =8.45*2 -> 16.9 | G5: =112*2 -> 224 | H5: =F5+G5/100 -> 19.14 | I5: 2 | J5: =HLOOKUP(I5,'Правила расчёта'!$A$17:$M$19,3,FALSE) -> 0 | K5: 1 | L5: 19 | M5: =IF(L5=0,0,IF(L5>=13,0,HLOOKUP(Гонки!L5,'Правила расчёта'!$A$13:$O$15,3,FALSE))) -> 0 | N5: =H5+J5+M5 -> 19.14 | O5: 27 | P5: 51
A6: 5 | B6: 2018-03-04 | C6: Жук-трейл # 4 Минское Море | D6: Трейл 8 | E6: =CONCATENATE(C6," ",D6,) -> Жук-трейл # 4 Минское Море Трейл 8 | F6: =8.45*1 -> 8.45 | G6: 112 | H6: =F6+G6/100 -> 9.57 | I6: 1 | J6: =HLOOKUP(I6,'Правила расчёта'!$A$17:$M$19,3,FALSE) -> 0 | K6: 0 | L6: 0 | M6: =IF(L6=0,0,IF(L6>=13,0,HLOOKUP(Гонки!L6,'Правила расчёта'!$A$13:$O$15,3,FALSE))) -> 0 | N6: =H6+J6+M6 -> 9.57 | O6: 24 | P6: 36
A7: 6 | B7: 2018-04-15 | C7: Жук-трейл # 5 Крево | D7: Трейл 70 | E7: Жук-трейл # 5 Крево Трейл 70 | F7: 70.4 | G7: 961 | H7: =F7+G7/100 -> 80.01 | I7: 1 | J7: =HLOOKUP(I7,'Правила расчёта'!$A$17:$M$19,3,FALSE) -> 0 | K7: 5 | L7: 16 | M7: =IF(L7=0,0,IF(L7>=13,0,HLOOKUP(Гонки!L7,'Правила расчёта'!$A$13:$O$15,3,FALSE))) -> 0 | N7: =H7+J7+M7 -> 80.01 | O7: 3 | P7: 15
A8: 7 | B8: 2018-04-15 | C8: Жук-трейл # 5 Крево | D8: Трейл 45 | E8: Жук-трейл # 5 Крево Трейл 45 | F8: 44.7 | G8: 632 | H8: 51.02 | I8: 1 | J8: =HLOOKUP(I8,'Правила расчёта'!$A$17:$M$19,3,FALSE) -> 0 | K8: 3 | L8: 17 | M8: =IF(L8=0,0,IF(L8>=13,0,HLOOKUP(Гонки!L8,'Правила расчёта'!$A$13:$O$15,3,FALSE))) -> 0 | N8: 51.02 | O8: 3 | P8: 20
A9: 8 | B9: 2018-04-15 | C9: Жук-трейл # 5 Крево | D9: Трейл 21 | E9: Жук-трейл # 5 Крево Трейл 21 | F9: 21.3 | G9: 308 | H9: 24.38 | I9: 1 | J9: =HLOOKUP(I9,'Правила расчёта'!$A$17:$M$19,3,FALSE) -> 0 | K9: 1 | L9: 24 | M9: =IF(L9=0,0,IF(L9>=13,0,HLOOKUP(Гонки!L9,'Правила расчёта'!$A$13:$O$15,3,FALSE))) -> 0 | N9: 24.38 | O9: 15 | P9: 45
A10: 9 | B10: 2018-04-15 | C10: Жук-трейл # 5 Крево | D10: Трейл 10 | E10: Жук-трейл # 5 Крево Трейл 10 | F10: 11.9 | G10: 198 | H10: 13.88 | I10: 1 | J10: =HLOOKUP(I10,'Правила расчёта'!$A$17:$M$19,3,FALSE) -> 0 | K10: 0 | L10: 0 | M10: =IF(L10=0,0,IF(L10>=13,0,HLOOKUP(Гонки!L10,'Правила расчёта'!$A$13:$O$15,3,FALSE))) -> 0 | N10: 13.88 | O10: 26 | P10: 56
A11: 10 | B11: 2018-05-26 | C11: "Налибоки 2018" | D11: Трейл 21 | E11: "Налибоки 2018" Трейл 21 | F11: 22.41 | G11: 262 | H11: 25.03 | I11: 1 | J11: =HLOOKUP(I11,'Правила расчёта'!$A$17:$M$19,3,FALSE) -> 0 | K11: 1 | L11: 25 | M11: =IF(L11=0,0,IF(L11>=13,0,HLOOKUP(Гонки!L11,'Правила расчёта'!$A$13:$O$15,3,FALSE))) -> 0 | N11: 25.03 | O11: 40 | P11: 55
A12: 11 | B12: 2018-05-26 | C12: "Налибоки 2018" | D12: Трейл 42 | E12: "Налибоки 2018" Трейл 42 | F12: 46.86 | G12: 494 | H12: 51.8 | I12: 1 | J12: =HLOOKUP(I12,'Правила расчёта'!$A$17:$M$19,3,FALSE) -> 0 | K12: 2 | L12: 26 | M12: =IF(L12=0,0,IF(L12>=13,0,HLOOKUP(Гонки!L12,'Правила расчёта'!$A$13:$O$15,3,FALSE))) -> 0 | N12: 51.8 | O12: 13 | P12: 41
A13: 12 | B13: 2018-05-26 | C13: "Налибоки 2018" | D13: Трейл 100 | E13: "Налибоки 2018" Трейл 100 | F13: 98.27 | G13: 1013 | H13: 108.4 | I13: 1 | J13: =HLOOKUP(I13,'Правила расчёта'!$A$17:$M$19,3,FALSE) -> 0 | K13: 5 | L13: 22 | M13: =IF(L13=0,0,IF(L13>=13,0,HLOOKUP(Гонки!L13,'Правила расчёта'!$A$13:$O$15,3,FALSE))) -> 0 | N13: 108.4 | O13: 3 | P13: 36
A14: 13 | B14: 2018-07-07 | C14: Жук-трейл #6 Купалье | D14: Трейл 5 | E14: Жук-трейл #6 Купалье Трейл 5 | F14: 5.32 | G14: 36 | H14: 5.68 | I14: 1 | J14: =HLOOKUP(I14,'Правила расчёта'!$A$17:$M$19,3,FALSE) -> 0 | K14: 0 | L14: 0 | M14: =IF(L14=0,0,IF(L14>=13,0,HLOOKUP(Гонки!L14,'Правила расчёта'!$A$13:$O$15,3,FALSE))) -> 0 | N14: 5.68 | O14: 28 | P14: 23
A15: 14 | B15: 2018-07-07 | C15: Жук-трейл #6 Купалье | D15: Трейл 10 | E15: Жук-трейл #6 Купалье Трейл 10 | F15: =5.32*2 -> 10.64 | G15: =G14*2 -> 72 | H15: 11.36 | I15: 2 | J15: =HLOOKUP(I15,'Правила расчёта'!$A$17:$M$19,3,FALSE) -> 0 | K15: 1 | L15: 11 | M15: =IF(L15=0,0,IF(L15>=13,0,HLOOKUP(Гонки!L15,'Правила расчёта'!$A$13:$O$15,3,FALSE))) -> -2 | N15: 9.36 | O15: 37 | P15: 60
A16: 15 | B16: 2018-07-07 | C16: Жук-трейл #6 Купалье | D16: Трейл 21 | E16: Жук-трейл #6 Купалье Трейл 21 | F16: =5.32*4 -> 21.28 | G16: =G14*4 -> 144 | H16: 22.72 | I16: 4 | J16: =HLOOKUP(I16,'Правила расчёта'!$A$17:$M$19,3,FALSE) -> -4 | K16: 3 | L16: =MROUND(IF(K16=0,0,H16/K16),1) -> 8 | M16: =IF(L16=0,0,IF(L16>=13,0,HLOOKUP(Гонки!L16,'Правила расчёта'!$A$13:$O$15,3,FALSE))) -> -4 | N16: 14.72 | O16: 14 | P16: 80
A17: 16 | B17: 2018-07-27 | C17: Жук-трейл #7 Раубичи | D17: Трейл 5 | E17: Жук-трейл #7 Раубичи Трейл 5 | F17: 5.5 | G17: 250 | H17: =F17+G17/100 -> 8 | I17: 1 | J17: =HLOOKUP(I17,'Правила расчёта'!$A$17:$M$19,3,FALSE) -> 0 | K17: 0 | L17: 0 | M17: =IF(L17=0,0,IF(L17>=13,0,HLOOKUP(Гонки!L17,'Правила расчёта'!$A$13:$O$15,3,FALSE))) -> 0 | N17: 8 | O17: 41 | P17: 30
A18: 17 | B18: 2018-07-27 | C18: Жук-трейл #7 Раубичи | D18: Трейл 10 | E18: Жук-трейл #7 Раубичи Трейл 10 | F18: =F17*2 -> 11 | G18: =G17*2 -> 500 | H18: 16 | I18: 2 | J18: =HLOOKUP(I18,'Правила расчёта'!$A$17:$M$19,3,FALSE) -> 0 | K18: 1 | L18: =MROUND(IF(K18=0,0,H18/K18),1) -> 16 | M18: =IF(L18=0,0,IF(L18>=13,0,HLOOKUP(Гонки!L18,'Правила расчёта'!$A$13:$O$15,3,FALSE))) -> 0 | N18: 16 | O18: 19 | P18: 44
A19: 18 | B19: 2018-07-27 | C19: Жук-трейл #7 Раубичи | D19: Трейл 21 | E19: Жук-трейл #7 Раубичи Трейл 21 | F19: =F17*4 -> 22 | G19: =G17*4 -> 1000 | H19: 32 | I19: 4 | J19: =HLOOKUP(I19,'Правила расчёта'!$A$17:$M$19,3,FALSE) -> -4 | K19: 3 | L19: =MROUND(IF(K19=0,0,H19/K19),1) -> 11 | M19: =IF(L19=0,0,IF(L19>=13,0,HLOOKUP(Гонки!L19,'Правила расчёта'!$A$13:$O$15,3,FALSE))) -> -2 | N19: 26 | O19: 9 | P19: 42
A20: 19 | B20: 2018-10-06 | C20: Дорога замков | D20: Трейл 10 | E20: Дорога замков Трейл 10 | F20: 11.68 | G20: 100 | H20: 12.68 | I20: 1 | J20: =HLOOKUP(I20,'Правила расчёта'!$A$17:$M$19,3,FALSE) -> 0 | K20: 0 | L20: =MROUND(IF(K20=0,0,H20/K20),1) -> 0 | M20: =IF(L20=0,0,IF(L20>=13,0,HLOOKUP(Гонки!L20,'Правила расчёта'!$A$13:$O$15,3,FALSE))) -> 0 | N20: 12.68 | O20: 36 | P20: 37
A21: 20 | B21: 2018-10-06 | C21: Дорога замков | D21: Трейл 21 | E21: Дорога замков Трейл 21 | F21: 23.98 | G21: 214 | H21: 26.12 | I21: 1 | J21: =HLOOKUP(I21,'Правила расчёта'!$A$17:$M$19,3,FALSE) -> 0 | K21: 1 | L21: 26 | M21: =IF(L21=0,0,IF(L21>=13,0,HLOOKUP(Гонки!L21,'Правила расчёта'!$A$13:$O$15,3,FALSE))) -> 0 | N21: 26.12 | O21: 15 | P21: 56
A22: 21 | B22: 2018-10-06 | C22: Дорога замков | D22: Трейл 42 | E22: Дорога замков Трейл 42 | F22: 42.98 | G22: 341 | H22: 46.39 | I22: 1 | J22: =HLOOKUP(I22,'Правила расчёта'!$A$17:$M$19,3,FALSE) -> 0 | K22: 2 | L22: 23 | M22: =IF(L22=0,0,IF(L22>=13,0,HLOOKUP(Гонки!L22,'Правила расчёта'!$A$13:$O$15,3,FALSE))) -> 0 | N22: 46.39 | O22: 7 | P22: 31
A23: 22 | B23: 2018-10-06 | C23: Дорога замков | D23: Ультра-Трейл 100 | E23: Дорога замков Ультра-Трейл 100 | F23: 104.84 | G23: 602 | H23: 110.86 | I23: 1 | J23: =HLOOKUP(I23,'Правила расчёта'!$A$17:$M$19,3,FALSE) -> 0 | K23: 5 | L23: 22 | M23: =IF(L23=0,0,IF(L23>=13,0,HLOOKUP(Гонки!L23,'Правила расчёта'!$A$13:$O$15,3,FALSE))) -> 0 | N23: 110.86 | O23: 3 | P23: 16
A24: 23 | B24: 2018-11-17 | C24: Жук-трейл #8 Логойск | D24: Трейл 5 | E24: Жук-трейл #8 Логойск Трейл 5 | F24: 4.85 | G24: =G25/2 -> 257.5 | H24: 7.425 | I24: 1 | J24: =HLOOKUP(I24,'Правила расчёта'!$A$17:$M$19,3,FALSE) -> 0 | K24: 0 | L24: 0 | M24: =IF(L24=0,0,IF(L24>=13,0,HLOOKUP(Гонки!L24,'Правила расчёта'!$A$13:$O$15,3,FALSE))) -> 0 | N24: 7.425 | O24: 48 | P24: 45
A25: 24 | B25: 2018-11-17 | C25: Жук-трейл #8 Логойск | D25: Трейл 10 | E25: Жук-трейл #8 Логойск Трейл 10 | F25: 10.21 | G25: 515 | H25: 15.36 | I25: 1 | J25: =HLOOKUP(I25,'Правила расчёта'!$A$17:$M$19,3,FALSE) -> 0 | K25: 0 | L25: 0 | M25: =IF(L25=0,0,IF(L25>=13,0,HLOOKUP(Гонки!L25,'Правила расчёта'!$A$13:$O$15,3,FALSE))) -> 0 | N25: 15.36 | O25: 42 | P25: 154
A26: 25 | B26: 2018-11-17 | C26: Жук-трейл #8 Логойск | D26: Трейл 21 | E26: Жук-трейл #8 Логойск Трейл 21 | F26: =10.21*2 -> 20.42 | G26: =G25*2 -> 1030 | H26: 30.72 | I26: 2 | J26: =HLOOKUP(I26,'Правила расчёта'!$A$17:$M$19,3,FALSE) -> 0 | K26: 1 | L26: 31 | M26: =IF(L26=0,0,IF(L26>=13,0,HLOOKUP(Гонки!L26,'Правила расчёта'!$A$13:$O$15,3,FALSE))) -> 0 | N26: 30.72 | O26: 20 | P26: 84
A27: 26 | B27: 2018-11-17 | C27: Жук-трейл #8 Логойск | D27: Трейл 42 | E27: Жук-трейл #8 Логойск Трейл 42 | F27: =10.21*4 -> 40.84 | G27: =G25*4 -> 2060 | H27: =F27+G27/100 -> 61.44 | I27: 4 | J27: =HLOOKUP(I27,'Правила расчёта'!$A$17:$M$19,3,FALSE) -> -4 | K27: 3 | L27: =MROUND(IF(K27=0,0,H27/K27),1) -> 20 | M27: =IF(L27=0,0,IF(L27>=13,0,HLOOKUP(Гонки!L27,'Правила расчёта'!$A$13:$O$15,3,FALSE))) -> 0 | N27: 57.44 | O27: 6 | P27: 22
A28: 27 | B28: 2018-11-17 | C28: Жук-трейл #8 Логойск | D28: Ночной 10 | E28: Жук-трейл #8 Логойск Ночной 10 | F28: 10.21 | G28: 515 | H28: 15.36 | I28: 1 | J28: =HLOOKUP(I28,'Правила расчёта'!$A$17:$M$19,3,FALSE) -> 0 | K28: 0 | L28: 0 | M28: =IF(L28=0,0,IF(L28>=13,0,HLOOKUP(Гонки!L28,'Правила расчёта'!$A$13:$O$15,3,FALSE))) -> 0 | N28: 15.36 | O28: 5 | P28: 30

Sheet личные рез-ты по гонкам списком
A1: Гонка | B1: Дистанция | C1: где (служубн 1) | D1: Рейтинг трассы | E1: Пол | F1: Кол-во участников по полу | G1: Фамилия Имя | H1: Год рождения | I1: Surname Name | J1: Ф+И (служебн 2) | K1: Пол1 | L1: место | M1: личный рез-т дистанции | N1: личный рез-т соревнований
A2: =Гонки!$C$2 -> Зима минус 100 | B2: =Гонки!$D$2 -> Трейл 50 | C2: =CONCATENATE(A2," ",B2) -> Зима минус 100 Трейл 50 | D2: =VLOOKUP(C2,Список_гонок,10,FALSE) -> 54.3 | E2: Ж | F2: =IF(E2="Ж",VLOOKUP(C2,Гонки!$E$2:$P$16,11,FALSE),VLOOKUP(C2,Гонки!$E$2:$P$16,12,FALSE)) -> 14 | G2: Скирук Юлия | H2: 1988 | I2: =Translit(G2) -> Skiruk Yuliya | J2: =CONCATENATE(G2," / ",I2," / ",H2) -> Скирук Юлия / Skiruk Yuliya / 1988 | K2: =E2 -> Ж | L2: 1 | M2: =100-((L2-1)/F2)*100 -> 100 | N2: =ROUND(SQRT(D2)*M2,2) -> 736.89
A3: =Гонки!$C$2 -> Зима минус 100 | B3: =Гонки!$D$2 -> Трейл 50 | C3: Зима минус 100 Трейл 50 | D3: 54.3 | E3: Ж | F3: =IF(E3="Ж",VLOOKUP(C3,Гонки!$E$2:$P$16,11,FALSE),VLOOKUP(C3,Гонки!$E$2:$P$16,12,FALSE)) -> 14 | G3: Белинская Галина | H3: 1980 | I3: Belinskaya Galina | J3: Белинская Галина / Belinskaya Galina / 1980 | K3: Ж | L3: 2 | M3: 92.85714286 | N3: =ROUND(SQRT(D3)*M3,2) -> 684.25
A4: =Гонки!$C$2 -> Зима минус 100 | B4: =Гонки!$D$2 -> Трейл 50 | C4: Зима минус 100 Трейл 50 | D4: 54.3 | E4: Ж | F4: =IF(E4="Ж",VLOOKUP(C4,Гонки!$E$2:$P$16,11,FALSE),VLOOKUP(C4,Гонки!$E$2:$P$16,12,FALSE)) -> 14 | G4: Обухова Екатерина | H4: 1978 | I4: Obuhova Ekaterina | J4: Обухова Екатерина / Obuhova Ekaterina / 1978 | K4: Ж | L4: 3 | M4: 85.71428571 | N4: 631.62
A5: =Гонки!$C$2 -> Зима минус 100 | B5: =Гонки!$D$2 -> Трейл 50 | C5: Зима минус 100 Трейл 50 | D5: 54.3 | E5: Ж | F5: =IF(E5="Ж",VLOOKUP(C5,Гонки!$E$2:$P$16,11,FALSE),VLOOKUP(C5,Гонки!$E$2:$P$16,12,FALSE)) -> 14 | G5: Куцун Надежда | H5: 1982 | I5: Kutsun Nadezhda | J5: Куцун Надежда / Kutsun Nadezhda / 1982 | K5: Ж | L5: 4 | M5: =100-((L5-1)/F5)*100 -> 78.57142857 | N5: =ROUND(SQRT(D5)*M5,2) -> 578.98
A6: =Гонки!$C$2 -> Зима минус 100 | B6: =Гонки!$D$2 -> Трейл 50 | C6: Зима минус 100 Трейл 50 | D6: 54.3 | E6: Ж | F6: =IF(E6="Ж",VLOOKUP(C6,Гонки!$E$2:$P$16,11,FALSE),VLOOKUP(C6,Гонки!$E$2:$P$16,12,FALSE)) -> 14 | G6: Михно Алла | H6: 1979 | I6: Mihno Alla | J6: Михно Алла / Mihno Alla / 1979 | K6: Ж | L6: 5 | M6: 71.42857143 | N6: 526.35
A7: =Гонки!$C$2 -> Зима минус 100 | B7: =Гонки!$D$2 -> Трейл 50 | C7: Зима минус 100 Трейл 50 | D7: 54.3 | E7: Ж | F7: =IF(E7="Ж",VLOOKUP(C7,Гонки!$E$2:$P$16,11,FALSE),VLOOKUP(C7,Гонки!$E$2:$P$16,12,FALSE)) -> 14 | G7: Радчук Алеся | H7: 1996 | I7: Radchuk Alesya | J7: Радчук Алеся / Radchuk Alesya / 1996 | K7: Ж | L7: 6 | M7: 64.28571429 | N7: 473.71
A8: =Гонки!$C$2 -> Зима минус 100 | B8: =Гонки!$D$2 -> Трейл 50 | C8: Зима минус 100 Трейл 50 | D8: 54.3 | E8: Ж | F8: =IF(E8="Ж",VLOOKUP(C8,Гонки!$E$2:$P$16,11,FALSE),VLOOKUP(C8,Гонки!$E$2:$P$16,12,FALSE)) -> 14 | G8: Янович Лена | H8: 1996 | I8: Yanovich Lena | J8: Янович Лена / Yanovich Lena / 1996 | K8: Ж | L8: 7 | M8: 57.14285714 | N8: 421.08
A9: =Гонки!$C$2 -> Зима минус 100 | B9: =Гонки!$D$2 -> Трейл 50 | C9: Зима минус 100 Трейл 50 | D9: 54.3 | E9: Ж | F9: =IF(E9="Ж",VLOOKUP(C9,Гонки!$E$2:$P$16,11,FALSE),VLOOKUP(C9,Гонки!$E$2:$P$16,12,FALSE)) -> 14 | G9: Кордунская Екатерина | H9: 1983 | I9: Kordunskaya Ekaterina | J9: Кордунская Екатерина / Kordunskaya Ekaterina / 1983 | K9: Ж | L9: 8 | M9: 50 | N9: 368.44
A10: =Гонки!$C$2 -> Зима минус 100 | B10: =Гонки!$D$2 -> Трейл 50 | C10: Зима минус 100 Трейл 50 | D10: 54.3 | E10: Ж | F10: =IF(E10="Ж",VLOOKUP(C10,Гонки!$E$2:$P$16,11,FALSE),VLOOKUP(C10,Гонки!$E$2:$P$16,12,FALSE)) -> 14 | G10: Чернель Татьяна | H10: 1982 | I10: Chernel Tatyana | J10: Чернель Татьяна / Chernel Tatyana / 1982 | K10: Ж | L10: 9 | M10: 42.85714286 | N10: 315.81
A11: =Гонки!$C$2 -> Зима минус 100 | B11: =Гонки!$D$2 -> Трейл 50 | C11: Зима минус 100 Трейл 50 | D11: 54.3 | E11: Ж | F11: =IF(E11="Ж",VLOOKUP(C11,Гонки!$E$2:$P$16,11,FALSE),VLOOKUP(C11,Гонки!$E$2:$P$16,12,FALSE)) -> 14 | G11: Арловская Кристина | H11: 1989 | I11: Arlovskaya Kristina | J11: Арловская Кристина / Arlovskaya Kristina / 1989 | K11: Ж | L11: 10 | M11: 35.71428571 | N11: 263.17
A12: =Гонки!$C$2 -> Зима минус 100 | B12: =Гонки!$D$2 -> Трейл 50 | C12: Зима минус 100 Трейл 50 | D12: 54.3 | E12: Ж | F12: =IF(E12="Ж",VLOOKUP(C12,Гонки!$E$2:$P$16,11,FALSE),VLOOKUP(C12,Гонки!$E$2:$P$16,12,FALSE)) -> 14 | G12: Литвинка Нина | H12: 1991 | I12: Litvinka Nina | J12: Литвинка Нина / Litvinka Nina / 1991 | K12: Ж | L12: 11 | M12: 28.57142857 | N12: 210.54
A13: =Гонки!$C$2 -> Зима минус 100 | B13: =Гонки!$D$2 -> Трейл 50 | C13: Зима минус 100 Трейл 50 | D13: 54.3 | E13: М | F13: =IF(E13="Ж",VLOOKUP(C13,Гонки!$E$2:$P$16,11,FALSE),VLOOKUP(C13,Гонки!$E$2:$P$16,12,FALSE)) -> 34 | G13: Евсюченя Александр | H13: 1991 | I13: Evsyuchenya Aleksandr | J13: Евсюченя Александр / Evsyuchenya Aleksandr / 1991 | K13: М | L13: 1 | M13: 100 | N13: 736.89
A14: =Гонки!$C$2 -> Зима минус 100 | B14: =Гонки!$D$2 -> Трейл 50 | C14: Зима минус 100 Трейл 50 | D14: 54.3 | E14: М | F14: =IF(E14="Ж",VLOOKUP(C14,Гонки!$E$2:$P$16,11,FALSE),VLOOKUP(C14,Гонки!$E$2:$P$16,12,FALSE)) -> 34 | G14: Некрасов Василий | H14: 1986 | I14: Nekrasov Vasilij | J14: Некрасов Василий / Nekrasov Vasilij / 1986 | K14: М | L14: 2 | M14: 97.05882353 | N14: 715.21
A15: =Гонки!$C$2 -> Зима минус 100 | B15: =Гонки!$D$2 -> Трейл 50 | C15: Зима минус 100 Трейл 50 | D15: 54.3 | E15: М | F15: =IF(E15="Ж",VLOOKUP(C15,Гонки!$E$2:$P$16,11,FALSE),VLOOKUP(C15,Гонки!$E$2:$P$16,12,FALSE)) -> 34 | G15: Березовский Андрей | H15: 1973 | I15: Berezovskij Andrej | J15: Березовский Андрей / Berezovskij Andrej / 1973 | K15: М | L15: 3 | M15: 94.11764706 | N15: 693.54
A16: =Гонки!$C$2 -> Зима минус 100 | B16: =Гонки!$D$2 -> Трейл 50 | C16: Зима минус 100 Трейл 50 | D16: 54.3 | E16: М | F16: =IF(E16="Ж",VLOOKUP(C16,Гонки!$E$2:$P$16,11,FALSE),VLOOKUP(C16,Гонки!$E$2:$P$16,12,FALSE)) -> 34 | G16: Сидоревич Александр | H16: 1985 | I16: Sidorevich Aleksandr | J16: Сидоревич Александр / Sidorevich Aleksandr / 1985 | K16: М | L16: 4 | M16: 91.17647059 | N16: 671.87
A17: =Гонки!$C$2 -> Зима минус 100 | B17: =Гонки!$D$2 -> Трейл 50 | C17: Зима минус 100 Трейл 50 | D17: 54.3 | E17: М | F17: =IF(E17="Ж",VLOOKUP(C17,Гонки!$E$2:$P$16,11,FALSE),VLOOKUP(C17,Гонки!$E$2:$P$16,12,FALSE)) -> 34 | G17: Скуратович Антон | H17: 1985 | I17: Skuratovich Anton | J17: Скуратович Антон / Skuratovich Anton / 1985 | K17: М | L17: 5 | M17: 88.23529412 | N17: 650.19
A18: =Гонки!$C$2 -> Зима минус 100 | B18: =Гонки!$D$2 -> Трейл 50 | C18: Зима минус 100 Трейл 50 | D18: 54.3 | E18: М | F18: =IF(E18="Ж",VLOOKUP(C18,Гонки!$E$2:$P$16,11,FALSE),VLOOKUP(C18,Гонки!$E$2:$P$16,12,FALSE)) -> 34 | G18: Бабицкий Кирилл | H18: 1998 | I18: Babitskij Kirill | J18: Бабицкий Кирилл / Babitskij Kirill / 1998 | K18: М | L18: 6 | M18: 85.29411765 | N18: 628.52
A19: =Гонки!$C$2 -> Зима минус 100 | B19: =Гонки!$D$2 -> Трейл 50 | C19: Зима минус 100 Трейл 50 | D19: 54.3 | E19: М | F19: =IF(E19="Ж",VLOOKUP(C19,Гонки!$E$2:$P$16,11,FALSE),VLOOKUP(C19,Гонки!$E$2:$P$16,12,FALSE)) -> 34 | G19: Лисовский Павел | H19: 1986 | I19: Lisovskij Pavel | J19: Лисовский Павел / Lisovskij Pavel / 1986 | K19: М | L19: 7 | M19: 82.35294118 | N19: 606.85
A20: =Гонки!$C$2 -> Зима минус 100 | B20: =Гонки!$D$2 -> Трейл 50 | C20: Зима минус 100 Трейл 50 | D20: 54.3 | E20: М | F20: =IF(E20="Ж",VLOOKUP(C20,Гонки!$E$2:$P$16,11,FALSE),VLOOKUP(C20,Гонки!$E$2:$P$16,12,FALSE)) -> 34 | G20: Коровец Богдан | H20: 1976 | I20: Korovets Bogdan | J20: Коровец Богдан / Korovets Bogdan / 1976 | K20: М | L20: 8 | M20: 79.41176471 | N20: 585.17
A21: =Гонки!$C$2 -> Зима минус 100 | B21: =Гонки!$D$2 -> Трейл 50 | C21: Зима минус 100 Трейл 50 | D21: 54.3 | E21: М | F21: =IF(E21="Ж",VLOOKUP(C21,Гонки!$E$2:$P$16,11,FALSE),VLOOKUP(C21,Гонки!$E$2:$P$16,12,FALSE)) -> 34 | G21: Крисенков Алексей | H21: 1983 | I21: Krisenkov Aleksej | J21: Крисенков Алексей / Krisenkov Aleksej / 1983 | K21: М | L21: 9 | M21: 76.47058824 | N21: 563.5
A22: =Гонки!$C$2 -> Зима минус 100 | B22: =Гонки!$D$2 -> Трейл 50 | C22: Зима минус 100 Трейл 50 | D22: 54.3 | E22: М | F22: =IF(E22="Ж",VLOOKUP(C22,Гонки!$E$2:$P$16,11,FALSE),VLOOKUP(C22,Гонки!$E$2:$P$16,12,FALSE)) -> 34 | G22: Рачковский Сергей | H22: 1988 | I22: Rachkovskij Sergej | J22: Рачковский Сергей / Rachkovskij Sergej / 1988 | K22: М | L22: 10 | M22: 73.52941176 | N22: 541.83
A23: =Гонки!$C$2 -> Зима минус 100 | B23: =Гонки!$D$2 -> Трейл 50 | C23: Зима минус 100 Трейл 50 | D23: 54.3 | E23: М | F23: =IF(E23="Ж",VLOOKUP(C23,Гонки!$E$2:$P$16,11,FALSE),VLOOKUP(C23,Гонки!$E$2:$P$16,12,FALSE)) -> 34 | G23: Лисовский Виктор | H23: 1964 | I23: Lisovskij Viktor | J23: Лисовский Виктор / Lisovskij Viktor / 1964 | K23: М | L23: 11 | M23: 70.58823529 | N23: 520.15
A24: =Гонки!$C$2 -> Зима минус 100 | B24: =Гонки!$D$2 -> Трейл 50 | C24: Зима минус 100 Трейл 50 | D24: 54.3 | E24: М | F24: =IF(E24="Ж",VLOOKUP(C24,Гонки!$E$2:$P$16,11,FALSE),VLOOKUP(C24,Гонки!$E$2:$P$16,12,FALSE)) -> 34 | G24: Тюев Даниил | H24: 1977 | I24: Tyuev Daniil | J24: Тюев Даниил / Tyuev Daniil / 1977 | K24: М | L24: 12 | M24: 67.64705882 | N24: 498.48
A25: =Гонки!$C$2 -> Зима минус 100 | B25: =Гонки!$D$2 -> Трейл 50 | C25: Зима минус 100 Трейл 50 | D25: 54.3 | E25: М | F25: =IF(E25="Ж",VLOOKUP(C25,Гонки!$E$2:$P$16,11,FALSE),VLOOKUP(C25,Гонки!$E$2:$P$16,12,FALSE)) -> 34 | G25: Лавник Игорь | H25: 1983 | I25: Lavnik Igor | J25: Лавник Игорь / Lavnik Igor / 1983 | K25: М | L25: 13 | M25: 64.70588235 | N25: 476.81
A26: =Гонки!$C$2 -> Зима минус 100 | B26: =Гонки!$D$2 -> Трейл 50 | C26: Зима минус 100 Трейл 50 | D26: 54.3 | E26: М | F26: =IF(E26="Ж",VLOOKUP(C26,Гонки!$E$2:$P$16,11,FALSE),VLOOKUP(C26,Гонки!$E$2:$P$16,12,FALSE)) -> 34 | G26: Грек Илья | H26: 1992 | I26: Grek Ilya | J26: Грек Илья / Grek Ilya / 1992 | K26: М | L26: 14 | M26: 61.76470588 | N26: 455.14
A27: =Гонки!$C$2 -> Зима минус 100 | B27: =Гонки!$D$2 -> Трейл 50 | C27: Зима минус 100 Трейл 50 | D27: 54.3 | E27: М | F27: =IF(E27="Ж",VLOOKUP(C27,Гонки!$E$2:$P$16,11,FALSE),VLOOKUP(C27,Гонки!$E$2:$P$16,12,FALSE)) -> 34 | G27: Поцелуев Сергей | H27: 1973 | I27: Potseluev Sergej | J27: Поцелуев Сергей / Potseluev Sergej / 1973 | K27: М | L27: 15 | M27: 58.82352941 | N27: 433.46
A28: =Гонки!$C$2 -> Зима минус 100 | B28: =Гонки!$D$2 -> Трейл 50 | C28: Зима минус 100 Трейл 50 | D28: 54.3 | E28: М | F28: =IF(E28="Ж",VLOOKUP(C28,Гонки!$E$2:$P$16,11,FALSE),VLOOKUP(C28,Гонки!$E$2:$P$16,12,FALSE)) -> 34 | G28: Малалетников Павел | H28: 1982 | I28: Malaletnikov Pavel | J28: Малалетников Павел / Malaletnikov Pavel / 1982 | K28: М | L28: 16 | M28: 55.88235294 | N28: 411.79
A29: =Гонки!$C$2 -> Зима минус 100 | B29: =Гонки!$D$2 -> Трейл 50 | C29: Зима минус 100 Трейл 50 | D29: 54.3 | E29: М | F29: =IF(E29="Ж",VLOOKUP(C29,Гонки!$E$2:$P$16,11,FALSE),VLOOKUP(C29,Гонки!$E$2:$P$16,12,FALSE)) -> 34 | G29: Храмов Антон | H29: 1991 | I29: Hramov Anton | J29: Храмов Антон / Hramov Anton / 1991 | K29: М | L29: 17 | M29: 52.94117647 | N29: 390.12
A30: =Гонки!$C$2 -> Зима минус 100 | B30: =Гонки!$D$2 -> Трейл 50 | C30: Зима минус 100 Трейл 50 | D30: 54.3 | E30: М | F30: =IF(E30="Ж",VLOOKUP(C30,Гонки!$E$2:$P$16,11,FALSE),VLOOKUP(C30,Гонки!$E$2:$P$16,12,FALSE)) -> 34 | G30: Мурашов Владимир | H30: 1983 | I30: Murashov Vladimir | J30: Мурашов Владимир / Murashov Vladimir / 1983 | K30: М | L30: 18 | M30: 50 | N30: 368.44
A31: =Гонки!$C$2 -> Зима минус 100 | B31: =Гонки!$D$2 -> Трейл 50 | C31: Зима минус 100 Трейл 50 | D31: 54.3 | E31: М | F31: =IF(E31="Ж",VLOOKUP(C31,Гонки!$E$2:$P$16,11,FALSE),VLOOKUP(C31,Гонки!$E$2:$P$16,12,FALSE)) -> 34 | G31: Быков Владимир | H31: 1977 | I31: Bykov Vladimir | J31: Быков Владимир / Bykov Vladimir / 1977 | K31: М | L31: 19 | M31: 47.05882353 | N31: 346.77
A32: =Гонки!$C$2 -> Зима минус 100 | B32: =Гонки!$D$2 -> Трейл 50 | C32: Зима минус 100 Трейл 50 | D32: 54.3 | E32: М | F32: =IF(E32="Ж",VLOOKUP(C32,Гонки!$E$2:$P$16,11,FALSE),VLOOKUP(C32,Гонки!$E$2:$P$16,12,FALSE)) -> 34 | G32: Михно Борис | H32: 1982 | I32: Mihno Boris | J32: Михно Борис / Mihno Boris / 1982 | K32: М | L32: 20 | M32: 44.11764706 | N32: 325.1
A33: =Гонки!$C$2 -> Зима минус 100 | B33: =Гонки!$D$2 -> Трейл 50 | C33: Зима минус 100 Трейл 50 | D33: 54.3 | E33: М | F33: =IF(E33="Ж",VLOOKUP(C33,Гонки!$E$2:$P$16,11,FALSE),VLOOKUP(C33,Гонки!$E$2:$P$16,12,FALSE)) -> 34 | G33: Иванчик Александр | H33: 1990 | I33: Ivanchik Aleksandr | J33: Иванчик Александр / Ivanchik Aleksandr / 1990 | K33: М | L33: 21 | M33: 41.17647059 | N33: 303.42
A34: =Гонки!$C$2 -> Зима минус 100 | B34: =Гонки!$D$2 -> Трейл 50 | C34: Зима минус 100 Трейл 50 | D34: 54.3 | E34: М | F34: =IF(E34="Ж",VLOOKUP(C34,Гонки!$E$2:$P$16,11,FALSE),VLOOKUP(C34,Гонки!$E$2:$P$16,12,FALSE)) -> 34 | G34: Леверовский Александр | H34: 1988 | I34: Leverovskij Aleksandr | J34: Леверовский Александр / Leverovskij Aleksandr / 1988 | K34: М | L34: 22 | M34: 38.23529412 | N34: 281.75
A35: =Гонки!$C$2 -> Зима минус 100 | B35: =Гонки!$D$2 -> Трейл 50 | C35: Зима минус 100 Трейл 50 | D35: 54.3 | E35: М | F35: =IF(E35="Ж",VLOOKUP(C35,Гонки!$E$2:$P$16,11,FALSE),VLOOKUP(C35,Гонки!$E$2:$P$16,12,FALSE)) -> 34 | G35: Чичин Юрий | H35: 1979 | I35: Chichin Yurij | J35: Чичин Юрий / Chichin Yurij / 1979 | K35: М | L35: 23 | M35: 35.29411765 | N35: 260.08
A36: =Гонки!$C$2 -> Зима минус 100 | B36: =Гонки!$D$2 -> Трейл 50 | C36: Зима минус 100 Трейл 50 | D36: 54.3 | E36: М | F36: =IF(E36="Ж",VLOOKUP(C36,Гонки!$E$2:$P$16,11,FALSE),VLOOKUP(C36,Гонки!$E$2:$P$16,12,FALSE)) -> 34 | G36: Бачища Николай | H36: 1988 | I36: Bachischa Nikolaj | J36: Бачища Николай / Bachischa Nikolaj / 1988 | K36: М | L36: 24 | M36: 32.35294118 | N36: 238.4
A37: =Гонки!$C$2 -> Зима минус 100 | B37: =Гонки!$D$2 -> Трейл 50 | C37: Зима минус 100 Трейл 50 | D37: 54.3 | E37: М | F37: =IF(E37="Ж",VLOOKUP(C37,Гонки!$E$2:$P$16,11,FALSE),VLOOKUP(C37,Гонки!$E$2:$P$16,12,FALSE)) -> 34 | G37: Кузьмич Дмитрий | H37: 1975 | I37: Kuzmich Dmitrij | J37: Кузьмич Дмитрий / Kuzmich Dmitrij / 1975 | K37: М | L37: 25 | M37: 29.41176471 | N37: 216.73
A38: =Гонки!$C$2 -> Зима минус 100 | B38: =Гонки!$D$2 -> Трейл 50 | C38: Зима минус 100 Трейл 50 | D38: 54.3 | E38: М | F38: =IF(E38="Ж",VLOOKUP(C38,Гонки!$E$2:$P$16,11,FALSE),VLOOKUP(C38,Гонки!$E$2:$P$16,12,FALSE)) -> 34 | G38: Лялеко Сергей | H38: 1986 | I38: Lyaleko Sergej | J38: Лялеко Сергей / Lyaleko Sergej / 1986 | K38: М | L38: 26 | M38: 26.47058824 | N38: 195.06
A39: =Гонки!$C$2 -> Зима минус 100 | B39: =Гонки!$D$2 -> Трейл 50 | C39: Зима минус 100 Трейл 50 | D39: 54.3 | E39: М | F39: =IF(E39="Ж",VLOOKUP(C39,Гонки!$E$2:$P$16,11,FALSE),VLOOKUP(C39,Гонки!$E$2:$P$16,12,FALSE)) -> 34 | G39: Лучкин Олег | H39: 1983 | I39: Luchkin Oleg | J39: Лучкин Олег / Luchkin Oleg / 1983 | K39: М | L39: 27 | M39: 23.52941176 | N39: 173.38
A40: =Гонки!$C$2 -> Зима минус 100 | B40: =Гонки!$D$2 -> Трейл 50 | C40: Зима минус 100 Трейл 50 | D40: 54.3 | E40: М | F40: =IF(E40="Ж",VLOOKUP(C40,Гонки!$E$2:$P$16,11,FALSE),VLOOKUP(C40,Гонки!$E$2:$P$16,12,FALSE)) -> 34 | G40: Занько Юрий | H40: 1982 | I40: Zanko Yurij | J40: Занько Юрий / Zanko Yurij / 1982 | K40: М | L40: 28 | M40: 20.58823529 | N40: 151.71
A41: =Гонки!$C$2 -> Зима минус 100 | B41: =Гонки!$D$2 -> Трейл 50 | C41: Зима минус 100 Трейл 50 | D41: 54.3 | E41: М | F41: =IF(E41="Ж",VLOOKUP(C41,Гонки!$E$2:$P$16,11,FALSE),VLOOKUP(C41,Гонки!$E$2:$P$16,12,FALSE)) -> 34 | G41: Печёнов Георгий | H41: 1975 | I41: Pechjonov Georgij | J41: Печёнов Георгий / Pechjonov Georgij / 1975 | K41: М | L41: 29 | M41: 17.64705882 | N41: 130.04
A42: =Гонки!$C$2 -> Зима минус 100 | B42: =Гонки!$D$2 -> Трейл 50 | C42: Зима минус 100 Трейл 50 | D42: 54.3 | E42: М | F42: =IF(E42="Ж",VLOOKUP(C42,Гонки!$E$2:$P$16,11,FALSE),VLOOKUP(C42,Гонки!$E$2:$P$16,12,FALSE)) -> 34 | G42: Ананич Александр | H42: 1979 | I42: Ananich Aleksandr | J42: Ананич Александр / Ananich Aleksandr / 1979 | K42: М | L42: 30 | M42: 14.70588235 | N42: 108.37
A43: =Гонки!$C$2 -> Зима минус 100 | B43: =Гонки!$D$2 -> Трейл 50 | C43: Зима минус 100 Трейл 50 | D43: 54.3 | E43: М | F43: =IF(E43="Ж",VLOOKUP(C43,Гонки!$E$2:$P$16,11,FALSE),VLOOKUP(C43,Гонки!$E$2:$P$16,12,FALSE)) -> 34 | G43: Катонов Василий | H43: 1985 | I43: Katonov Vasilij | J43: Катонов Василий / Katonov Vasilij / 1985 | K43: М | L43: 31 | M43: 11.76470588 | N43: 86.69
A44: =Гонки!$C$2 -> Зима минус 100 | B44: =Гонки!$D$2 -> Трейл 50 | C44: Зима минус 100 Трейл 50 | D44: 54.3 | E44: М | F44: =IF(E44="Ж",VLOOKUP(C44,Гонки!$E$2:$P$16,11,FALSE),VLOOKUP(C44,Гонки!$E$2:$P$16,12,FALSE)) -> 34 | G44: Медвецкий Денис | H44: 1986 | I44: Medvetskij Denis | J44: Медвецкий Денис / Medvetskij Denis / 1986 | K44: М | L44: 32 | M44: 8.823529412 | N44: 65.02
A45: =Гонки!$C$2 -> Зима минус 100 | B45: =Гонки!$D$2 -> Трейл 50 | C45: Зима минус 100 Трейл 50 | D45: 54.3 | E45: М | F45: =IF(E45="Ж",VLOOKUP(C45,Гонки!$E$2:$P$16,11,FALSE),VLOOKUP(C45,Гонки!$E$2:$P$16,12,FALSE)) -> 34 | G45: Малаховский Александр | H45: 1985 | I45: Malahovskij Aleksandr | J45: Малаховский Александр / Malahovskij Aleksandr / 1985 | K45: М | L45: 33 | M45: 5.882352941 | N45: 43.35
A46: =Гонки!$C$2 -> Зима минус 100 | B46: =Гонки!$D$3 -> Трейл 100 | C46: Зима минус 100 Трейл 100 | D46: 113.8 | E46: Ж | F46: =IF(E46="Ж",VLOOKUP(C46,Гонки!$E$2:$P$16,11,FALSE),VLOOKUP(C46,Гонки!$E$2:$P$16,12,FALSE)) -> 5 | G46: Суховерхая Татьяна | H46: 1986 | I46: Suhoverhaya Tatyana | J46: Суховерхая Татьяна / Suhoverhaya Tatyana / 1986 | K46: Ж | L46: 1 | M46: 100 | N46: 1066.77
A47: =Гонки!$C$2 -> Зима минус 100 | B47: =Гонки!$D$3 -> Трейл 100 | C47: Зима минус 100 Трейл 100 | D47: 113.8 | E47: М | F47: =IF(E47="Ж",VLOOKUP(C47,Гонки!$E$2:$P$16,11,FALSE),VLOOKUP(C47,Гонки!$E$2:$P$16,12,FALSE)) -> 25 | G47: Пивень Андрей | H47: 1992 | I47: Piven Andrej | J47: Пивень Андрей / Piven Andrej / 1992 | K47: М | L47: 1 | M47: 100 | N47: 1066.77
A48: =Гонки!$C$2 -> Зима минус 100 | B48: =Гонки!$D$3 -> Трейл 100 | C48: Зима минус 100 Трейл 100 | D48: 113.8 | E48: М | F48: =IF(E48="Ж",VLOOKUP(C48,Гонки!$E$2:$P$16,11,FALSE),VLOOKUP(C48,Гонки!$E$2:$P$16,12,FALSE)) -> 25 | G48: Исаев Антон | H48: 1979 | I48: Isaev Anton | J48: Исаев Антон / Isaev Anton / 1979 | K48: М | L48: 2 | M48: 96 | N48: 1024.1
A49: =Гонки!$C$2 -> Зима минус 100 | B49: =Гонки!$D$3 -> Трейл 100 | C49: Зима минус 100 Трейл 100 | D49: 113.8 | E49: М | F49: =IF(E49="Ж",VLOOKUP(C49,Гонки!$E$2:$P$16,11,FALSE),VLOOKUP(C49,Гонки!$E$2:$P$16,12,FALSE)) -> 25 | G49: Синица Кирилл | H49: 1981 | I49: Sinitsa Kirill | J49: Синица Кирилл / Sinitsa Kirill / 1981 | K49: М | L49: 3 | M49: 92 | N49: 981.43
A50: =Гонки!$C$2 -> Зима минус 100 | B50: =Гонки!$D$3 -> Трейл 100 | C50: Зима минус 100 Трейл 100 | D50: 113.8 | E50: М | F50: =IF(E50="Ж",VLOOKUP(C50,Гонки!$E$2:$P$16,11,FALSE),VLOOKUP(C50,Гонки!$E$2:$P$16,12,FALSE)) -> 25 | G50: Лысенко Павел | H50: 1966 | I50: Lysenko Pavel | J50: Лысенко Павел / Lysenko Pavel / 1966 | K50: М | L50: 4 | M50: 88 | N50: 938.76
A51: =Гонки!$C$2 -> Зима минус 100 | B51: =Гонки!$D$3 -> Трейл 100 | C51: Зима минус 100 Трейл 100 | D51: 113.8 | E51: М | F51: =IF(E51="Ж",VLOOKUP(C51,Гонки!$E$2:$P$16,11,FALSE),VLOOKUP(C51,Гонки!$E$2:$P$16,12,FALSE)) -> 25 | G51: Борисевич Леонид | H51: 1969 | I51: Borisevich Leonid | J51: Борисевич Леонид / Borisevich Leonid / 1969 | K51: М | L51: 5 | M51: 84 | N51: 896.09
A52: =Гонки!$C$2 -> Зима минус 100 | B52: =Гонки!$D$3 -> Трейл 100 | C52: Зима минус 100 Трейл 100 | D52: 113.8 | E52: М | F52: =IF(E52="Ж",VLOOKUP(C52,Гонки!$E$2:$P$16,11,FALSE),VLOOKUP(C52,Гонки!$E$2:$P$16,12,FALSE)) -> 25 | G52: Подрез Ярослав | H52: 1996 | I52: Podrez Yaroslav | J52: Подрез Ярослав / Podrez Yaroslav / 1996 | K52: М | L52: 6 | M52: 80 | N52: 853.42
A53: =Гонки!$C$2 -> Зима минус 100 | B53: =Гонки!$D$3 -> Трейл 100 | C53: Зима минус 100 Трейл 100 | D53: 113.8 | E53: М | F53: =IF(E53="Ж",VLOOKUP(C53,Гонки!$E$2:$P$16,11,FALSE),VLOOKUP(C53,Гонки!$E$2:$P$16,12,FALSE)) -> 25 | G53: Селютин Владимир | H53: 1990 | I53: Selyutin Vladimir | J53: Селютин Владимир / Selyutin Vladimir / 1990 | K53: М | L53: 7 | M53: 76 | N53: 810.75
A54: =Гонки!$C$2 -> Зима минус 100 | B54: =Гонки!$D$3 -> Трейл 100 | C54: Зима минус 100 Трейл 100 | D54: 113.8 | E54: М | F54: =IF(E54="Ж",VLOOKUP(C54,Гонки!$E$2:$P$16,11,FALSE),VLOOKUP(C54,Гонки!$E$2:$P$16,12,FALSE)) -> 25 | G54: Фенченко Алексей | H54: 1989 | I54: Fenchenko Aleksej | J54: Фенченко Алексей / Fenchenko Aleksej / 1989 | K54: М | L54: 8 | M54: 72 | N54: 768.07
A55: =Гонки!$C$2 -> Зима минус 100 | B55: =Гонки!$D$3 -> Трейл 100 | C55: Зима минус 100 Трейл 100 | D55: 113.8 | E55: М | F55: =IF(E55="Ж",VLOOKUP(C55,Гонки!$E$2:$P$16,11,FALSE),VLOOKUP(C55,Гонки!$E$2:$P$16,12,FALSE)) -> 25 | G55: Харитонов Иван | H55: 1973 | I55: Haritonov Ivan | J55: Харитонов Иван / Haritonov Ivan / 1973 | K55: М | L55: 9 | M55: 68 | N55: 725.4
A56: =Гонки!$C$2 -> Зима минус 100 | B56: =Гонки!$D$3 -> Трейл 100 | C56: Зима минус 100 Трейл 100 | D56: 113.8 | E56: М | F56: =IF(E56="Ж",VLOOKUP(C56,Гонки!$E$2:$P$16,11,FALSE),VLOOKUP(C56,Гонки!$E$2:$P$16,12,FALSE)) -> 25 | G56: Лесковец Александр | H56: 1990 | I56: Leskovets Aleksandr | J56: Лесковец Александр / Leskovets Aleksandr / 1990 | K56: М | L56: 10 | M56: 64 | N56: 682.73
A57: =Гонки!$C$2 -> Зима минус 100 | B57: =Гонки!$D$3 -> Трейл 100 | C57: Зима минус 100 Трейл 100 | D57: 113.8 | E57: М | F57: =IF(E57="Ж",VLOOKUP(C57,Гонки!$E$2:$P$16,11,FALSE),VLOOKUP(C57,Гонки!$E$2:$P$16,12,FALSE)) -> 25 | G57: Нестерович Сергей | H57: 1994 | I57: Nesterovich Sergej | J57: Нестерович Сергей / Nesterovich Sergej / 1994 | K57: М | L57: 11 | M57: 60 | N57: 640.06
A58: =Гонки!$C$2 -> Зима минус 100 | B58: =Гонки!$D$3 -> Трейл 100 | C58: Зима минус 100 Трейл 100 | D58: 113.8 | E58: М | F58: =IF(E58="Ж",VLOOKUP(C58,Гонки!$E$2:$P$16,11,FALSE),VLOOKUP(C58,Гонки!$E$2:$P$16,12,FALSE)) -> 25 | G58: Сорокин Денис | H58: 1998 | I58: Sorokin Denis | J58: Сорокин Денис / Sorokin Denis / 1998 | K58: М | L58: 12 | M58: 56 | N58: 597.39
A59: =Гонки!$C$2 -> Зима минус 100 | B59: =Гонки!$D$3 -> Трейл 100 | C59: Зима минус 100 Трейл 100 | D59: 113.8 | E59: М | F59: =IF(E59="Ж",VLOOKUP(C59,Гонки!$E$2:$P$16,11,FALSE),VLOOKUP(C59,Гонки!$E$2:$P$16,12,FALSE)) -> 25 | G59: Маркевич Денис | H59: 1981 | I59: Markevich Denis | J59: Маркевич Денис / Markevich Denis / 1981 | K59: М | L59: 13 | M59: 52 | N59: 554.72
A60: =Гонки!$C$2 -> Зима минус 100 | B60: =Гонки!$D$3 -> Трейл 100 | C60: Зима минус 100 Трейл 100 | D60: 113.8 | E60: М | F60: =IF(E60="Ж",VLOOKUP(C60,Гонки!$E$2:$P$16,11,FALSE),VLOOKUP(C60,Гонки!$E$2:$P$16,12,FALSE)) -> 25 | G60: Олин Денис | H60: 1976 | I60: Olin Denis | J60: Олин Денис / Olin Denis / 1976 | K60: М | L60: 14 | M60: 48 | N60: 512.05
A61: =Гонки!$C$4 -> Жук-трейл # 4 Минское Море | B61: =Гонки!$D$4 -> Трейл 25 | C61: Жук-трейл # 4 Минское Море Трейл 25 | D61: 26.71 | E61: Ж | F61: =IF(E61="Ж",VLOOKUP(C61,Гонки!$E$2:$P$16,11,FALSE),VLOOKUP(C61,Гонки!$E$2:$P$16,12,FALSE)) -> 11 | G61: Гилевич Диана | H61: 1993 | I61: Gilevich Diana | J61: Гилевич Диана / Gilevich Diana / 1993 | K61: Ж | L61: 1 | M61: 100 | N61: 516.82
A62: =Гонки!$C$4 -> Жук-трейл # 4 Минское Море | B62: =Гонки!$D$4 -> Трейл 25 | C62: Жук-трейл # 4 Минское Море Трейл 25 | D62: 26.71 | E62: Ж | F62: =IF(E62="Ж",VLOOKUP(C62,Гонки!$E$2:$P$16,11,FALSE),VLOOKUP(C62,Гонки!$E$2:$P$16,12,FALSE)) -> 11 | G62: Гилевич Кристина | H62: 1994 | I62: Gilevich Kristina | J62: Гилевич Кристина / Gilevich Kristina / 1994 | K62: Ж | L62: 2 | M62: 90.90909091 | N62: 469.83
A63: =Гонки!$C$4 -> Жук-трейл # 4 Минское Море | B63: =Гонки!$D$4 -> Трейл 25 | C63: Жук-трейл # 4 Минское Море Трейл 25 | D63: 26.71 | E63: Ж | F63: =IF(E63="Ж",VLOOKUP(C63,Гонки!$E$2:$P$16,11,FALSE),VLOOKUP(C63,Гонки!$E$2:$P$16,12,FALSE)) -> 11 | G63: Скирук Юлия | H63: 1988 | I63: Skiruk Yuliya | J63: Скирук Юлия / Skiruk Yuliya / 1988 | K63: Ж | L63: 3 | M63: 81.81818182 | N63: 422.85
A64: =Гонки!$C$4 -> Жук-трейл # 4 Минское Море | B64: =Гонки!$D$4 -> Трейл 25 | C64: Жук-трейл # 4 Минское Море Трейл 25 | D64: 26.71 | E64: Ж | F64: =IF(E64="Ж",VLOOKUP(C64,Гонки!$E$2:$P$16,11,FALSE),VLOOKUP(C64,Гонки!$E$2:$P$16,12,FALSE)) -> 11 | G64: Белая Юлия | H64: 1988 | I64: Belaya Yuliya | J64: Белая Юлия / Belaya Yuliya / 1988 | K64: Ж | L64: 4 | M64: 72.72727273 | N64: 375.87
A65: =Гонки!$C$4 -> Жук-трейл # 4 Минское Море | B65: =Гонки!$D$4 -> Трейл 25 | C65: Жук-трейл # 4 Минское Море Трейл 25 | D65: 26.71 | E65: Ж | F65: =IF(E65="Ж",VLOOKUP(C65,Гонки!$E$2:$P$16,11,FALSE),VLOOKUP(C65,Гонки!$E$2:$P$16,12,FALSE)) -> 11 | G65: Голубева Елена | H65: 1987 | I65: Golubeva Elena | J65: Голубева Елена / Golubeva Elena / 1987 | K65: Ж | L65: 5 | M65: 63.63636364 | N65: 328.88
A66: =Гонки!$C$4 -> Жук-трейл # 4 Минское Море | B66: =Гонки!$D$4 -> Трейл 25 | C66: =CONCATENATE(A66," ",B66) -> Жук-трейл # 4 Минское Море Трейл 25 | D66: =VLOOKUP(C66,Список_гонок,10,FALSE) -> 26.71 | E66: Ж | F66: =IF(E66="Ж",VLOOKUP(C66,Гонки!$E$2:$P$16,11,FALSE),VLOOKUP(C66,Гонки!$E$2:$P$16,12,FALSE)) -> 11 | G66: Литвинская Людмила | H66: 1977 | I66: =Translit(G66) -> Litvinskaya Lyudmila | J66: =CONCATENATE(G66," / ",I66," / ",H66) -> Литвинская Людмила / Litvinskaya Lyudmila / 1977 | K66: =E66 -> Ж | L66: 6 | M66: =100-((L66-1)/F66)*100 -> 54.54545455 | N66: =ROUND(SQRT(D66)*M66,2) -> 281.9
A67: =Гонки!$C$4 -> Жук-трейл # 4 Минское Море | B67: =Гонки!$D$4 -> Трейл 25 | C67: Жук-трейл # 4 Минское Море Трейл 25 | D67: 26.71 | E67: Ж | F67: =IF(E67="Ж",VLOOKUP(C67,Гонки!$E$2:$P$16,11,FALSE),VLOOKUP(C67,Гонки!$E$2:$P$16,12,FALSE)) -> 11 | G67: Суховерхая Татьяна | H67: 1986 | I67: Suhoverhaya Tatyana | J67: Суховерхая Татьяна / Suhoverhaya Tatyana / 1986 | K67: Ж | L67: 7 | M67: 45.45454545 | N67: 234.92
A68: =Гонки!$C$4 -> Жук-трейл # 4 Минское Море | B68: =Гонки!$D$4 -> Трейл 25 | C68: Жук-трейл # 4 Минское Море Трейл 25 | D68: 26.71 | E68: Ж | F68: =IF(E68="Ж",VLOOKUP(C68,Гонки!$E$2:$P$16,11,FALSE),VLOOKUP(C68,Гонки!$E$2:$P$16,12,FALSE)) -> 11 | G68: Василевич Валентина | H68: 1998 | I68: Vasilevich Valentina | J68: Василевич Валентина / Vasilevich Valentina / 1998 | K68: Ж | L68: 8 | M68: 36.36363636 | N68: 187.93
A69: =Гонки!$C$4 -> Жук-трейл # 4 Минское Море | B69: =Гонки!$D$4 -> Трейл 25 | C69: Жук-трейл # 4 Минское Море Трейл 25 | D69: 26.71 | E69: Ж | F69: =IF(E69="Ж",VLOOKUP(C69,Гонки!$E$2:$P$16,11,FALSE),VLOOKUP(C69,Гонки!$E$2:$P$16,12,FALSE)) -> 11 | G69: Михно Алла | H69: 1979 | I69: Mihno Alla | J69: Михно Алла / Mihno Alla / 1979 | K69: Ж | L69: 9 | M69: 27.27272727 | N69: 140.95
A70: =Гонки!$C$4 -> Жук-трейл # 4 Минское Море | B70: =Гонки!$D$4 -> Трейл 25 | C70: Жук-трейл # 4 Минское Море Трейл 25 | D70: 26.71 | E70: Ж | F70: =IF(E70="Ж",VLOOKUP(C70,Гонки!$E$2:$P$16,11,FALSE),VLOOKUP(C70,Гонки!$E$2:$P$16,12,FALSE)) -> 11 | G70: Михалкин Сергей | H70: 1989 | I70: Mihalkin Sergej | J70: Михалкин Сергей / Mihalkin Sergej / 1989 | K70: Ж | L70: 1 | M70: 100 | N70: 516.82
A71: =Гонки!$C$4 -> Жук-трейл # 4 Минское Море | B71: =Гонки!$D$4 -> Трейл 25 | C71: Жук-трейл # 4 Минское Море Трейл 25 | D71: 26.71 | E71: М | F71: =IF(E71="Ж",VLOOKUP(C71,Гонки!$E$2:$P$16,11,FALSE),VLOOKUP(C71,Гонки!$E$2:$P$16,12,FALSE)) -> 81 | G71: Сердитов Вадим | H71: 1993 | I71: Serditov Vadim | J71: Сердитов Вадим / Serditov Vadim / 1993 | K71: М | L71: 2 | M71: 98.7654321 | N71: 510.44
A72: =Гонки!$C$4 -> Жук-трейл # 4 Минское Море | B72: =Гонки!$D$4 -> Трейл 25 | C72: Жук-трейл # 4 Минское Море Трейл 25 | D72: 26.71 | E72: М | F72: =IF(E72="Ж",VLOOKUP(C72,Гонки!$E$2:$P$16,11,FALSE),VLOOKUP(C72,Гонки!$E$2:$P$16,12,FALSE)) -> 81 | G72: Ходан Александр | H72: 1988 | I72: Hodan Aleksandr | J72: Ходан Александр / Hodan Aleksandr / 1988 | K72: М | L72: 3 | M72: 97.5308642 | N72: 504.06
A73: =Гонки!$C$4 -> Жук-трейл # 4 Минское Море | B73: =Гонки!$D$4 -> Трейл 25 | C73: Жук-трейл # 4 Минское Море Трейл 25 | D73: 26.71 | E73: М | F73: =IF(E73="Ж",VLOOKUP(C73,Гонки!$E$2:$P$16,11,FALSE),VLOOKUP(C73,Гонки!$E$2:$P$16,12,FALSE)) -> 81 | G73: Леонов Иван | H73: 1986 | I73: Leonov Ivan | J73: Леонов Иван / Leonov Ivan / 1986 | K73: М | L73: 4 | M73: 96.2962963 | N73: 497.68
A74: =Гонки!$C$4 -> Жук-трейл # 4 Минское Море | B74: =Гонки!$D$4 -> Трейл 25 | C74: Жук-трейл # 4 Минское Море Трейл 25 | D74: 26.71 | E74: М | F74: =IF(E74="Ж",VLOOKUP(C74,Гонки!$E$2:$P$16,11,FALSE),VLOOKUP(C74,Гонки!$E$2:$P$16,12,FALSE)) -> 81 | G74: Вагин Андрей | H74: 1989 | I74: Vagin Andrej | J74: Вагин Андрей / Vagin Andrej / 1989 | K74: М | L74: 5 | M74: 95.0617284 | N74: 491.3
A75: =Гонки!$C$4 -> Жук-трейл # 4 Минское Море | B75: =Гонки!$D$4 -> Трейл 25 | C75: Жук-трейл # 4 Минское Море Трейл 25 | D75: 26.71 | E75: М | F75: =IF(E75="Ж",VLOOKUP(C75,Гонки!$E$2:$P$16,11,FALSE),VLOOKUP(C75,Гонки!$E$2:$P$16,12,FALSE)) -> 81 | G75: Журавлёв Андрей | H75: 1978 | I75: Zhuravljov Andrej | J75: Журавлёв Андрей / Zhuravljov Andrej / 1978 | K75: М | L75: 6 | M75: 93.82716049 | N75: 484.91
A76: =Гонки!$C$4 -> Жук-трейл # 4 Минское Море | B76: =Гонки!$D$4 -> Трейл 25 | C76: Жук-трейл # 4 Минское Море Трейл 25 | D76: 26.71 | E76: М | F76: =IF(E76="Ж",VLOOKUP(C76,Гонки!$E$2:$P$16,11,FALSE),VLOOKUP(C76,Гонки!$E$2:$P$16,12,FALSE)) -> 81 | G76: Ласюк Юрий | H76: 1987 | I76: Lasyuk Yurij | J76: Ласюк Юрий / Lasyuk Yurij / 1987 | K76: М | L76: 7 | M76: 92.59259259 | N76: 478.53
A77: =Гонки!$C$4 -> Жук-трейл # 4 Минское Море | B77: =Гонки!$D$4 -> Трейл 25 | C77: Жук-трейл # 4 Минское Море Трейл 25 | D77: 26.71 | E77: М | F77: =IF(E77="Ж",VLOOKUP(C77,Гонки!$E$2:$P$16,11,FALSE),VLOOKUP(C77,Гонки!$E$2:$P$16,12,FALSE)) -> 81 | G77: Овсиюк Богдан | H77: 1993 | I77: Ovsiyuk Bogdan | J77: Овсиюк Богдан / Ovsiyuk Bogdan / 1993 | K77: М | L77: 8 | M77: 91.35802469 | N77: 472.15
A78: =Гонки!$C$4 -> Жук-трейл # 4 Минское Море | B78: =Гонки!$D$4 -> Трейл 25 | C78: Жук-трейл # 4 Минское Море Трейл 25 | D78: 26.71 | E78: М | F78: =IF(E78="Ж",VLOOKUP(C78,Гонки!$E$2:$P$16,11,FALSE),VLOOKUP(C78,Гонки!$E$2:$P$16,12,FALSE)) -> 81 | G78: Березовский Андрей | H78: 1973 | I78: Berezovskij Andrej | J78: Березовский Андрей / Berezovskij Andrej / 1973 | K78: М | L78: 9 | M78: 90.12345679 | N78: 465.77
A79: =Гонки!$C$4 -> Жук-трейл # 4 Минское Море | B79: =Гонки!$D$4 -> Трейл 25 | C79: Жук-трейл # 4 Минское Море Трейл 25 | D79: 26.71 | E79: М | F79: =IF(E79="Ж",VLOOKUP(C79,Гонки!$E$2:$P$16,11,FALSE),VLOOKUP(C79,Гонки!$E$2:$P$16,12,FALSE)) -> 81 | G79: Скуратович Антон | H79: 1985 | I79: Skuratovich Anton | J79: Скуратович Антон / Skuratovich Anton / 1985 | K79: М | L79: 10 | M79: 88.88888889 | N79: 459.39
A80: =Гонки!$C$4 -> Жук-трейл # 4 Минское Море | B80: =Гонки!$D$4 -> Трейл 25 | C80: Жук-трейл # 4 Минское Море Трейл 25 | D80: 26.71 | E80: М | F80: =IF(E80="Ж",VLOOKUP(C80,Гонки!$E$2:$P$16,11,FALSE),VLOOKUP(C80,Гонки!$E$2:$P$16,12,FALSE)) -> 81 | G80: Солодкин Сергей | H80: 1984 | I80: Solodkin Sergej | J80: Солодкин Сергей / Solodkin Sergej / 1984 | K80: М | L80: 11 | M80: 87.65432099 | N80: 453.01
A81: =Гонки!$C$4 -> Жук-трейл # 4 Минское Море | B81: =Гонки!$D$4 -> Трейл 25 | C81: Жук-трейл # 4 Минское Море Трейл 25 | D81: 26.71 | E81: М | F81: =IF(E81="Ж",VLOOKUP(C81,Гонки!$E$2:$P$16,11,FALSE),VLOOKUP(C81,Гонки!$E$2:$P$16,12,FALSE)) -> 81 | G81: Молочко Александр | H81: 1981 | I81: Molochko Aleksandr | J81: Молочко Александр / Molochko Aleksandr / 1981 | K81: М | L81: 12 | M81: 86.41975309 | N81: 446.63
A82: =Гонки!$C$4 -> Жук-трейл # 4 Минское Море | B82: =Гонки!$D$4 -> Трейл 25 | C82: Жук-трейл # 4 Минское Море Трейл 25 | D82: 26.71 | E82: М | F82: =IF(E82="Ж",VLOOKUP(C82,Гонки!$E$2:$P$16,11,FALSE),VLOOKUP(C82,Гонки!$E$2:$P$16,12,FALSE)) -> 81 | G82: Лукашенок Алексей | H82: 1978 | I82: Lukashenok Aleksej | J82: Лукашенок Алексей / Lukashenok Aleksej / 1978 | K82: М | L82: 13 | M82: 85.18518519 | N82: 440.25
A83: =Гонки!$C$4 -> Жук-трейл # 4 Минское Море | B83: =Гонки!$D$4 -> Трейл 25 | C83: Жук-трейл # 4 Минское Море Трейл 25 | D83: 26.71 | E83: М | F83: =IF(E83="Ж",VLOOKUP(C83,Гонки!$E$2:$P$16,11,FALSE),VLOOKUP(C83,Гонки!$E$2:$P$16,12,FALSE)) -> 81 | G83: Ермохин Максим | H83: 1975 | I83: Ermohin Maksim | J83: Ермохин Максим / Ermohin Maksim / 1975 | K83: М | L83: 14 | M83: 83.95061728 | N83: 433.87
A84: =Гонки!$C$4 -> Жук-трейл # 4 Минское Море | B84: =Гонки!$D$4 -> Трейл 25 | C84: Жук-трейл # 4 Минское Море Трейл 25 | D84: 26.71 | E84: М | F84: =IF(E84="Ж",VLOOKUP(C84,Гонки!$E$2:$P$16,11,FALSE),VLOOKUP(C84,Гонки!$E$2:$P$16,12,FALSE)) -> 81 | G84: Камышкайло Анатолий | H84: 1981 | I84: Kamyshkajlo Anatolij | J84: Камышкайло Анатолий / Kamyshkajlo Anatolij / 1981 | K84: М | L84: 15 | M84: 82.71604938 | N84: 427.49
A85: =Гонки!$C$4 -> Жук-трейл # 4 Минское Море | B85: =Гонки!$D$4 -> Трейл 25 | C85: Жук-трейл # 4 Минское Море Трейл 25 | D85: 26.71 | E85: М | F85: =IF(E85="Ж",VLOOKUP(C85,Гонки!$E$2:$P$16,11,FALSE),VLOOKUP(C85,Гонки!$E$2:$P$16,12,FALSE)) -> 81 | G85: Филитарин Дмитрий | H85: 1987 | I85: Filitarin Dmitrij | J85: Филитарин Дмитрий / Filitarin Dmitrij / 1987 | K85: М | L85: 16 | M85: 81.48148148 | N85: 421.11
A86: =Гонки!$C$4 -> Жук-трейл # 4 Минское Море | B86: =Гонки!$D$4 -> Трейл 25 | C86: Жук-трейл # 4 Минское Море Трейл 25 | D86: 26.71 | E86: М | F86: =IF(E86="Ж",VLOOKUP(C86,Гонки!$E$2:$P$16,11,FALSE),VLOOKUP(C86,Гонки!$E$2:$P$16,12,FALSE)) -> 81 | G86: Храмов Антон | H86: 1991 | I86: Hramov Anton | J86: Храмов Антон / Hramov Anton / 1991 | K86: М | L86: 17 | M86: 80.24691358 | N86: 414.73
A87: =Гонки!$C$4 -> Жук-трейл # 4 Минское Море | B87: =Гонки!$D$4 -> Трейл 25 | C87: Жук-трейл # 4 Минское Море Трейл 25 | D87: 26.71 | E87: М | F87: =IF(E87="Ж",VLOOKUP(C87,Гонки!$E$2:$P$16,11,FALSE),VLOOKUP(C87,Гонки!$E$2:$P$16,12,FALSE)) -> 81 | G87: Тихонов Василий | H87: 1993 | I87: Tihonov Vasilij | J87: Тихонов Василий / Tihonov Vasilij / 1993 | K87: М | L87: 18 | M87: 79.01234568 | N87: 408.35
A88: =Гонки!$C$4 -> Жук-трейл # 4 Минское Море | B88: =Гонки!$D$4 -> Трейл 25 | C88: Жук-трейл # 4 Минское Море Трейл 25 | D88: 26.71 | E88: М | F88: =IF(E88="Ж",VLOOKUP(C88,Гонки!$E$2:$P$16,11,FALSE),VLOOKUP(C88,Гонки!$E$2:$P$16,12,FALSE)) -> 81 | G88: Борисевич Леонид | H88: 1969 | I88: Borisevich Leonid | J88: Борисевич Леонид / Borisevich Leonid / 1969 | K88: М | L88: 19 | M88: 77.77777778 | N88: 401.97
A89: =Гонки!$C$4 -> Жук-трейл # 4 Минское Море | B89: =Гонки!$D$4 -> Трейл 25 | C89: Жук-трейл # 4 Минское Море Трейл 25 | D89: 26.71 | E89: М | F89: =IF(E89="Ж",VLOOKUP(C89,Гонки!$E$2:$P$16,11,FALSE),VLOOKUP(C89,Гонки!$E$2:$P$16,12,FALSE)) -> 81 | G89: Остаповец Евгений | H89: 1990 | I89: Ostapovets Evgenij | J89: Остаповец Евгений / Ostapovets Evgenij / 1990 | K89: М | L89: 20 | M89: 76.54320988 | N89: 395.59
A90: =Гонки!$C$4 -> Жук-трейл # 4 Минское Море | B90: =Гонки!$D$4 -> Трейл 25 | C90: Жук-трейл # 4 Минское Море Трейл 25 | D90: 26.71 | E90: М | F90: =IF(E90="Ж",VLOOKUP(C90,Гонки!$E$2:$P$16,11,FALSE),VLOOKUP(C90,Гонки!$E$2:$P$16,12,FALSE)) -> 81 | G90: Лесковец Александр | H90: 1990 | I90: Leskovets Aleksandr | J90: Лесковец Александр / Leskovets Aleksandr / 1990 | K90: М | L90: 21 | M90: 75.30864198 | N90: 389.21
A91: =Гонки!$C$4 -> Жук-трейл # 4 Минское Море | B91: =Гонки!$D$4 -> Трейл 25 | C91: Жук-трейл # 4 Минское Море Трейл 25 | D91: 26.71 | E91: М | F91: =IF(E91="Ж",VLOOKUP(C91,Гонки!$E$2:$P$16,11,FALSE),VLOOKUP(C91,Гонки!$E$2:$P$16,12,FALSE)) -> 81 | G91: Тривашкевич Евгений | H91: 1996 | I91: Trivashkevich Evgenij | J91: Тривашкевич Евгений / Trivashkevich Evgenij / 1996 | K91: М | L91: 22 | M91: 74.07407407 | N91: 382.83
A92: =Гонки!$C$4 -> Жук-трейл # 4 Минское Море | B92: =Гонки!$D$4 -> Трейл 25 | C92: Жук-трейл # 4 Минское Море Трейл 25 | D92: 26.71 | E92: М | F92: =IF(E92="Ж",VLOOKUP(C92,Гонки!$E$2:$P$16,11,FALSE),VLOOKUP(C92,Гонки!$E$2:$P$16,12,FALSE)) -> 81 | G92: Селютин Владимир | H92: 1990 | I92: Selyutin Vladimir | J92: Селютин Владимир / Selyutin Vladimir / 1990 | K92: М | L92: 23 | M92: 72.83950617 | N92: 376.45
A93: =Гонки!$C$4 -> Жук-трейл # 4 Минское Море | B93: =Гонки!$D$4 -> Трейл 25 | C93: Жук-трейл # 4 Минское Море Трейл 25 | D93: 26.71 | E93: М | F93: =IF(E93="Ж",VLOOKUP(C93,Гонки!$E$2:$P$16,11,FALSE),VLOOKUP(C93,Гонки!$E$2:$P$16,12,FALSE)) -> 81 | G93: Остапов Владимир | H93: 1977 | I93: Ostapov Vladimir | J93: Остапов Владимир / Ostapov Vladimir / 1977 | K93: М | L93: 24 | M93: 71.60493827 | N93: 370.07
A94: =Гонки!$C$4 -> Жук-трейл # 4 Минское Море | B94: =Гонки!$D$4 -> Трейл 25 | C94: Жук-трейл # 4 Минское Море Трейл 25 | D94: 26.71 | E94: М | F94: =IF(E94="Ж",VLOOKUP(C94,Гонки!$E$2:$P$16,11,FALSE),VLOOKUP(C94,Гонки!$E$2:$P$16,12,FALSE)) -> 81 | G94: Маркевич Денис | H94: 1981 | I94: Markevich Denis | J94: Маркевич Денис / Markevich Denis / 1981 | K94: М | L94: 25 | M94: 70.37037037 | N94: 363.69
A95: =Гонки!$C$4 -> Жук-трейл # 4 Минское Море | B95: =Гонки!$D$4 -> Трейл 25 | C95: Жук-трейл # 4 Минское Море Трейл 25 | D95: 26.71 | E95: М | F95: =IF(E95="Ж",VLOOKUP(C95,Гонки!$E$2:$P$16,11,FALSE),VLOOKUP(C95,Гонки!$E$2:$P$16,12,FALSE)) -> 81 | G95: Дельянов Одиссей | H95: 1979 | I95: Delyanov Odissej | J95: Дельянов Одиссей / Delyanov Odissej / 1979 | K95: М | L95: 26 | M95: 69.13580247 | N95: 357.31
A96: =Гонки!$C$4 -> Жук-трейл # 4 Минское Море | B96: =Гонки!$D$4 -> Трейл 25 | C96: Жук-трейл # 4 Минское Море Трейл 25 | D96: 26.71 | E96: М | F96: =IF(E96="Ж",VLOOKUP(C96,Гонки!$E$2:$P$16,11,FALSE),VLOOKUP(C96,Гонки!$E$2:$P$16,12,FALSE)) -> 81 | G96: Орловский Павел | H96: 1989 | I96: Orlovskij Pavel | J96: Орловский Павел / Orlovskij Pavel / 1989 | K96: М | L96: 27 | M96: 67.90123457 | N96: 350.93
A97: =Гонки!$C$4 -> Жук-трейл # 4 Минское Море | B97: =Гонки!$D$4 -> Трейл 25 | C97: Жук-трейл # 4 Минское Море Трейл 25 | D97: 26.71 | E97: М | F97: =IF(E97="Ж",VLOOKUP(C97,Гонки!$E$2:$P$16,11,FALSE),VLOOKUP(C97,Гонки!$E$2:$P$16,12,FALSE)) -> 81 | G97: Попадюк Игорь | H97: 1982 | I97: Popadyuk Igor | J97: Попадюк Игорь / Popadyuk Igor / 1982 | K97: М | L97: 28 | M97: 66.66666667 | N97: 344.54
A98: =Гонки!$C$4 -> Жук-трейл # 4 Минское Море | B98: =Гонки!$D$4 -> Трейл 25 | C98: Жук-трейл # 4 Минское Море Трейл 25 | D98: 26.71 | E98: М | F98: =IF(E98="Ж",VLOOKUP(C98,Гонки!$E$2:$P$16,11,FALSE),VLOOKUP(C98,Гонки!$E$2:$P$16,12,FALSE)) -> 81 | G98: Таран Виталий | H98: 1983 | I98: Taran Vitalij | J98: Таран Виталий / Taran Vitalij / 1983 | K98: М | L98: 29 | M98: 65.43209877 | N98: 338.16
A99: =Гонки!$C$4 -> Жук-трейл # 4 Минское Море | B99: =Гонки!$D$4 -> Трейл 25 | C99: Жук-трейл # 4 Минское Море Трейл 25 | D99: 26.71 | E99: М | F99: =IF(E99="Ж",VLOOKUP(C99,Гонки!$E$2:$P$16,11,FALSE),VLOOKUP(C99,Гонки!$E$2:$P$16,12,FALSE)) -> 81 | G99: Алексеев Алексей | H99: 1980 | I99: Alekseev Aleksej | J99: Алексеев Алексей / Alekseev Aleksej / 1980 | K99: М | L99: 30 | M99: 64.19753086 | N99: 331.78
A100: =Гонки!$C$4 -> Жук-трейл # 4 Минское Море | B100: =Гонки!$D$4 -> Трейл 25 | C100: Жук-трейл # 4 Минское Море Трейл 25 | D100: 26.71 | E100: М | F100: =IF(E100="Ж",VLOOKUP(C100,Гонки!$E$2:$P$16,11,FALSE),VLOOKUP(C100,Гонки!$E$2:$P$16,12,FALSE)) -> 81 | G100: Шклярик Олег | H100: 1970 | I100: Shklyarik Oleg | J100: Шклярик Олег / Shklyarik Oleg / 1970 | K100: М | L100: 31 | M100: 62.96296296 | N100: 325.4
A101: =Гонки!$C$4 -> Жук-трейл # 4 Минское Море | B101: =Гонки!$D$4 -> Трейл 25 | C101: Жук-трейл # 4 Минское Море Трейл 25 | D101: 26.71 | E101: М | F101: =IF(E101="Ж",VLOOKUP(C101,Гонки!$E$2:$P$16,11,FALSE),VLOOKUP(C101,Гонки!$E$2:$P$16,12,FALSE)) -> 81 | G101: Бокша Сергей | H101: 1988 | I101: Boksha Sergej | J101: Бокша Сергей / Boksha Sergej / 1988 | K101: М | L101: 32 | M101: 61.72839506 | N101: 319.02
A102: =Гонки!$C$4 -> Жук-трейл # 4 Минское Море | B102: =Гонки!$D$4 -> Трейл 25 | C102: Жук-трейл # 4 Минское Море Трейл 25 | D102: 26.71 | E102: М | F102: =IF(E102="Ж",VLOOKUP(C102,Гонки!$E$2:$P$16,11,FALSE),VLOOKUP(C102,Гонки!$E$2:$P$16,12,FALSE)) -> 81 | G102: Свечников Антон | H102: 1991 | I102: Svechnikov Anton | J102: Свечников Антон / Svechnikov Anton / 1991 | K102: М | L102: 33 | M102: 60.49382716 | N102: 312.64
A103: =Гонки!$C$4 -> Жук-трейл # 4 Минское Море | B103: =Гонки!$D$4 -> Трейл 25 | C103: Жук-трейл # 4 Минское Море Трейл 25 | D103: 26.71 | E103: М | F103: =IF(E103="Ж",VLOOKUP(C103,Гонки!$E$2:$P$16,11,FALSE),VLOOKUP(C103,Гонки!$E$2:$P$16,12,FALSE)) -> 81 | G103: Львовский Андрей | H103: 1991 | I103: Lvovskij Andrej | J103: Львовский Андрей / Lvovskij Andrej / 1991 | K103: М | L103: 34 | M103: 59.25925926 | N103: 306.26
A104: =Гонки!$C$4 -> Жук-трейл # 4 Минское Море | B104: =Гонки!$D$4 -> Трейл 25 | C104: Жук-трейл # 4 Минское Море Трейл 25 | D104: 26.71 | E104: М | F104: =IF(E104="Ж",VLOOKUP(C104,Гонки!$E$2:$P$16,11,FALSE),VLOOKUP(C104,Гонки!$E$2:$P$16,12,FALSE)) -> 81 | G104: Марчук Александр | H104: 1986 | I104: Marchuk Aleksandr | J104: Марчук Александр / Marchuk Aleksandr / 1986 | K104: М | L104: 35 | M104: 58.02469136 | N104: 299.88
A105: =Гонки!$C$4 -> Жук-трейл # 4 Минское Море | B105: =Гонки!$D$4 -> Трейл 25 | C105: Жук-трейл # 4 Минское Море Трейл 25 | D105: 26.71 | E105: М | F105: =IF(E105="Ж",VLOOKUP(C105,Гонки!$E$2:$P$16,11,FALSE),VLOOKUP(C105,Гонки!$E$2:$P$16,12,FALSE)) -> 81 | G105: Веремейчик Юрий | H105: 1979 | I105: Veremejchik Yurij | J105: Веремейчик Юрий / Veremejchik Yurij / 1979 | K105: М | L105: 36 | M105: 56.79012346 | N105: 293.5
A106: =Гонки!$C$4 -> Жук-трейл # 4 Минское Море | B106: =Гонки!$D$4 -> Трейл 25 | C106: Жук-трейл # 4 Минское Море Трейл 25 | D106: 26.71 | E106: М | F106: =IF(E106="Ж",VLOOKUP(C106,Гонки!$E$2:$P$16,11,FALSE),VLOOKUP(C106,Гонки!$E$2:$P$16,12,FALSE)) -> 81 | G106: Жданович Андрей | H106: 1973 | I106: Zhdanovich Andrej | J106: Жданович Андрей / Zhdanovich Andrej / 1973 | K106: М | L106: 37 | M106: 55.55555556 | N106: 287.12
A107: =Гонки!$C$4 -> Жук-трейл # 4 Минское Море | B107: =Гонки!$D$4 -> Трейл 25 | C107: Жук-трейл # 4 Минское Море Трейл 25 | D107: 26.71 | E107: М | F107: =IF(E107="Ж",VLOOKUP(C107,Гонки!$E$2:$P$16,11,FALSE),VLOOKUP(C107,Гонки!$E$2:$P$16,12,FALSE)) -> 81 | G107: Федорович Николай | H107: 1959 | I107: Fedorovich Nikolaj | J107: Федорович Николай / Fedorovich Nikolaj / 1959 | K107: М | L107: 38 | M107: 54.32098765 | N107: 280.74
A108: =Гонки!$C$4 -> Жук-трейл # 4 Минское Море | B108: =Гонки!$D$4 -> Трейл 25 | C108: Жук-трейл # 4 Минское Море Трейл 25 | D108: 26.71 | E108: М | F108: =IF(E108="Ж",VLOOKUP(C108,Гонки!$E$2:$P$16,11,FALSE),VLOOKUP(C108,Гонки!$E$2:$P$16,12,FALSE)) -> 81 | G108: Коровец Богдан | H108: 1976 | I108: Korovets Bogdan | J108: Коровец Богдан / Korovets Bogdan / 1976 | K108: М | L108: 39 | M108: 53.08641975 | N108: 274.36
A109: =Гонки!$C$4 -> Жук-трейл # 4 Минское Море | B109: =Гонки!$D$4 -> Трейл 25 | C109: Жук-трейл # 4 Минское Море Трейл 25 | D109: 26.71 | E109: М | F109: =IF(E109="Ж",VLOOKUP(C109,Гонки!$E$2:$P$16,11,FALSE),VLOOKUP(C109,Гонки!$E$2:$P$16,12,FALSE)) -> 81 | G109: Заяц Александр | H109: 1978 | I109: Zayats Aleksandr | J109: Заяц Александр / Zayats Aleksandr / 1978 | K109: М | L109: 40 | M109: 51.85185185 | N109: 267.98
A110: =Гонки!$C$4 -> Жук-трейл # 4 Минское Море | B110: =Гонки!$D$4 -> Трейл 25 | C110: Жук-трейл # 4 Минское Море Трейл 25 | D110: 26.71 | E110: М | F110: =IF(E110="Ж",VLOOKUP(C110,Гонки!$E$2:$P$16,11,FALSE),VLOOKUP(C110,Гонки!$E$2:$P$16,12,FALSE)) -> 81 | G110: Славинский Дмитрий | H110: 1986 | I110: Slavinskij Dmitrij | J110: Славинский Дмитрий / Slavinskij Dmitrij / 1986 | K110: М | L110: 41 | M110: 50.61728395 | N110: 261.6
A111: =Гонки!$C$4 -> Жук-трейл # 4 Минское Море | B111: =Гонки!$D$4 -> Трейл 25 | C111: Жук-трейл # 4 Минское Море Трейл 25 | D111: 26.71 | E111: М | F111: =IF(E111="Ж",VLOOKUP(C111,Гонки!$E$2:$P$16,11,FALSE),VLOOKUP(C111,Гонки!$E$2:$P$16,12,FALSE)) -> 81 | G111: Симонов Вадим | H111: 1985 | I111: Simonov Vadim | J111: Симонов Вадим / Simonov Vadim / 1985 | K111: М | L111: 42 | M111: 49.38271605 | N111: 255.22
A112: =Гонки!$C$4 -> Жук-трейл # 4 Минское Море | B112: =Гонки!$D$4 -> Трейл 25 | C112: Жук-трейл # 4 Минское Море Трейл 25 | D112: 26.71 | E112: М | F112: =IF(E112="Ж",VLOOKUP(C112,Гонки!$E$2:$P$16,11,FALSE),VLOOKUP(C112,Гонки!$E$2:$P$16,12,FALSE)) -> 81 | G112: Драгун Борис | H112: 1970 | I112: Dragun Boris | J112: Драгун Борис / Dragun Boris / 1970 | K112: М | L112: 43 | M112: 48.14814815 | N112: 248.84
A113: =Гонки!$C$4 -> Жук-трейл # 4 Минское Море | B113: =Гонки!$D$4 -> Трейл 25 | C113: Жук-трейл # 4 Минское Море Трейл 25 | D113: 26.71 | E113: М | F113: =IF(E113="Ж",VLOOKUP(C113,Гонки!$E$2:$P$16,11,FALSE),VLOOKUP(C113,Гонки!$E$2:$P$16,12,FALSE)) -> 81 | G113: Подрез Ярослав | H113: 1996 | I113: Podrez Yaroslav | J113: Подрез Ярослав / Podrez Yaroslav / 1996 | K113: М | L113: 44 | M113: 46.91358025 | N113: 242.46
A114: =Гонки!$C$4 -> Жук-трейл # 4 Минское Море | B114: =Гонки!$D$4 -> Трейл 25 | C114: Жук-трейл # 4 Минское Море Трейл 25 | D114: 26.71 | E114: М | F114: =IF(E114="Ж",VLOOKUP(C114,Гонки!$E$2:$P$16,11,FALSE),VLOOKUP(C114,Гонки!$E$2:$P$16,12,FALSE)) -> 81 | G114: Кожемякин Владимир | H114: 1970 | I114: Kozhemyakin Vladimir | J114: Кожемякин Владимир / Kozhemyakin Vladimir / 1970 | K114: М | L114: 45 | M114: 45.67901235 | N114: 236.08
A115: =Гонки!$C$4 -> Жук-трейл # 4 Минское Море | B115: =Гонки!$D$4 -> Трейл 25 | C115: Жук-трейл # 4 Минское Море Трейл 25 | D115: 26.71 | E115: М | F115: =IF(E115="Ж",VLOOKUP(C115,Гонки!$E$2:$P$16,11,FALSE),VLOOKUP(C115,Гонки!$E$2:$P$16,12,FALSE)) -> 81 | G115: Лавник Игорь | H115: 1983 | I115: Lavnik Igor | J115: Лавник Игорь / Lavnik Igor / 1983 | K115: М | L115: 46 | M115: 44.44444444 | N115: 229.7
A116: =Гонки!$C$4 -> Жук-трейл # 4 Минское Море | B116: =Гонки!$D$4 -> Трейл 25 | C116: Жук-трейл # 4 Минское Море Трейл 25 | D116: 26.71 | E116: М | F116: =IF(E116="Ж",VLOOKUP(C116,Гонки!$E$2:$P$16,11,FALSE),VLOOKUP(C116,Гонки!$E$2:$P$16,12,FALSE)) -> 81 | G116: Селиванов Алексавндр | H116: 1970 | I116: Selivanov Aleksavndr | J116: Селиванов Алексавндр / Selivanov Aleksavndr / 1970 | K116: М | L116: 47 | M116: 43.20987654 | N116: 223.32
A117: =Гонки!$C$4 -> Жук-трейл # 4 Минское Море | B117: =Гонки!$D$4 -> Трейл 25 | C117: Жук-трейл # 4 Минское Море Трейл 25 | D117: 26.71 | E117: М | F117: =IF(E117="Ж",VLOOKUP(C117,Гонки!$E$2:$P$16,11,FALSE),VLOOKUP(C117,Гонки!$E$2:$P$16,12,FALSE)) -> 81 | G117: Писаренко Андрей | H117: 1957 | I117: Pisarenko Andrej | J117: Писаренко Андрей / Pisarenko Andrej / 1957 | K117: М | L117: 48 | M117: 41.97530864 | N117: 216.94
A118: =Гонки!$C$4 -> Жук-трейл # 4 Минское Море | B118: =Гонки!$D$4 -> Трейл 25 | C118: Жук-трейл # 4 Минское Море Трейл 25 | D118: 26.71 | E118: М | F118: =IF(E118="Ж",VLOOKUP(C118,Гонки!$E$2:$P$16,11,FALSE),VLOOKUP(C118,Гонки!$E$2:$P$16,12,FALSE)) -> 81 | G118: Глушаков Сергей | H118: 1958 | I118: Glushakov Sergej | J118: Глушаков Сергей / Glushakov Sergej / 1958 | K118: М | L118: 49 | M118: 40.74074074 | N118: 210.56
A119: =Гонки!$C$4 -> Жук-трейл # 4 Минское Море | B119: =Гонки!$D$4 -> Трейл 25 | C119: Жук-трейл # 4 Минское Море Трейл 25 | D119: 26.71 | E119: М | F119: =IF(E119="Ж",VLOOKUP(C119,Гонки!$E$2:$P$16,11,FALSE),VLOOKUP(C119,Гонки!$E$2:$P$16,12,FALSE)) -> 81 | G119: Кожан Михаил | H119: 1946 | I119: Kozhan Mihail | J119: Кожан Михаил / Kozhan Mihail / 1946 | K119: М | L119: 50 | M119: 39.50617284 | N119: 204.17
A120: =Гонки!$C$4 -> Жук-трейл # 4 Минское Море | B120: =Гонки!$D$4 -> Трейл 25 | C120: Жук-трейл # 4 Минское Море Трейл 25 | D120: 26.71 | E120: М | F120: =IF(E120="Ж",VLOOKUP(C120,Гонки!$E$2:$P$16,11,FALSE),VLOOKUP(C120,Гонки!$E$2:$P$16,12,FALSE)) -> 81 | G120: Илатовский Дмитрий | H120: 1974 | I120: Ilatovskij Dmitrij | J120: Илатовский Дмитрий / Ilatovskij Dmitrij / 1974 | K120: М | L120: 51 | M120: 38.27160494 | N120: 197.79
A121: =Гонки!$C$4 -> Жук-трейл # 4 Минское Море | B121: =Гонки!$D$4 -> Трейл 25 | C121: Жук-трейл # 4 Минское Море Трейл 25 | D121: 26.71 | E121: М | F121: =IF(E121="Ж",VLOOKUP(C121,Гонки!$E$2:$P$16,11,FALSE),VLOOKUP(C121,Гонки!$E$2:$P$16,12,FALSE)) -> 81 | G121: Дегтярев Сергей | H121: 1983 | I121: Degtyarev Sergej | J121: Дегтярев Сергей / Degtyarev Sergej / 1983 | K121: М | L121: 52 | M121: 37.03703704 | N121: 191.41
A122: =Гонки!$C$4 -> Жук-трейл # 4 Минское Море | B122: =Гонки!$D$4 -> Трейл 25 | C122: Жук-трейл # 4 Минское Море Трейл 25 | D122: 26.71 | E122: М | F122: =IF(E122="Ж",VLOOKUP(C122,Гонки!$E$2:$P$16,11,FALSE),VLOOKUP(C122,Гонки!$E$2:$P$16,12,FALSE)) -> 81 | G122: Брытько Роман | H122: 1995 | I122: Brytko Roman | J122: Брытько Роман / Brytko Roman / 1995 | K122: М | L122: 53 | M122: 35.80246914 | N122: 185.03
A123: =Гонки!$C$4 -> Жук-трейл # 4 Минское Море | B123: =Гонки!$D$4 -> Трейл 25 | C123: Жук-трейл # 4 Минское Море Трейл 25 | D123: 26.71 | E123: М | F123: =IF(E123="Ж",VLOOKUP(C123,Гонки!$E$2:$P$16,11,FALSE),VLOOKUP(C123,Гонки!$E$2:$P$16,12,FALSE)) -> 81 | G123: Кохан Виталий | H123: 1982 | I123: Kohan Vitalij | J123: Кохан Виталий / Kohan Vitalij / 1982 | K123: М | L123: 54 | M123: 34.56790123 | N123: 178.65
A124: =Гонки!$C$4 -> Жук-трейл # 4 Минское Море | B124: =Гонки!$D$4 -> Трейл 25 | C124: Жук-трейл # 4 Минское Море Трейл 25 | D124: 26.71 | E124: М | F124: =IF(E124="Ж",VLOOKUP(C124,Гонки!$E$2:$P$16,11,FALSE),VLOOKUP(C124,Гонки!$E$2:$P$16,12,FALSE)) -> 81 | G124: Шепетько Сергей | H124: 1987 | I124: Shepetko Sergej | J124: Шепетько Сергей / Shepetko Sergej / 1987 | K124: М | L124: 55 | M124: 33.33333333 | N124: 172.27
A125: =Гонки!$C$4 -> Жук-трейл # 4 Минское Море | B125: =Гонки!$D$4 -> Трейл 25 | C125: Жук-трейл # 4 Минское Море Трейл 25 | D125: 26.71 | E125: М | F125: =IF(E125="Ж",VLOOKUP(C125,Гонки!$E$2:$P$16,11,FALSE),VLOOKUP(C125,Гонки!$E$2:$P$16,12,FALSE)) -> 81 | G125: Ермак Алексей | H125: 1984 | I125: Ermak Aleksej | J125: Ермак Алексей / Ermak Aleksej / 1984 | K125: М | L125: 56 | M125: 32.09876543 | N125: 165.89
A126: =Гонки!$C$4 -> Жук-трейл # 4 Минское Море | B126: =Гонки!$D$4 -> Трейл 25 | C126: Жук-трейл # 4 Минское Море Трейл 25 | D126: 26.71 | E126: М | F126: =IF(E126="Ж",VLOOKUP(C126,Гонки!$E$2:$P$16,11,FALSE),VLOOKUP(C126,Гонки!$E$2:$P$16,12,FALSE)) -> 81 | G126: Шило Руслан | H126: 1993 | I126: Shilo Ruslan | J126: Шило Руслан / Shilo Ruslan / 1993 | K126: М | L126: 57 | M126: 30.86419753 | N126: 159.51
A127: =Гонки!$C$4 -> Жук-трейл # 4 Минское Море | B127: =Гонки!$D$4 -> Трейл 25 | C127: Жук-трейл # 4 Минское Море Трейл 25 | D127: 26.71 | E127: М | F127: =IF(E127="Ж",VLOOKUP(C127,Гонки!$E$2:$P$16,11,FALSE),VLOOKUP(C127,Гонки!$E$2:$P$16,12,FALSE)) -> 81 | G127: Шапелевич Максим | H127: 1987 | I127: Shapelevich Maksim | J127: Шапелевич Максим / Shapelevich Maksim / 1987 | K127: М | L127: 58 | M127: 29.62962963 | N127: 153.13
A128: =Гонки!$C$4 -> Жук-трейл # 4 Минское Море | B128: =Гонки!$D$4 -> Трейл 25 | C128: Жук-трейл # 4 Минское Море Трейл 25 | D128: 26.71 | E128: М | F128: =IF(E128="Ж",VLOOKUP(C128,Гонки!$E$2:$P$16,11,FALSE),VLOOKUP(C128,Гонки!$E$2:$P$16,12,FALSE)) -> 81 | G128: Якубовский Игорь | H128: 1984 | I128: Yakubovskij Igor | J128: Якубовский Игорь / Yakubovskij Igor / 1984 | K128: М | L128: 59 | M128: 28.39506173 | N128: 146.75
A129: =Гонки!$C$4 -> Жук-трейл # 4 Минское Море | B129: =Гонки!$D$4 -> Трейл 25 | C129: Жук-трейл # 4 Минское Море Трейл 25 | D129: 26.71 | E129: М | F129: =IF(E129="Ж",VLOOKUP(C129,Гонки!$E$2:$P$16,11,FALSE),VLOOKUP(C129,Гонки!$E$2:$P$16,12,FALSE)) -> 81 | G129: Жучков Алексей | H129: 1985 | I129: Zhuchkov Aleksej | J129: Жучков Алексей / Zhuchkov Aleksej / 1985 | K129: М | L129: 60 | M129: 27.16049383 | N129: 140.37
A130: =Гонки!$C$4 -> Жук-трейл # 4 Минское Море | B130: =Гонки!$D$4 -> Трейл 25 | C130: =CONCATENATE(A130," ",B130) -> Жук-трейл # 4 Минское Море Трейл 25 | D130: =VLOOKUP(C130,Список_гонок,10,FALSE) -> 26.71 | E130: М | F130: =IF(E130="Ж",VLOOKUP(C130,Гонки!$E$2:$P$16,11,FALSE),VLOOKUP(C130,Гонки!$E$2:$P$16,12,FALSE)) -> 81 | G130: Харитонов Иван | H130: 1973 | I130: =Translit(G130) -> Haritonov Ivan | J130: =CONCATENATE(G130," / ",I130," / ",H130) -> Харитонов Иван / Haritonov Ivan / 1973 | K130: =E130 -> М | L130: 61 | M130: =100-((L130-1)/F130)*100 -> 25.92592593 | N130: =ROUND(SQRT(D130)*M130,2) -> 133.99
A131: =Гонки!$C$4 -> Жук-трейл # 4 Минское Море | B131: =Гонки!$D$4 -> Трейл 25 | C131: Жук-трейл # 4 Минское Море Трейл 25 | D131: 26.71 | E131: М | F131: =IF(E131="Ж",VLOOKUP(C131,Гонки!$E$2:$P$16,11,FALSE),VLOOKUP(C131,Гонки!$E$2:$P$16,12,FALSE)) -> 81 | G131: Тюев Даниил | H131: 1977 | I131: Tyuev Daniil | J131: Тюев Даниил / Tyuev Daniil / 1977 | K131: М | L131: 62 | M131: 24.69135802 | N131: 127.61
A132: =Гонки!$C$4 -> Жук-трейл # 4 Минское Море | B132: =Гонки!$D$4 -> Трейл 25 | C132: Жук-трейл # 4 Минское Море Трейл 25 | D132: 26.71 | E132: М | F132: =IF(E132="Ж",VLOOKUP(C132,Гонки!$E$2:$P$16,11,FALSE),VLOOKUP(C132,Гонки!$E$2:$P$16,12,FALSE)) -> 81 | G132: Иолтуховский Владислав | H132: 1971 | I132: Ioltuhovskij Vladislav | J132: Иолтуховский Владислав / Ioltuhovskij Vladislav / 1971 | K132: М | L132: 63 | M132: 23.45679012 | N132: 121.23
A133: =Гонки!$C$4 -> Жук-трейл # 4 Минское Море | B133: =Гонки!$D$4 -> Трейл 25 | C133: Жук-трейл # 4 Минское Море Трейл 25 | D133: 26.71 | E133: М | F133: =IF(E133="Ж",VLOOKUP(C133,Гонки!$E$2:$P$16,11,FALSE),VLOOKUP(C133,Гонки!$E$2:$P$16,12,FALSE)) -> 81 | G133: Херзен Андрей | H133: 1984 | I133: Herzen Andrej | J133: Херзен Андрей / Herzen Andrej / 1984 | K133: М | L133: 64 | M133: 22.22222222 | N133: 114.85
A134: =Гонки!$C$4 -> Жук-трейл # 4 Минское Море | B134: =Гонки!$D$4 -> Трейл 25 | C134: Жук-трейл # 4 Минское Море Трейл 25 | D134: 26.71 | E134: М | F134: =IF(E134="Ж",VLOOKUP(C134,Гонки!$E$2:$P$16,11,FALSE),VLOOKUP(C134,Гонки!$E$2:$P$16,12,FALSE)) -> 81 | G134: Мурашов Владимир | H134: 1983 | I134: Murashov Vladimir | J134: Мурашов Владимир / Murashov Vladimir / 1983 | K134: М | L134: 65 | M134: 20.98765432 | N134: 108.47
A135: =Гонки!$C$4 -> Жук-трейл # 4 Минское Море | B135: =Гонки!$D$4 -> Трейл 25 | C135: Жук-трейл # 4 Минское Море Трейл 25 | D135: 26.71 | E135: М | F135: =IF(E135="Ж",VLOOKUP(C135,Гонки!$E$2:$P$16,11,FALSE),VLOOKUP(C135,Гонки!$E$2:$P$16,12,FALSE)) -> 81 | G135: Михно Борис | H135: 1982 | I135: Mihno Boris | J135: Михно Борис / Mihno Boris / 1982 | K135: М | L135: 66 | M135: 19.75308642 | N135: 102.09
A136: =Гонки!$C$4 -> Жук-трейл # 4 Минское Море | B136: =Гонки!$D$5 -> Трейл 16 | C136: Жук-трейл # 4 Минское Море Трейл 16 | D136: 19.14 | E136: Ж | F136: =IF(E136="Ж",VLOOKUP(C136,Гонки!$E$2:$P$16,11,FALSE),VLOOKUP(C136,Гонки!$E$2:$P$16,12,FALSE)) -> 27 | G136: Милинкевич Елена | H136: 1977 | I136: Milinkevich Elena | J136: Милинкевич Елена / Milinkevich Elena / 1977 | K136: Ж | L136: 1 | M136: 100 | N136: 437.49
A137: =Гонки!$C$4 -> Жук-трейл # 4 Минское Море | B137: =Гонки!$D$5 -> Трейл 16 | C137: Жук-трейл # 4 Минское Море Трейл 16 | D137: 19.14 | E137: Ж | F137: =IF(E137="Ж",VLOOKUP(C137,Гонки!$E$2:$P$16,11,FALSE),VLOOKUP(C137,Гонки!$E$2:$P$16,12,FALSE)) -> 27 | G137: Казакевич Ирина | H137: 1969 | I137: Kazakevich Irina | J137: Казакевич Ирина / Kazakevich Irina / 1969 | K137: Ж | L137: 2 | M137: 96.2962963 | N137: 421.29
A138: =Гонки!$C$4 -> Жук-трейл # 4 Минское Море | B138: =Гонки!$D$5 -> Трейл 16 | C138: Жук-трейл # 4 Минское Море Трейл 16 | D138: 19.14 | E138: Ж | F138: =IF(E138="Ж",VLOOKUP(C138,Гонки!$E$2:$P$16,11,FALSE),VLOOKUP(C138,Гонки!$E$2:$P$16,12,FALSE)) -> 27 | G138: Журавлёва Оксана | H138: 1980 | I138: Zhuravljova Oksana | J138: Журавлёва Оксана / Zhuravljova Oksana / 1980 | K138: Ж | L138: 3 | M138: 92.59259259 | N138: 405.09
A139: =Гонки!$C$4 -> Жук-трейл # 4 Минское Море | B139: =Гонки!$D$5 -> Трейл 16 | C139: Жук-трейл # 4 Минское Море Трейл 16 | D139: 19.14 | E139: Ж | F139: =IF(E139="Ж",VLOOKUP(C139,Гонки!$E$2:$P$16,11,FALSE),VLOOKUP(C139,Гонки!$E$2:$P$16,12,FALSE)) -> 27 | G139: Танасейчук Анна | H139: 1983 | I139: Tanasejchuk Anna | J139: Танасейчук Анна / Tanasejchuk Anna / 1983 | K139: Ж | L139: 4 | M139: 88.88888889 | N139: 388.88
A140: =Гонки!$C$4 -> Жук-трейл # 4 Минское Море | B140: =Гонки!$D$5 -> Трейл 16 | C140: Жук-трейл # 4 Минское Море Трейл 16 | D140: 19.14 | E140: Ж | F140: =IF(E140="Ж",VLOOKUP(C140,Гонки!$E$2:$P$16,11,FALSE),VLOOKUP(C140,Гонки!$E$2:$P$16,12,FALSE)) -> 27 | G140: Пухаева Светлана | H140: 1980 | I140: Puhaeva Svetlana | J140: Пухаева Светлана / Puhaeva Svetlana / 1980 | K140: Ж | L140: 5 | M140: 85.18518519 | N140: 372.68
A141: =Гонки!$C$4 -> Жук-трейл # 4 Минское Море | B141: =Гонки!$D$5 -> Трейл 16 | C141: Жук-трейл # 4 Минское Море Трейл 16 | D141: 19.14 | E141: Ж | F141: =IF(E141="Ж",VLOOKUP(C141,Гонки!$E$2:$P$16,11,FALSE),VLOOKUP(C141,Гонки!$E$2:$P$16,12,FALSE)) -> 27 | G141: Ямбушева Катерина | H141: 1987 | I141: Yambusheva Katerina | J141: Ямбушева Катерина / Yambusheva Katerina / 1987 | K141: Ж | L141: 6 | M141: 81.48148148 | N141: 356.48
A142: =Гонки!$C$4 -> Жук-трейл # 4 Минское Море | B142: =Гонки!$D$5 -> Трейл 16 | C142: Жук-трейл # 4 Минское Море Трейл 16 | D142: 19.14 | E142: Ж | F142: =IF(E142="Ж",VLOOKUP(C142,Гонки!$E$2:$P$16,11,FALSE),VLOOKUP(C142,Гонки!$E$2:$P$16,12,FALSE)) -> 27 | G142: Едомская Вольга | H142: 1987 | I142: Edomskaya Volga | J142: Едомская Вольга / Edomskaya Volga / 1987 | K142: Ж | L142: 7 | M142: 77.77777778 | N142: 340.27
A143: =Гонки!$C$4 -> Жук-трейл # 4 Минское Море | B143: =Гонки!$D$5 -> Трейл 16 | C143: Жук-трейл # 4 Минское Море Трейл 16 | D143: 19.14 | E143: Ж | F143: =IF(E143="Ж",VLOOKUP(C143,Гонки!$E$2:$P$16,11,FALSE),VLOOKUP(C143,Гонки!$E$2:$P$16,12,FALSE)) -> 27 | G143: Сикорская Настя | H143: 1983 | I143: Sikorskaya Nastya | J143: Сикорская Настя / Sikorskaya Nastya / 1983 | K143: Ж | L143: 8 | M143: 74.07407407 | N143: 324.07
A144: =Гонки!$C$4 -> Жук-трейл # 4 Минское Море | B144: =Гонки!$D$5 -> Трейл 16 | C144: Жук-трейл # 4 Минское Море Трейл 16 | D144: 19.14 | E144: Ж | F144: =IF(E144="Ж",VLOOKUP(C144,Гонки!$E$2:$P$16,11,FALSE),VLOOKUP(C144,Гонки!$E$2:$P$16,12,FALSE)) -> 27 | G144: Невмержицкая Анна | H144: 1997 | I144: Nevmerzhitskaya Anna | J144: Невмержицкая Анна / Nevmerzhitskaya Anna / 1997 | K144: Ж | L144: 9 | M144: 70.37037037 | N144: 307.87
A145: =Гонки!$C$4 -> Жук-трейл # 4 Минское Море | B145: =Гонки!$D$5 -> Трейл 16 | C145: Жук-трейл # 4 Минское Море Трейл 16 | D145: 19.14 | E145: Ж | F145: =IF(E145="Ж",VLOOKUP(C145,Гонки!$E$2:$P$16,11,FALSE),VLOOKUP(C145,Гонки!$E$2:$P$16,12,FALSE)) -> 27 | G145: Таранко Марта | H145: 1990 | I145: Taranko Marta | J145: Таранко Марта / Taranko Marta / 1990 | K145: Ж | L145: 10 | M145: 66.66666667 | N145: 291.66
A146: =Гонки!$C$4 -> Жук-трейл # 4 Минское Море | B146: =Гонки!$D$5 -> Трейл 16 | C146: Жук-трейл # 4 Минское Море Трейл 16 | D146: 19.14 | E146: Ж | F146: =IF(E146="Ж",VLOOKUP(C146,Гонки!$E$2:$P$16,11,FALSE),VLOOKUP(C146,Гонки!$E$2:$P$16,12,FALSE)) -> 27 | G146: Григорьева Светлана | H146: 1984 | I146: Grigoreva Svetlana | J146: Григорьева Светлана / Grigoreva Svetlana / 1984 | K146: Ж | L146: 11 | M146: 62.96296296 | N146: 275.46
A147: =Гонки!$C$4 -> Жук-трейл # 4 Минское Море | B147: =Гонки!$D$5 -> Трейл 16 | C147: Жук-трейл # 4 Минское Море Трейл 16 | D147: 19.14 | E147: Ж | F147: =IF(E147="Ж",VLOOKUP(C147,Гонки!$E$2:$P$16,11,FALSE),VLOOKUP(C147,Гонки!$E$2:$P$16,12,FALSE)) -> 27 | G147: Чеботаева Валерия | H147: 1993 | I147: Chebotaeva Valeriya | J147: Чеботаева Валерия / Chebotaeva Valeriya / 1993 | K147: Ж | L147: 12 | M147: 59.25925926 | N147: 259.26
A148: =Гонки!$C$4 -> Жук-трейл # 4 Минское Море | B148: =Гонки!$D$5 -> Трейл 16 | C148: Жук-трейл # 4 Минское Море Трейл 16 | D148: 19.14 | E148: Ж | F148: =IF(E148="Ж",VLOOKUP(C148,Гонки!$E$2:$P$16,11,FALSE),VLOOKUP(C148,Гонки!$E$2:$P$16,12,FALSE)) -> 27 | G148: Малаховская Татьяна | H148: 1989 | I148: Malahovskaya Tatyana | J148: Малаховская Татьяна / Malahovskaya Tatyana / 1989 | K148: Ж | L148: 13 | M148: 55.55555556 | N148: 243.05
A149: =Гонки!$C$4 -> Жук-трейл # 4 Минское Море | B149: =Гонки!$D$5 -> Трейл 16 | C149: Жук-трейл # 4 Минское Море Трейл 16 | D149: 19.14 | E149: Ж | F149: =IF(E149="Ж",VLOOKUP(C149,Гонки!$E$2:$P$16,11,FALSE),VLOOKUP(C149,Гонки!$E$2:$P$16,12,FALSE)) -> 27 | G149: Булеева Наталья | H149: 1969 | I149: Buleeva Natalya | J149: Булеева Наталья / Buleeva Natalya / 1969 | K149: Ж | L149: 14 | M149: 51.85185185 | N149: 226.85
A150: =Гонки!$C$4 -> Жук-трейл # 4 Минское Море | B150: =Гонки!$D$5 -> Трейл 16 | C150: Жук-трейл # 4 Минское Море Трейл 16 | D150: 19.14 | E150: Ж | F150: =IF(E150="Ж",VLOOKUP(C150,Гонки!$E$2:$P$16,11,FALSE),VLOOKUP(C150,Гонки!$E$2:$P$16,12,FALSE)) -> 27 | G150: Липницкая Виктория | H150: 1987 | I150: Lipnitskaya Viktoriya | J150: Липницкая Виктория / Lipnitskaya Viktoriya / 1987 | K150: Ж | L150: 15 | M150: 48.14814815 | N150: 210.64
A151: =Гонки!$C$4 -> Жук-трейл # 4 Минское Море | B151: =Гонки!$D$5 -> Трейл 16 | C151: Жук-трейл # 4 Минское Море Трейл 16 | D151: 19.14 | E151: Ж | F151: =IF(E151="Ж",VLOOKUP(C151,Гонки!$E$2:$P$16,11,FALSE),VLOOKUP(C151,Гонки!$E$2:$P$16,12,FALSE)) -> 27 | G151: Грейд Юлия | H151: 1986 | I151: Grejd Yuliya | J151: Грейд Юлия / Grejd Yuliya / 1986 | K151: Ж | L151: 16 | M151: 44.44444444 | N151: 194.44
A152: =Гонки!$C$4 -> Жук-трейл # 4 Минское Море | B152: =Гонки!$D$5 -> Трейл 16 | C152: Жук-трейл # 4 Минское Море Трейл 16 | D152: 19.14 | E152: Ж | F152: =IF(E152="Ж",VLOOKUP(C152,Гонки!$E$2:$P$16,11,FALSE),VLOOKUP(C152,Гонки!$E$2:$P$16,12,FALSE)) -> 27 | G152: Гринько Анастасия | H152: 1993 | I152: Grinko Anastasiya | J152: Гринько Анастасия / Grinko Anastasiya / 1993 | K152: Ж | L152: 17 | M152: 40.74074074 | N152: 178.24
A153: =Гонки!$C$4 -> Жук-трейл # 4 Минское Море | B153: =Гонки!$D$5 -> Трейл 16 | C153: Жук-трейл # 4 Минское Море Трейл 16 | D153: 19.14 | E153: Ж | F153: =IF(E153="Ж",VLOOKUP(C153,Гонки!$E$2:$P$16,11,FALSE),VLOOKUP(C153,Гонки!$E$2:$P$16,12,FALSE)) -> 27 | G153: Трубкина Инна | H153: 1972 | I153: Trubkina Inna | J153: Трубкина Инна / Trubkina Inna / 1972 | K153: Ж | L153: 18 | M153: 37.03703704 | N153: 162.03
A154: =Гонки!$C$4 -> Жук-трейл # 4 Минское Море | B154: =Гонки!$D$5 -> Трейл 16 | C154: Жук-трейл # 4 Минское Море Трейл 16 | D154: 19.14 | E154: Ж | F154: =IF(E154="Ж",VLOOKUP(C154,Гонки!$E$2:$P$16,11,FALSE),VLOOKUP(C154,Гонки!$E$2:$P$16,12,FALSE)) -> 27 | G154: Сильченко Наталья | I154: Silchenko Natalya | J154: Сильченко Наталья / Silchenko Natalya / | K154: Ж | L154: 19 | M154: 33.33333333 | N154: 145.83
A155: =Гонки!$C$4 -> Жук-трейл # 4 Минское Море | B155: =Гонки!$D$5 -> Трейл 16 | C155: Жук-трейл # 4 Минское Море Трейл 16 | D155: 19.14 | E155: Ж | F155: =IF(E155="Ж",VLOOKUP(C155,Гонки!$E$2:$P$16,11,FALSE),VLOOKUP(C155,Гонки!$E$2:$P$16,12,FALSE)) -> 27 | G155: Мурашкина Галина | H155: 1988 | I155: Murashkina Galina | J155: Мурашкина Галина / Murashkina Galina / 1988 | K155: Ж | L155: 20 | M155: 29.62962963 | N155: 129.63
A156: =Гонки!$C$4 -> Жук-трейл # 4 Минское Море | B156: =Гонки!$D$5 -> Трейл 16 | C156: Жук-трейл # 4 Минское Море Трейл 16 | D156: 19.14 | E156: Ж | F156: =IF(E156="Ж",VLOOKUP(C156,Гонки!$E$2:$P$16,11,FALSE),VLOOKUP(C156,Гонки!$E$2:$P$16,12,FALSE)) -> 27 | G156: Туровец Ольга | H156: 1979 | I156: Turovets Olga | J156: Туровец Ольга / Turovets Olga / 1979 | K156: Ж | L156: 21 | M156: 25.92592593 | N156: 113.42
A157: =Гонки!$C$4 -> Жук-трейл # 4 Минское Море | B157: =Гонки!$D$5 -> Трейл 16 | C157: Жук-трейл # 4 Минское Море Трейл 16 | D157: 19.14 | E157: Ж | F157: =IF(E157="Ж",VLOOKUP(C157,Гонки!$E$2:$P$16,11,FALSE),VLOOKUP(C157,Гонки!$E$2:$P$16,12,FALSE)) -> 27 | G157: Вдовиченко Ирина | H157: 1989 | I157: Vdovichenko Irina | J157: Вдовиченко Ирина / Vdovichenko Irina / 1989 | K157: Ж | L157: 22 | M157: 22.22222222 | N157: 97.22
A158: =Гонки!$C$4 -> Жук-трейл # 4 Минское Море | B158: =Гонки!$D$5 -> Трейл 16 | C158: Жук-трейл # 4 Минское Море Трейл 16 | D158: 19.14 | E158: Ж | F158: =IF(E158="Ж",VLOOKUP(C158,Гонки!$E$2:$P$16,11,FALSE),VLOOKUP(C158,Гонки!$E$2:$P$16,12,FALSE)) -> 27 | G158: Петкевич Лилия | H158: 1990 | I158: Petkevich Liliya | J158: Петкевич Лилия / Petkevich Liliya / 1990 | K158: Ж | L158: 23 | M158: 18.51851852 | N158: 81.02
A159: =Гонки!$C$4 -> Жук-трейл # 4 Минское Море | B159: =Гонки!$D$5 -> Трейл 16 | C159: Жук-трейл # 4 Минское Море Трейл 16 | D159: 19.14 | E159: М | F159: =IF(E159="Ж",VLOOKUP(C159,Гонки!$E$2:$P$16,11,FALSE),VLOOKUP(C159,Гонки!$E$2:$P$16,12,FALSE)) -> 51 | G159: Стасевич Александр | H159: 1987 | I159: Stasevich Aleksandr | J159: Стасевич Александр / Stasevich Aleksandr / 1987 | K159: М | L159: 1 | M159: 100 | N159: 437.49
A160: =Гонки!$C$4 -> Жук-трейл # 4 Минское Море | B160: =Гонки!$D$5 -> Трейл 16 | C160: Жук-трейл # 4 Минское Море Трейл 16 | D160: 19.14 | E160: М | F160: =IF(E160="Ж",VLOOKUP(C160,Гонки!$E$2:$P$16,11,FALSE),VLOOKUP(C160,Гонки!$E$2:$P$16,12,FALSE)) -> 51 | G160: Волков Николай | H160: 1989 | I160: Volkov Nikolaj | J160: Волков Николай / Volkov Nikolaj / 1989 | K160: М | L160: 2 | M160: 98.03921569 | N160: 428.91
A161: =Гонки!$C$4 -> Жук-трейл # 4 Минское Море | B161: =Гонки!$D$5 -> Трейл 16 | C161: Жук-трейл # 4 Минское Море Трейл 16 | D161: 19.14 | E161: М | F161: =IF(E161="Ж",VLOOKUP(C161,Гонки!$E$2:$P$16,11,FALSE),VLOOKUP(C161,Гонки!$E$2:$P$16,12,FALSE)) -> 51 | G161: Захаркин Сергей | H161: 1976 | I161: Zaharkin Sergej | J161: Захаркин Сергей / Zaharkin Sergej / 1976 | K161: М | L161: 3 | M161: 96.07843137 | N161: 420.34
A162: =Гонки!$C$4 -> Жук-трейл # 4 Минское Море | B162: =Гонки!$D$5 -> Трейл 16 | C162: Жук-трейл # 4 Минское Море Трейл 16 | D162: 19.14 | E162: М | F162: =IF(E162="Ж",VLOOKUP(C162,Гонки!$E$2:$P$16,11,FALSE),VLOOKUP(C162,Гонки!$E$2:$P$16,12,FALSE)) -> 51 | G162: Чеботаев Сергей | H162: 1989 | I162: Chebotaev Sergej | J162: Чеботаев Сергей / Chebotaev Sergej / 1989 | K162: М | L162: 4 | M162: 94.11764706 | N162: 411.76
A163: =Гонки!$C$4 -> Жук-трейл # 4 Минское Море | B163: =Гонки!$D$5 -> Трейл 16 | C163: Жук-трейл # 4 Минское Море Трейл 16 | D163: 19.14 | E163: М | F163: =IF(E163="Ж",VLOOKUP(C163,Гонки!$E$2:$P$16,11,FALSE),VLOOKUP(C163,Гонки!$E$2:$P$16,12,FALSE)) -> 51 | G163: Бузо Александр | H163: 1982 | I163: Buzo Aleksandr | J163: Бузо Александр / Buzo Aleksandr / 1982 | K163: М | L163: 5 | M163: 92.15686275 | N163: 403.18
A164: =Гонки!$C$4 -> Жук-трейл # 4 Минское Море | B164: =Гонки!$D$5 -> Трейл 16 | C164: Жук-трейл # 4 Минское Море Трейл 16 | D164: 19.14 | E164: М | F164: =IF(E164="Ж",VLOOKUP(C164,Гонки!$E$2:$P$16,11,FALSE),VLOOKUP(C164,Гонки!$E$2:$P$16,12,FALSE)) -> 51 | G164: Сидоревич Александр | H164: 1985 | I164: Sidorevich Aleksandr | J164: Сидоревич Александр / Sidorevich Aleksandr / 1985 | K164: М | L164: 6 | M164: 90.19607843 | N164: 394.6
A165: =Гонки!$C$4 -> Жук-трейл # 4 Минское Море | B165: =Гонки!$D$5 -> Трейл 16 | C165: Жук-трейл # 4 Минское Море Трейл 16 | D165: 19.14 | E165: М | F165: =IF(E165="Ж",VLOOKUP(C165,Гонки!$E$2:$P$16,11,FALSE),VLOOKUP(C165,Гонки!$E$2:$P$16,12,FALSE)) -> 51 | G165: Михнюк Виктор | H165: 1990 | I165: Mihnyuk Viktor | J165: Михнюк Виктор / Mihnyuk Viktor / 1990 | K165: М | L165: 7 | M165: 88.23529412 | N165: 386.02
A166: =Гонки!$C$4 -> Жук-трейл # 4 Минское Море | B166: =Гонки!$D$5 -> Трейл 16 | C166: Жук-трейл # 4 Минское Море Трейл 16 | D166: 19.14 | E166: М | F166: =IF(E166="Ж",VLOOKUP(C166,Гонки!$E$2:$P$16,11,FALSE),VLOOKUP(C166,Гонки!$E$2:$P$16,12,FALSE)) -> 51 | G166: Крисенков Алексей | H166: 1983 | I166: Krisenkov Aleksej | J166: Крисенков Алексей / Krisenkov Aleksej / 1983 | K166: М | L166: 8 | M166: 86.2745098 | N166: 377.44
A167: =Гонки!$C$4 -> Жук-трейл # 4 Минское Море | B167: =Гонки!$D$5 -> Трейл 16 | C167: Жук-трейл # 4 Минское Море Трейл 16 | D167: 19.14 | E167: М | F167: =IF(E167="Ж",VLOOKUP(C167,Гонки!$E$2:$P$16,11,FALSE),VLOOKUP(C167,Гонки!$E$2:$P$16,12,FALSE)) -> 51 | G167: Нечаев Владимир | H167: 1995 | I167: Nechaev Vladimir | J167: Нечаев Владимир / Nechaev Vladimir / 1995 | K167: М | L167: 9 | M167: 84.31372549 | N167: 368.87
A168: =Гонки!$C$4 -> Жук-трейл # 4 Минское Море | B168: =Гонки!$D$5 -> Трейл 16 | C168: Жук-трейл # 4 Минское Море Трейл 16 | D168: 19.14 | E168: М | F168: =IF(E168="Ж",VLOOKUP(C168,Гонки!$E$2:$P$16,11,FALSE),VLOOKUP(C168,Гонки!$E$2:$P$16,12,FALSE)) -> 51 | G168: Пузаревский Роман | H168: 1994 | I168: Puzarevskij Roman | J168: Пузаревский Роман / Puzarevskij Roman / 1994 | K168: М | L168: 10 | M168: 82.35294118 | N168: 360.29
A169: =Гонки!$C$4 -> Жук-трейл # 4 Минское Море | B169: =Гонки!$D$5 -> Трейл 16 | C169: Жук-трейл # 4 Минское Море Трейл 16 | D169: 19.14 | E169: М | F169: =IF(E169="Ж",VLOOKUP(C169,Гонки!$E$2:$P$16,11,FALSE),VLOOKUP(C169,Гонки!$E$2:$P$16,12,FALSE)) -> 51 | G169: Лойко Сергей | H169: 1985 | I169: Lojko Sergej | J169: Лойко Сергей / Lojko Sergej / 1985 | K169: М | L169: 11 | M169: 80.39215686 | N169: 351.71
A170: =Гонки!$C$4 -> Жук-трейл # 4 Минское Море | B170: =Гонки!$D$5 -> Трейл 16 | C170: Жук-трейл # 4 Минское Море Трейл 16 | D170: 19.14 | E170: М | F170: =IF(E170="Ж",VLOOKUP(C170,Гонки!$E$2:$P$16,11,FALSE),VLOOKUP(C170,Гонки!$E$2:$P$16,12,FALSE)) -> 51 | G170: Зеленко Дмитрий | H170: 1987 | I170: Zelenko Dmitrij | J170: Зеленко Дмитрий / Zelenko Dmitrij / 1987 | K170: М | L170: 12 | M170: 78.43137255 | N170: 343.13
A171: =Гонки!$C$4 -> Жук-трейл # 4 Минское Море | B171: =Гонки!$D$5 -> Трейл 16 | C171: Жук-трейл # 4 Минское Море Трейл 16 | D171: 19.14 | E171: М | F171: =IF(E171="Ж",VLOOKUP(C171,Гонки!$E$2:$P$16,11,FALSE),VLOOKUP(C171,Гонки!$E$2:$P$16,12,FALSE)) -> 51 | G171: Юкевич Александр | H171: 1983 | I171: Yukevich Aleksandr | J171: Юкевич Александр / Yukevich Aleksandr / 1983 | K171: М | L171: 13 | M171: 76.47058824 | N171: 334.55
A172: =Гонки!$C$4 -> Жук-трейл # 4 Минское Море | B172: =Гонки!$D$5 -> Трейл 16 | C172: Жук-трейл # 4 Минское Море Трейл 16 | D172: 19.14 | E172: М | F172: =IF(E172="Ж",VLOOKUP(C172,Гонки!$E$2:$P$16,11,FALSE),VLOOKUP(C172,Гонки!$E$2:$P$16,12,FALSE)) -> 51 | G172: Павленко Юрий | H172: 1983 | I172: Pavlenko Yurij | J172: Павленко Юрий / Pavlenko Yurij / 1983 | K172: М | L172: 14 | M172: 74.50980392 | N172: 325.98
A173: =Гонки!$C$4 -> Жук-трейл # 4 Минское Море | B173: =Гонки!$D$5 -> Трейл 16 | C173: Жук-трейл # 4 Минское Море Трейл 16 | D173: 19.14 | E173: М | F173: =IF(E173="Ж",VLOOKUP(C173,Гонки!$E$2:$P$16,11,FALSE),VLOOKUP(C173,Гонки!$E$2:$P$16,12,FALSE)) -> 51 | G173: Слободько Дмитрий | H173: 1984 | I173: Slobodko Dmitrij | J173: Слободько Дмитрий / Slobodko Dmitrij / 1984 | K173: М | L173: 15 | M173: 72.54901961 | N173: 317.4
A174: =Гонки!$C$4 -> Жук-трейл # 4 Минское Море | B174: =Гонки!$D$5 -> Трейл 16 | C174: Жук-трейл # 4 Минское Море Трейл 16 | D174: 19.14 | E174: М | F174: =IF(E174="Ж",VLOOKUP(C174,Гонки!$E$2:$P$16,11,FALSE),VLOOKUP(C174,Гонки!$E$2:$P$16,12,FALSE)) -> 51 | G174: Бунос Анатолий | H174: 1956 | I174: Bunos Anatolij | J174: Бунос Анатолий / Bunos Anatolij / 1956 | K174: М | L174: 16 | M174: 70.58823529 | N174: 308.82
A175: =Гонки!$C$4 -> Жук-трейл # 4 Минское Море | B175: =Гонки!$D$5 -> Трейл 16 | C175: Жук-трейл # 4 Минское Море Трейл 16 | D175: 19.14 | E175: М | F175: =IF(E175="Ж",VLOOKUP(C175,Гонки!$E$2:$P$16,11,FALSE),VLOOKUP(C175,Гонки!$E$2:$P$16,12,FALSE)) -> 51 | G175: Савич Евгений | H175: 1980 | I175: Savich Evgenij | J175: Савич Евгений / Savich Evgenij / 1980 | K175: М | L175: 17 | M175: 68.62745098 | N175: 300.24
A176: =Гонки!$C$4 -> Жук-трейл # 4 Минское Море | B176: =Гонки!$D$5 -> Трейл 16 | C176: Жук-трейл # 4 Минское Море Трейл 16 | D176: 19.14 | E176: М | F176: =IF(E176="Ж",VLOOKUP(C176,Гонки!$E$2:$P$16,11,FALSE),VLOOKUP(C176,Гонки!$E$2:$P$16,12,FALSE)) -> 51 | G176: Печёнов Георгий | H176: 1975 | I176: Pechjonov Georgij | J176: Печёнов Георгий / Pechjonov Georgij / 1975 | K176: М | L176: 18 | M176: 66.66666667 | N176: 291.66
A177: =Гонки!$C$4 -> Жук-трейл # 4 Минское Море | B177: =Гонки!$D$5 -> Трейл 16 | C177: Жук-трейл # 4 Минское Море Трейл 16 | D177: 19.14 | E177: М | F177: =IF(E177="Ж",VLOOKUP(C177,Гонки!$E$2:$P$16,11,FALSE),VLOOKUP(C177,Гонки!$E$2:$P$16,12,FALSE)) -> 51 | G177: Верещако Павел | H177: 1988 | I177: Vereschako Pavel | J177: Верещако Павел / Vereschako Pavel / 1988 | K177: М | L177: 19 | M177: 64.70588235 | N177: 283.08
A178: =Гонки!$C$4 -> Жук-трейл # 4 Минское Море | B178: =Гонки!$D$5 -> Трейл 16 | C178: Жук-трейл # 4 Минское Море Трейл 16 | D178: 19.14 | E178: М | F178: =IF(E178="Ж",VLOOKUP(C178,Гонки!$E$2:$P$16,11,FALSE),VLOOKUP(C178,Гонки!$E$2:$P$16,12,FALSE)) -> 51 | G178: Искорцев Алексей | H178: 1980 | I178: Iskortsev Aleksej | J178: Искорцев Алексей / Iskortsev Aleksej / 1980 | K178: М | L178: 20 | M178: 62.74509804 | N178: 274.51
A179: =Гонки!$C$4 -> Жук-трейл # 4 Минское Море | B179: =Гонки!$D$5 -> Трейл 16 | C179: Жук-трейл # 4 Минское Море Трейл 16 | D179: 19.14 | E179: М | F179: =IF(E179="Ж",VLOOKUP(C179,Гонки!$E$2:$P$16,11,FALSE),VLOOKUP(C179,Гонки!$E$2:$P$16,12,FALSE)) -> 51 | G179: Игнатович Александр | H179: 1992 | I179: Ignatovich Aleksandr | J179: Игнатович Александр / Ignatovich Aleksandr / 1992 | K179: М | L179: 21 | M179: 60.78431373 | N179: 265.93
A180: =Гонки!$C$4 -> Жук-трейл # 4 Минское Море | B180: =Гонки!$D$5 -> Трейл 16 | C180: Жук-трейл # 4 Минское Море Трейл 16 | D180: 19.14 | E180: М | F180: =IF(E180="Ж",VLOOKUP(C180,Гонки!$E$2:$P$16,11,FALSE),VLOOKUP(C180,Гонки!$E$2:$P$16,12,FALSE)) -> 51 | G180: Ролдугин Михаил | H180: 1987 | I180: Roldugin Mihail | J180: Ролдугин Михаил / Roldugin Mihail / 1987 | K180: М | L180: 22 | M180: 58.82352941 | N180: 257.35
A181: =Гонки!$C$4 -> Жук-трейл # 4 Минское Море | B181: =Гонки!$D$5 -> Трейл 16 | C181: Жук-трейл # 4 Минское Море Трейл 16 | D181: 19.14 | E181: М | F181: =IF(E181="Ж",VLOOKUP(C181,Гонки!$E$2:$P$16,11,FALSE),VLOOKUP(C181,Гонки!$E$2:$P$16,12,FALSE)) -> 51 | G181: Ладеев Дмитрий | H181: 1981 | I181: Ladeev Dmitrij | J181: Ладеев Дмитрий / Ladeev Dmitrij / 1981 | K181: М | L181: 23 | M181: 56.8627451 | N181: 248.77
A182: =Гонки!$C$4 -> Жук-трейл # 4 Минское Море | B182: =Гонки!$D$5 -> Трейл 16 | C182: Жук-трейл # 4 Минское Море Трейл 16 | D182: 19.14 | E182: М | F182: =IF(E182="Ж",VLOOKUP(C182,Гонки!$E$2:$P$16,11,FALSE),VLOOKUP(C182,Гонки!$E$2:$P$16,12,FALSE)) -> 51 | G182: Лукьянов Александр | H182: 1979 | I182: Lukyanov Aleksandr | J182: Лукьянов Александр / Lukyanov Aleksandr / 1979 | K182: М | L182: 24 | M182: 54.90196078 | N182: 240.19
A183: =Гонки!$C$4 -> Жук-трейл # 4 Минское Море | B183: =Гонки!$D$5 -> Трейл 16 | C183: Жук-трейл # 4 Минское Море Трейл 16 | D183: 19.14 | E183: М | F183: =IF(E183="Ж",VLOOKUP(C183,Гонки!$E$2:$P$16,11,FALSE),VLOOKUP(C183,Гонки!$E$2:$P$16,12,FALSE)) -> 51 | G183: Жидович Вадим | H183: 1984 | I183: Zhidovich Vadim | J183: Жидович Вадим / Zhidovich Vadim / 1984 | K183: М | L183: 25 | M183: 52.94117647 | N183: 231.61
A184: =Гонки!$C$4 -> Жук-трейл # 4 Минское Море | B184: =Гонки!$D$5 -> Трейл 16 | C184: Жук-трейл # 4 Минское Море Трейл 16 | D184: 19.14 | E184: М | F184: =IF(E184="Ж",VLOOKUP(C184,Гонки!$E$2:$P$16,11,FALSE),VLOOKUP(C184,Гонки!$E$2:$P$16,12,FALSE)) -> 51 | G184: Ярмончик Игорь | H184: 1985 | I184: Yarmonchik Igor | J184: Ярмончик Игорь / Yarmonchik Igor / 1985 | K184: М | L184: 26 | M184: 50.98039216 | N184: 223.04
A185: =Гонки!$C$4 -> Жук-трейл # 4 Минское Море | B185: =Гонки!$D$5 -> Трейл 16 | C185: Жук-трейл # 4 Минское Море Трейл 16 | D185: 19.14 | E185: М | F185: =IF(E185="Ж",VLOOKUP(C185,Гонки!$E$2:$P$16,11,FALSE),VLOOKUP(C185,Гонки!$E$2:$P$16,12,FALSE)) -> 51 | G185: Скляр Антон | H185: 1983 | I185: Sklyar Anton | J185: Скляр Антон / Sklyar Anton / 1983 | K185: М | L185: 27 | M185: 49.01960784 | N185: 214.46
A186: =Гонки!$C$4 -> Жук-трейл # 4 Минское Море | B186: =Гонки!$D$5 -> Трейл 16 | C186: Жук-трейл # 4 Минское Море Трейл 16 | D186: 19.14 | E186: М | F186: =IF(E186="Ж",VLOOKUP(C186,Гонки!$E$2:$P$16,11,FALSE),VLOOKUP(C186,Гонки!$E$2:$P$16,12,FALSE)) -> 51 | G186: Пугач Вадим | H186: 1985 | I186: Pugach Vadim | J186: Пугач Вадим / Pugach Vadim / 1985 | K186: М | L186: 28 | M186: 47.05882353 | N186: 205.88
A187: =Гонки!$C$4 -> Жук-трейл # 4 Минское Море | B187: =Гонки!$D$5 -> Трейл 16 | C187: Жук-трейл # 4 Минское Море Трейл 16 | D187: 19.14 | E187: М | F187: =IF(E187="Ж",VLOOKUP(C187,Гонки!$E$2:$P$16,11,FALSE),VLOOKUP(C187,Гонки!$E$2:$P$16,12,FALSE)) -> 51 | G187: Зайчук Кирилл | H187: 1990 | I187: Zajchuk Kirill | J187: Зайчук Кирилл / Zajchuk Kirill / 1990 | K187: М | L187: 29 | M187: 45.09803922 | N187: 197.3
A188: =Гонки!$C$4 -> Жук-трейл # 4 Минское Море | B188: =Гонки!$D$5 -> Трейл 16 | C188: Жук-трейл # 4 Минское Море Трейл 16 | D188: 19.14 | E188: М | F188: =IF(E188="Ж",VLOOKUP(C188,Гонки!$E$2:$P$16,11,FALSE),VLOOKUP(C188,Гонки!$E$2:$P$16,12,FALSE)) -> 51 | G188: Хацкевич Дмитрий | H188: 1985 | I188: Hatskevich Dmitrij | J188: Хацкевич Дмитрий / Hatskevich Dmitrij / 1985 | K188: М | L188: 30 | M188: 43.1372549 | N188: 188.72
A189: =Гонки!$C$4 -> Жук-трейл # 4 Минское Море | B189: =Гонки!$D$5 -> Трейл 16 | C189: Жук-трейл # 4 Минское Море Трейл 16 | D189: 19.14 | E189: М | F189: =IF(E189="Ж",VLOOKUP(C189,Гонки!$E$2:$P$16,11,FALSE),VLOOKUP(C189,Гонки!$E$2:$P$16,12,FALSE)) -> 51 | G189: Мертенс Андрей | H189: 1992 | I189: Mertens Andrej | J189: Мертенс Андрей / Mertens Andrej / 1992 | K189: М | L189: 31 | M189: 41.17647059 | N189: 180.14
A190: =Гонки!$C$4 -> Жук-трейл # 4 Минское Море | B190: =Гонки!$D$5 -> Трейл 16 | C190: Жук-трейл # 4 Минское Море Трейл 16 | D190: 19.14 | E190: М | F190: =IF(E190="Ж",VLOOKUP(C190,Гонки!$E$2:$P$16,11,FALSE),VLOOKUP(C190,Гонки!$E$2:$P$16,12,FALSE)) -> 51 | G190: Миканович Антон | H190: 1990 | I190: Mikanovich Anton | J190: Миканович Антон / Mikanovich Anton / 1990 | K190: М | L190: 32 | M190: 39.21568627 | N190: 171.57
A191: =Гонки!$C$4 -> Жук-трейл # 4 Минское Море | B191: =Гонки!$D$5 -> Трейл 16 | C191: Жук-трейл # 4 Минское Море Трейл 16 | D191: 19.14 | E191: М | F191: =IF(E191="Ж",VLOOKUP(C191,Гонки!$E$2:$P$16,11,FALSE),VLOOKUP(C191,Гонки!$E$2:$P$16,12,FALSE)) -> 51 | G191: Панковец Николай | H191: 1979 | I191: Pankovets Nikolaj | J191: Панковец Николай / Pankovets Nikolaj / 1979 | K191: М | L191: 33 | M191: 37.25490196 | N191: 162.99
A192: =Гонки!$C$4 -> Жук-трейл # 4 Минское Море | B192: =Гонки!$D$5 -> Трейл 16 | C192: Жук-трейл # 4 Минское Море Трейл 16 | D192: 19.14 | E192: М | F192: =IF(E192="Ж",VLOOKUP(C192,Гонки!$E$2:$P$16,11,FALSE),VLOOKUP(C192,Гонки!$E$2:$P$16,12,FALSE)) -> 51 | G192: Лопатик Юрий | H192: 1984 | I192: Lopatik Yurij | J192: Лопатик Юрий / Lopatik Yurij / 1984 | K192: М | L192: 34 | M192: 35.29411765 | N192: 154.41
A193: =Гонки!$C$4 -> Жук-трейл # 4 Минское Море | B193: =Гонки!$D$5 -> Трейл 16 | C193: Жук-трейл # 4 Минское Море Трейл 16 | D193: 19.14 | E193: М | F193: =IF(E193="Ж",VLOOKUP(C193,Гонки!$E$2:$P$16,11,FALSE),VLOOKUP(C193,Гонки!$E$2:$P$16,12,FALSE)) -> 51 | G193: Олин Денис | H193: 1976 | I193: Olin Denis | J193: Олин Денис / Olin Denis / 1976 | K193: М | L193: 35 | M193: 33.33333333 | N193: 145.83
A194: =Гонки!$C$4 -> Жук-трейл # 4 Минское Море | B194: =Гонки!$D$5 -> Трейл 16 | C194: =CONCATENATE(A194," ",B194) -> Жук-трейл # 4 Минское Море Трейл 16 | D194: =VLOOKUP(C194,Список_гонок,10,FALSE) -> 19.14 | E194: М | F194: =IF(E194="Ж",VLOOKUP(C194,Гонки!$E$2:$P$16,11,FALSE),VLOOKUP(C194,Гонки!$E$2:$P$16,12,FALSE)) -> 51 | G194: Стельмах Юрий | H194: 1982 | I194: =Translit(G194) -> Stelmah Yurij | J194: =CONCATENATE(G194," / ",I194," / ",H194) -> Стельмах Юрий / Stelmah Yurij / 1982 | K194: =E194 -> М | L194: 36 | M194: =100-((L194-1)/F194)*100 -> 31.37254902 | N194: =ROUND(SQRT(D194)*M194,2) -> 137.25
A195: =Гонки!$C$4 -> Жук-трейл # 4 Минское Море | B195: =Гонки!$D$5 -> Трейл 16 | C195: Жук-трейл # 4 Минское Море Трейл 16 | D195: 19.14 | E195: М | F195: =IF(E195="Ж",VLOOKUP(C195,Гонки!$E$2:$P$16,11,FALSE),VLOOKUP(C195,Гонки!$E$2:$P$16,12,FALSE)) -> 51 | G195: Никрашевич Сергей | H195: 1985 | I195: Nikrashevich Sergej | J195: Никрашевич Сергей / Nikrashevich Sergej / 1985 | K195: М | L195: 37 | M195: 29.41176471 | N195: 128.67
A196: =Гонки!$C$4 -> Жук-трейл # 4 Минское Море | B196: =Гонки!$D$5 -> Трейл 16 | C196: Жук-трейл # 4 Минское Море Трейл 16 | D196: 19.14 | E196: М | F196: =IF(E196="Ж",VLOOKUP(C196,Гонки!$E$2:$P$16,11,FALSE),VLOOKUP(C196,Гонки!$E$2:$P$16,12,FALSE)) -> 51 | G196: Казарин Дмитрий | H196: 1994 | I196: Kazarin Dmitrij | J196: Казарин Дмитрий / Kazarin Dmitrij / 1994 | K196: М | L196: 38 | M196: 27.45098039 | N196: 120.1
A197: =Гонки!$C$4 -> Жук-трейл # 4 Минское Море | B197: =Гонки!$D$5 -> Трейл 16 | C197: Жук-трейл # 4 Минское Море Трейл 16 | D197: 19.14 | E197: М | F197: =IF(E197="Ж",VLOOKUP(C197,Гонки!$E$2:$P$16,11,FALSE),VLOOKUP(C197,Гонки!$E$2:$P$16,12,FALSE)) -> 51 | G197: Коляда Юрий | H197: 1980 | I197: Kolyada Yurij | J197: Коляда Юрий / Kolyada Yurij / 1980 | K197: М | L197: 39 | M197: 25.49019608 | N197: 111.52
A198: =Гонки!$C$4 -> Жук-трейл # 4 Минское Море | B198: =Гонки!$D$5 -> Трейл 16 | C198: Жук-трейл # 4 Минское Море Трейл 16 | D198: 19.14 | E198: М | F198: =IF(E198="Ж",VLOOKUP(C198,Гонки!$E$2:$P$16,11,FALSE),VLOOKUP(C198,Гонки!$E$2:$P$16,12,FALSE)) -> 51 | G198: Горшков Игорь | H198: 1977 | I198: Gorshkov Igor | J198: Горшков Игорь / Gorshkov Igor / 1977 | K198: М | L198: 40 | M198: 23.52941176 | N198: 102.94
A199: =Гонки!$C$4 -> Жук-трейл # 4 Минское Море | B199: =Гонки!$D$5 -> Трейл 16 | C199: Жук-трейл # 4 Минское Море Трейл 16 | D199: 19.14 | E199: М | F199: =IF(E199="Ж",VLOOKUP(C199,Гонки!$E$2:$P$16,11,FALSE),VLOOKUP(C199,Гонки!$E$2:$P$16,12,FALSE)) -> 51 | G199: Герасевич Максим | I199: Gerasevich Maksim | J199: Герасевич Максим / Gerasevich Maksim / | K199: М | L199: 41 | M199: 21.56862745 | N199: 94.36
A200: =Гонки!$C$4 -> Жук-трейл # 4 Минское Море | B200: =Гонки!$D$5 -> Трейл 16 | C200: Жук-трейл # 4 Минское Море Трейл 16 | D200: 19.14 | E200: М | F200: =IF(E200="Ж",VLOOKUP(C200,Гонки!$E$2:$P$16,11,FALSE),VLOOKUP(C200,Гонки!$E$2:$P$16,12,FALSE)) -> 51 | G200: Аржаников Евгений | H200: 1976 | I200: Arzhanikov Evgenij | J200: Аржаников Евгений / Arzhanikov Evgenij / 1976 | K200: М | L200: 42 | M200: 19.60784314 | N200: 85.78
... 1445 more rows

Sheet Личн рез-ты алфавит
A3: Сумма по полю личный рез-т соревнований | B3: Названия столбцов
A4: Названия строк | B4: "Налибоки 2018" Трейл 100 | C4: "Налибоки 2018" Трейл 21 | D4: "Налибоки 2018" Трейл 42 | E4: Дорога замков Трейл 10 | F4: Дорога замков Трейл 21 | G4: Дорога замков Трейл 42 | H4: Дорога замков Ультра-Трейл 100 | I4: Жук-трейл # 4 Минское Море Трейл 16 | J4: Жук-трейл # 4 Минское Море Трейл 25 | K4: Жук-трейл # 4 Минское Море Трейл 8 | L4: Жук-трейл # 5 Крево Трейл 10 | M4: Жук-трейл # 5 Крево Трейл 21 | N4: Жук-трейл # 5 Крево Трейл 45 | O4: Жук-трейл # 5 Крево Трейл 70 | P4: Жук-трейл #6 Купалье Трейл 10 | Q4: Жук-трейл #6 Купалье Трейл 21 | R4: Жук-трейл #6 Купалье Трейл 5 | S4: Жук-трейл #7 Раубичи Трейл 10 | T4: Жук-трейл #7 Раубичи Трейл 21 | U4: Жук-трейл #7 Раубичи Трейл 5 | V4: Жук-трейл #8 Логойск Ночной 10 | W4: Жук-трейл #8 Логойск Трейл 10 | X4: Жук-трейл #8 Логойск Трейл 21 | Y4: Жук-трейл #8 Логойск Трейл 42 | Z4: Жук-трейл #8 Логойск Трейл 5 | AA4: Зима минус 100 Трейл 100 | AB4: Зима минус 100 Трейл 50 | AC4: Общий итог
A5: Ben Bilel / Ben Bilel / 1981 | N5: 71.43 | AC5: 71.43
A6: McTavish John / McTavish John / 1987 | T6: 303.51 | X6: 508.07 | AC6: 811.58
A7: Tan Burak / Tan Burak / 1983 | E7: 192.48 | W7: 213.77 | AC7: 406.25
A8: user 4931 dan / user 4931 dan / 1989 | W8: 223.95 | AC8: 223.95
A9: Абаркина Елена / Abarkina Elena / 1983 | E9: 29.67 | R9: 110.65 | AC9: 140.32
A10: Авсянский Федор / Avsyanskij Fedor / 1988 | W10: 83.98 | AC10: 83.98
A11: Агаев Руслан / Agaev Ruslan / 1995 | P11: 137.67 | AC11: 137.67
A12: Агеев Константин / Ageev Konstantin / 1995 | X12: 303.52 | AC12: 303.52
A13: Агеева Катерина / Ageeva Katerina / 1986 | W13: 37.33 | AC13: 37.33
A14: Адаменко Виталий / Adamenko Vitalij / 1985 | L14: 26.61 | U14: 18.86 | Z14: 48.44 | AC14: 93.91
A15: Адамов Юрий / Adamov Yurij / 1976 | Z15: 42.39 | AC15: 42.39
A16: Адамович Денис / Adamovich Denis / 1986 | W16: 99.25 | AC16: 99.25
A17: Адамович Ирина / Adamovich Irina / 1973 | C17: 425.25 | T17: 283.28 | AC17: 708.53
A18: Адасик Вячеслав / Adasik Vyacheslav / 1975 | X18: 270.53 | AC18: 270.53
A19: Акулич Владимир / Akulich Vladimir / 1986 | E19: 279.1 | W19: 307.94 | AC19: 587.04
A20: Акулова Виктория / Akulova Viktoriya / 1980 | Z20: 153.27 | AC20: 153.27
A21: Александрова Дарья / Aleksandrova Darya / 1995 | E21: 296.74 | AC21: 296.74
A22: Александронец Ганна / Aleksandronets Ganna / 1991 | F22: 68.14 | AC22: 68.14
A23: Алексеев Алексей / Alekseev Aleksej / 1980 | F23: 401.56 | J23: 331.78 | N23: 500 | Q23: 225.4 | W23: 259.58 | AC23: 1718.32
A24: Алексейчик Павел / Aleksejchik Pavel / 1994 | W24: 244.31 | AC24: 244.31
A25: Аленова Анастасия / Alenova Anastasiya / 1993 | Z25: 238.43 | AC25: 238.43
A26: Алесиюк Татьяна / Alesiyuk Tatyana / 1987 | W26: 242.62 | AC26: 242.62
A27: Ананич Александр / Ananich Aleksandr / 1979 | AB27: 108.37 | AC27: 108.37
A28: Анацко Леонид / Anatsko Leonid / 1961 | O28: 298.16 | Q28: 14.39 | AC28: 312.55
A29: Андрюшенко Андрей / Andryushenko Andrej / 1980 | W29: 94.16 | AC29: 94.16
A30: Андуро Сергей / Anduro Sergej / 1986 | M30: 307.23 | AC30: 307.23
A31: Аноничев Александр / Anonichev Aleksandr / 1982 | Q31: 369.28 | AC31: 369.28
A32: Антонова Мария / Antonova Mariya / 1980 | E32: 118.7 | AC32: 118.7
A33: Арабиенко Татьяна / Arabienko Tatyana / 1986 | D33: 609 | AC33: 609
A34: Аржаников Евгений / Arzhanikov Evgenij / 1976 | C34: 263.79 | I34: 85.78 | M34: 153.61 | AC34: 503.18
A35: Арзамасов Илья / Arzamasov Ilya / 1987 | G35: 637.16 | AC35: 637.16
A36: Арловская Кристина / Arlovskaya Kristina / 1989 | M36: 230.42 | AB36: 263.17 | AC36: 493.59
A37: Артихович Александр / Artihovich Aleksandr / 1972 | P37: 71.39 | V37: 91.45 | W37: 114.52 | AC37: 277.36
A38: Асаевич Роман / Asaevich Roman / 1964 | D38: 351.08 | AC38: 351.08
A39: Астапеня Андрей / Astapenya Andrej / 1985 | W39: 287.58 | AC39: 287.58
A40: Астапов Владимир / Astapov Vladimir / 1977 | B40: 375.97 | G40: 483.36 | AC40: 859.33
A41: Афанасьев Иван / Afanasev Ivan / 1979 | P41: 305.94 | AC41: 305.94
A42: Бабицкий Кирилл / Babitskij Kirill / 1998 | AB42: 628.52 | AC42: 628.52
A43: Бабич Виталий / Babich Vitalij / 1981 | C43: 345.66 | AC43: 345.66
A44: Бажанский Виталий / Bazhanskij Vitalij / 1982 | Q44: 182.24 | AC44: 182.24
A45: Балашов Никита / Balashov Nikita / 1983 | C45: 409.34 | S45: 272.73 | AC45: 682.07
A46: Балицкая Ольга / Balitskaya Olga / 1981 | Z46: 272.49 | AC46: 272.49
A47: Барановский Александр / Baranovskij Aleksandr / 1984 | S47: 300 | AC47: 300
A48: Барановский Алексей / Baranovskij Aleksej / 1981 | G48: 461.39 | Q48: 158.26 | AC48: 619.65
A49: Баронов Роман / Baronov Roman / 1993 | L49: 306.03 | P49: 224.36 | AC49: 530.39
A50: Барсумян Артур / Barsumyan Artur / 1992 | K50: 189.05 | AC50: 189.05
A51: Бахтизин Павел / Bahtizin Pavel / 1980 | F51: 255.54 | AC51: 255.54
A52: Бачища Николай / Bachischa Nikolaj / 1988 | AB52: 238.4 | AC52: 238.4
A53: Беганский Иван / Beganskij Ivan / 1984 | G53: 219.71 | AC53: 219.71
A54: Бегун Егор / Begun Egor / 1988 | E54: 250.23 | L54: 232.85 | V54: 169.83 | W54: 282.49 | AC54: 935.4
A55: Белая Юлия / Belaya Yuliya / 1988 | D55: 664.36 | F55: 136.29 | J55: 375.87 | Q55: 274.05 | AC55: 1450.57
A56: Белинская Галина / Belinskaya Galina / 1980 | AB56: 684.25 | AC56: 684.25
A57: Белицкий Денис / Belitskij Denis / 1990 | C57: 90.96 | Q57: 43.16 | AC57: 134.12
A58: Белов Александр / Belov Aleksandr / 1991 | W58: 178.14 | AC58: 178.14
A59: Белоусов Александр / Belousov Aleksandr / 1981 | P59: 132.57 | AC59: 132.57
A60: Белоцкая Елена / Belotskaya Elena / 1987 | K60: 116.01 | AC60: 116.01
A61: Беляй Владимир / Belyaj Vladimir / 1989 | Z61: 260.38 | AC61: 260.38
A62: Бердников Дмитрий / Berdnikov Dmitrij / | P62: 66.29 | AC62: 66.29
A63: Березин Артём / Berezin Artjom / 1986 | Q63: 148.67 | T63: 182.11 | AC63: 330.78
A64: Березовский Андрей / Berezovskij Andrej / 1973 | J64: 465.77 | Q64: 297.34 | T64: 376.36 | V64: 378.85 | AB64: 693.54 | AC64: 2211.86
A65: Бизюк Игорь / Bizyuk Igor / 1956 | D65: 157.99 | AC65: 157.99
A66: Бобровский Максим / Bobrovskij Maksim / 1991 | V66: 261.28 | AC66: 261.28
A67: Богачев Борис / Bogachev Boris / 1991 | T67: 437.06 | AC67: 437.06
A68: Богдевич Анатолий / Bogdevich Anatolij / 1999 | P68: 234.55 | AC68: 234.55
A69: Богомаз Владимир / Bogomaz Vladimir / 1982 | X69: 455.28 | AC69: 455.28
A70: Богомаз Екатерина / Bogomaz Ekaterina / 1981 | Z70: 107.86 | AC70: 107.86
A71: Бойко Евгений / Bojko Evgenij / 1985 | R71: 165.79 | AC71: 165.79
A72: Бокунович Дмитрий / Bokunovich Dmitrij / 1982 | F72: 392.43 | AC72: 392.43
A73: Бокша Сергей / Boksha Sergej / 1988 | J73: 319.02 | T73: 133.55 | AC73: 452.57
A74: Болотов Илья / Bolotov Ilya / 1988 | W74: 127.25 | AC74: 127.25
A75: Бондарь Юлия / Bondar Yuliya / 1993 | C75: 275.16 | AC75: 275.16
A76: Борздыко Виктория / Borzdyko Viktoriya / 1994 | Z76: 164.63 | AC76: 164.63
A77: Борисевич Александр / Borisevich Aleksandr / 1989 | C77: 218.31 | Q77: 124.69 | AC77: 343
A78: Борисевич Анастасия / Borisevich Anastasiya / 1985 | C78: 137.58 | N78: 714.28 | S78: 63.16 | AC78: 915.02
A79: Борисевич Леонид / Borisevich Leonid / 1969 | J79: 401.97 | Q79: 292.55 | AA79: 896.09 | AC79: 1590.61
A80: Бортник Александр / Bortnik Aleksandr / 1994 | L80: 139.71 | AC80: 139.71
A81: Бортняк Екатерина / Bortnyak Ekaterina / 1994 | U81: 13.8 | AC81: 13.8
A82: Брагин Иван / Bragin Ivan / 1986 | N82: 714.28 | AC82: 714.28
A83: Бритов Максим / Britov Maksim / 1974 | F83: 82.14 | AC83: 82.14
A84: Брытько Роман / Brytko Roman / 1995 | J84: 185.03 | L84: 292.72 | P84: 285.55 | U84: 254.56 | V84: 352.73 | Z84: 248.27 | AC84: 1618.86
A85: Бубликов Александр / Bublikov Aleksandr / 1986 | F85: 36.51 | V85: 65.32 | Z85: 30.28 | AC85: 132.11
A86: Будник Владимир / Budnik Vladimir / 1987 | C86: 172.83 | AC86: 172.83
A87: Будрик Юлия / Budrik Yuliya / 1995 | P87: 239.79 | AC87: 239.79
A88: Будыхина Татьяна / Budyhina Tatyana / 1985 | C88: 37.52 | AC88: 37.52
A89: Бузо Александр / Buzo Aleksandr / 1982 | F89: 483.7 | I89: 403.18 | M89: 449.87 | Q89: 235 | S89: 309.09 | W89: 361.38 | AC89: 2242.22
A90: Булеева Наталья / Buleeva Natalya / 1969 | I90: 226.85 | AC90: 226.85
A91: Бунос Анатолий / Bunos Anatolij / 1956 | I91: 308.82 | AC91: 308.82
A92: Бурак Анжелика / Burak Anzhelika / 1994 | E92: 128.59 | R92: 144.7 | AC92: 273.29
A93: Бураковская Ульяна / Burakovskaya Ulyana / 1996 | Z93: 136.24 | AC93: 136.24
A94: Бурый Евгений / Buryj Evgenij / 1984 | X94: 164.96 | AC94: 164.96
A95: Буто Дмитрий / Buto Dmitrij / 1988 | W95: 257.04 | AC95: 257.04
A96: Бутурля Александр / Buturlya Aleksandr / 1981 | R96: 113.98 | AC96: 113.98
A97: Буховецкий Андрей / Buhovetskij Andrej / 1987 | C97: 300.18 | AC97: 300.18
A98: Бушковский Максим / Bushkovskij Maksim / 1989 | Q98: 95.92 | W98: 150.15 | AC98: 246.07
A99: Быков Владимир / Bykov Vladimir / 1977 | AB99: 346.77 | AC99: 346.77
A100: Бычинский Владислав / Bychinskij Vladislav / 1992 | L100: 206.24 | AC100: 206.24
A101: Бычков Александр / Bychkov Aleksandr / 1990 | C101: 81.87 | AC101: 81.87
A102: Вагин Андрей / Vagin Andrej / 1989 | D102: 719.72 | J102: 491.3 | M102: 460.84 | X102: 521.26 | AC102: 2193.12
A103: Вадим Лукин / Vadim Lukin / 1993 | V103: 300.47 | AC103: 300.47
A104: Вайдо Андрей / Vajdo Andrej / 1995 | W104: 389.37 | AC104: 389.37
A105: Вайтешонок Сергей / Vajteshonok Sergej / 1981 | K105: 120.3 | W105: 211.23 | AC105: 331.53
A106: Ванькова Светлана / Vankova Svetlana / 1984 | W106: 149.3 | AC106: 149.3
A107: Варава Андрей / Varava Andrej / 1994 | S107: 172.73 | AC107: 172.73
A108: Варданян Кристина / Vardanyan Kristina / 1981 | C108: 350.21 | AC108: 350.21
A109: Варивода Сергей / Varivoda Sergej / 1964 | Z109: 163.49 | AC109: 163.49
A110: Василевич Валентина / Vasilevich Valentina / 1998 | J110: 187.93 | Q110: 27.4 | X110: 166.28 | AC110: 381.61
A111: Васильченко Вадим / Vasilchenko Vadim / 1987 | F111: 146.02 | S111: 63.64 | AC111: 209.66
A112: Вдовиченко Ирина / Vdovichenko Irina / 1989 | I112: 97.22 | M112: 98.75 | AC112: 195.97
A113: Величко Павел / Velichko Pavel / 1982 | B113: 520.58 | Q113: 258.97 | AC113: 779.55
A114: Веремейчик Елена / Veremejchik Elena / 1986 | F114: 442.93 | P114: 248.06 | T114: 226.62 | AC114: 917.61
A115: Веремейчик Юрий / Veremejchik Yurij / 1979 | J115: 293.5 | M115: 274.31 | AC115: 567.81
A116: Веремич Юрий / Veremich Yurij / 1979 | S116: 263.64 | AC116: 263.64
A117: Верещако Павел / Vereschako Pavel / 1988 | I117: 283.08 | W117: 300.3 | AC117: 583.38
A118: Ветохин Иван / Vetohin Ivan / 1987 | R118: 41.45 | AC118: 41.45
A119: Ветохина София / Vetohina Sofiya / 2010 | R119: 34.05 | AC119: 34.05
A120: Винтергрин Андрей / Vintergrin Andrej / 1981 | C120: 236.51 | AC120: 236.51
A121: Вирский Константин / Virskij Konstantin / 1977 | L121: 199.59 | W121: 193.41 | AC121: 393
A122: Вирт Олег / Virt Oleg / 1980 | C122: 63.67 | AC122: 63.67
A123: Вишневская Анастасия / Vishnevskaya Anastasiya / 1995 | Z123: 56.77 | AC123: 56.77
A124: Войтехович Максим / Vojtehovich Maksim / 1990 | X124: 204.55 | AC124: 204.55
A125: Войтович Татьяна / Vojtovich Tatyana / 1986 | E125: 79.13 | L125: 143.29 | S125: 126.32 | W125: 83.98 | AC125: 432.72
A126: Волков Алексей / Volkov Aleksej / 1990 | F126: 100.39 | AC126: 100.39
A127: Волков Алексей / Volkov Aleksej / 1990 | X127: 98.97 | AC127: 98.97
A128: Волков Николай / Volkov Nikolaj / 1989 | I128: 428.91 | T128: 352.08 | AC128: 780.99
A129: Володько Андрей / Volodko Andrej / 1986 | D129: 526.63 | F129: 456.32 | K129: 206.24 | M129: 296.26 | Q129: 230.2 | X129: 257.33 | AC129: 1972.98
A130: Володько Владимир / Volodko Vladimir / 2001 | R130: 186.52 | AC130: 186.52
A131: Волостных Сергей / Volostnyh Sergej / 1989 | D131: 210.65 | AC131: 210.65
A132: Воробьев Дмитрий / Vorobev Dmitrij / 1988 | W132: 45.81 | AC132: 45.81
A133: Воробьёв Дмитрий / Vorobjov Dmitrij / 1988 | L133: 153.02 | R133: 176.16 | AC133: 329.18
A134: Ворончук Алексей / Voronchuk Aleksej / 1987 | W134: 27.99 | AC134: 27.99
A135: Воротникова Татьяна / Vorotnikova Tatyana / 1989 | X135: 193.99 | AC135: 193.99
A136: Врублевский Кирилл / Vrublevskij Kirill / 1995 | Z136: 217.99 | AC136: 217.99
A137: Выборный Александр / Vybornyj Aleksandr / 1985 | M137: 351.12 | Q137: 306.93 | AC137: 658.05
A138: Выробов Дмитрий / Vyrobov Dmitrij / 1988 | K138: 34.37 | AC138: 34.37
A139: Гайдуков Александр / Gajdukov Aleksandr / 1989 | L139: 299.38 | U139: 235.7 | AC139: 535.08
A140: Гайдукович Максим / Gajdukovich Maksim / 1988 | Z140: 211.94 | AC140: 211.94
A141: Галец Константин / Galets Konstantin / 1988 | U141: 94.28 | W141: 106.89 | AC141: 201.17
A142: Галка Дмитрий / Galka Dmitrij / 1988 | C142: 281.99 | AC142: 281.99
A143: Гамидов Нариман / Gamidov Nariman / 1972 | L143: 179.63 | AC143: 179.63
A144: Гамидов Тимур / Gamidov Timur / 1996 | L144: 345.95 | AC144: 345.95
A145: Гандзюк Всеволод / Gandzyuk Vsevolod / | S145: 72.73 | AC145: 72.73
A146: Гарбар Екатерина / Garbar Ekaterina / 1989 | P146: 140.57 | AC146: 140.57
A147: Гарбуз Алла / Garbuz Alla / 1969 | L147: 28.66 | R147: 25.54 | U147: 41.39 | AC147: 95.59
A148: Гаслова Ольга / Gaslova Olga / 1981 | Z148: 85.15 | AC148: 85.15
A149: Генсировский Павел / Gensirovskij Pavel / 1979 | B149: 1041.15 | AC149: 1041.15
A150: Геранин Дмитрий / Geranin Dmitrij / | R150: 207.24 | AC150: 207.24
A151: Герасевич Максим / Gerasevich Maksim / | I151: 94.36 | R151: 103.62 | W151: 15.27 | AC151: 213.25
A152: Герасимук Дмитрий / Gerasimuk Dmitrij / 1993 | U152: 245.13 | W152: 343.56 | AC152: 588.69
A153: Герасимук Юрий / Gerasimuk Yurij / 1992 | C153: 309.28 | H153: 789.68 | M153: 142.64 | X153: 362.91 | AC153: 1604.51
A154: Герман Кирилл / German Kirill / 1999 | W154: 254.49 | AC154: 254.49
A155: Гецман Мила / Getsman Mila / 1988 | U155: 241.45 | AC155: 241.45
A156: Гидлевский Дмитрий / Gidlevskij Dmitrij / 1986 | K156: 309.35 | L156: 359.25 | AC156: 668.6
A157: Гилевич Диана / Gilevich Diana / 1993 | E157: 356.09 | J157: 516.82 | P157: 305.94 | AC157: 1178.85
A158: Гилевич Кристина / Gilevich Kristina / 1994 | E158: 336.31 | J158: 469.83 | V158: 391.92 | AC158: 1198.06
A159: Гладкая Ольга / Gladkaya Olga / 1986 | Z159: 39.74 | AC159: 39.74
A160: Гладкова Анна / Gladkova Anna / 1985 | K160: 103.12 | R160: 51.07 | AC160: 154.19
A161: Гладковский Владислав / Gladkovskij Vladislav / 1990 | C161: 354.76 | AC161: 354.76
A162: Глатанков Пётр / Glatankov Pjotr / 1978 | Z162: 187.71 | AC162: 187.71
A163: Глебко Сергей / Glebko Sergej / 1985 | Z163: 102.94 | AC163: 102.94
A164: Глушаков Сергей / Glushakov Sergej / 1958 | J164: 210.56 | AC164: 210.56
A165: Глушков Александр / Glushkov Aleksandr / 1980 | B165: 780.86 | O165: 417.43 | Q165: 191.83 | AC165: 1390.12
A166: Голомзик Дмитрий / Golomzik Dmitrij / 1972 | V166: 52.26 | AC166: 52.26
A167: Голубева Елена / Golubeva Elena / 1987 | J167: 328.88 | Q167: 164.43 | AC167: 493.31
A168: Гомон Сергей / Gomon Sergej / 1990 | B168: 202.45 | AC168: 202.45
A169: Гончарик Наталья / Goncharik Natalya / 1991 | L169: 71.65 | AC169: 71.65
A170: Гончаров Игорь / Goncharov Igor / 1981 | X170: 316.72 | AC170: 316.72
A171: Гончаров Николай / Goncharov Nikolaj / 1984 | U171: 179.13 | AC171: 179.13
A172: Горбач Максим / Gorbach Maksim / 1983 | G172: 527.3 | AC172: 527.3
A173: Горбиков Кирилл / Gorbikov Kirill / 1982 | F173: 18.25 | AC173: 18.25
A174: Горевцова Евгения / Gorevtsova Evgeniya / 1989 | S174: 168.42 | W174: 111.98 | AC174: 280.4
A175: Горелик Юрий / Gorelik Yurij / 1987 | E175: 182.86 | W175: 267.22 | AC175: 450.08
A176: Горнов Антон / Gornov Anton / 1992 | Z176: 205.88 | AC176: 205.88
A177: Городко Игорь / Gorodko Igor / 1970 | C177: 72.77 | AC177: 72.77
A178: Горшков Игорь / Gorshkov Igor / 1977 | F178: 127.77 | I178: 102.94 | X178: 138.56 | AC178: 369.27
A179: Гославская Анастасия / Goslavskaya Anastasiya / 1991 | U179: 137.97 | AC179: 137.97
A180: Грабовец Павел / Grabovets Pavel / 1981 | B180: 954.39 | AC180: 954.39
A181: Гракович Ольга / Grakovich Olga / 1994 | P181: 90.96 | AC181: 90.96
A182: Грачева Анастасия / Gracheva Anastasiya / 1995 | W182: 18.66 | AC182: 18.66
A183: Гребенчук Максим / Grebenchuk Maksim / 1989 | E183: 153.98 | W183: 386.83 | AC183: 540.81
A184: Грейд Юлия / Grejd Yuliya / 1986 | I184: 194.44 | M184: 164.59 | AC184: 359.03
A185: Грек Илья / Grek Ilya / 1992 | E185: 288.72 | M185: 230.42 | AB185: 455.14 | AC185: 974.28
A186: Греков Игорь / Grekov Igor / 1970 | D186: 263.31 | F186: 136.9 | AC186: 400.21
A187: Гречишкин Алексей / Grechishkin Aleksej / 1983 | P187: 20.4 | AC187: 20.4
A188: Гриб Екатерина / Grib Ekaterina / 1981 | K188: 219.13 | L188: 243.6 | W188: 55.99 | AC188: 518.72
A189: Григорович Руслан / Grigorovich Ruslan / 1987 | K189: 232.02 | AC189: 232.02
A190: Григорьев Никита / Grigorev Nikita / 1990 | T190: 509.9 | AC190: 509.9
A191: Григорьева Светлана / Grigoreva Svetlana / 1984 | I191: 275.46 | P191: 157.1 | W191: 158.63 | AC191: 591.19
A192: Гринько Анастасия / Grinko Anastasiya / 1993 | I192: 178.24 | L192: 257.93 | AC192: 436.17
A193: Грицевич Виталий / Gritsevich Vitalij / 1987 | L193: 146.36 | AC193: 146.36
A194: Грицук Татьяна / Gritsuk Tatyana / 1973 | D194: 276.82 | AC194: 276.82
A195: Гришко Руслан / Grishko Ruslan / 1974 | W195: 2.54 | AC195: 2.54
A196: Грошева Елена / Grosheva Elena / 1994 | E196: 59.35 | AC196: 59.35
A197: Грушевская Виктория / Grushevskaya Viktoriya / 1992 | U197: 151.77 | AC197: 151.77
A198: Гумбар Илья / Gumbar Ilya / 1989 | Q198: 263.77 | AC198: 263.77
A199: Гурская Татьяна / Gurskaya Tatyana / 1980 | B199: 1041.15 | AC199: 1041.15
A200: Гурский Олег / Gurskij Oleg / 1988 | X200: 46.19 | AC200: 46.19
A201: Гусаревич Денис / Gusarevich Denis / 1983 | B201: 578.42 | AC201: 578.42
A202: Давыдов Андрей / Davydov Andrej / 1980 | F202: 328.55 | AC202: 328.55
... 814 more rows

Sheet 4 лучших1
A3: Сумма по полю личный рез-т соревнований | B3: Названия столбцов | AD3: Лучшие результаты
A4: Названия строк | B4: "Налибоки 2018" Трейл 100 | C4: "Налибоки 2018" Трейл 21 | D4: "Налибоки 2018" Трейл 42 | E4: Дорога замков Трейл 10 | F4: Дорога замков Трейл 21 | G4: Дорога замков Трейл 42 | H4: Дорога замков Ультра-Трейл 100 | I4: Жук-трейл # 4 Минское Море Трейл 16 | J4: Жук-трейл # 4 Минское Море Трейл 25 | K4: Жук-трейл # 4 Минское Море Трейл 8 | L4: Жук-трейл # 5 Крево Трейл 10 | M4: Жук-трейл # 5 Крево Трейл 21 | N4: Жук-трейл # 5 Крево Трейл 45 | O4: Жук-трейл # 5 Крево Трейл 70 | P4: Жук-трейл #6 Купалье Трейл 10 | Q4: Жук-трейл #6 Купалье Трейл 21 | R4: Жук-трейл #6 Купалье Трейл 5 | S4: Жук-трейл #7 Раубичи Трейл 10 | T4: Жук-трейл #7 Раубичи Трейл 21 | U4: Жук-трейл #7 Раубичи Трейл 5 | V4: Жук-трейл #8 Логойск Ночной 10 | W4: Жук-трейл #8 Логойск Трейл 10 | X4: Жук-трейл #8 Логойск Трейл 21 | Y4: Жук-трейл #8 Логойск Трейл 42 | Z4: Жук-трейл #8 Логойск Трейл 5 | AA4: Зима минус 100 Трейл 100 | AB4: Зима минус 100 Трейл 50 | AC4: Общий итог | AH4: Сумма баллов (принятая к зачёту)
A5: Ben Bilel / Ben Bilel / 1981 | N5: 71.43 | AC5: 71.43 | AD5: =LARGE(B5:AB5,1) -> 71.43 | AE5: =IF(COUNT(B5:AB5)=1,0,LARGE(B5:AB5,2)) -> 0 | AF5: =IF(COUNT(B5:AB5)<3,0,LARGE(B5:AB5,3)) -> 0 | AG5: =IF(COUNT(B5:AB5)<4,0,LARGE(B5:AB5,4)) -> 0 | AH5: =SUM(AD5:AG5) -> 71.43 | AJ5: =VLOOKUP(A5,'личные рез-ты по гонкам списком'!$J$1:$N$1645,2,FALSE) -> М | AK5: =COUNT(B5:AB5) -> 1
A6: McTavish John / McTavish John / 1987 | T6: 303.51 | X6: 508.07 | AC6: 811.58 | AD6: =LARGE(B6:AB6,1) -> 508.07 | AE6: =IF(COUNT(B6:AB6)=1,0,LARGE(B6:AB6,2)) -> 303.51 | AF6: =IF(COUNT(B6:AB6)<3,0,LARGE(B6:AB6,3)) -> 0 | AG6: =IF(COUNT(B6:AB6)<4,0,LARGE(B6:AB6,4)) -> 0 | AH6: =SUM(AD6:AG6) -> 811.58 | AJ6: =VLOOKUP(A6,'личные рез-ты по гонкам списком'!$J$1:$N$1645,2,FALSE) -> М | AK6: =COUNT(B6:AB6) -> 2
A7: Tan Burak / Tan Burak / 1983 | E7: 192.48 | W7: 213.77 | AC7: 406.25 | AD7: 213.77 | AE7: 192.48 | AF7: 0 | AG7: 0 | AH7: 406.25 | AJ7: =VLOOKUP(A7,'личные рез-ты по гонкам списком'!$J$1:$N$1645,2,FALSE) -> М | AK7: 2
A8: user 4931 dan / user 4931 dan / 1989 | W8: 223.95 | AC8: 223.95 | AD8: 223.95 | AE8: 0 | AF8: 0 | AG8: 0 | AH8: 223.95 | AJ8: =VLOOKUP(A8,'личные рез-ты по гонкам списком'!$J$1:$N$1645,2,FALSE) -> М | AK8: 1
A9: Абаркина Елена / Abarkina Elena / 1983 | E9: 29.67 | R9: 110.65 | AC9: 140.32 | AD9: 110.65 | AE9: 29.67 | AF9: 0 | AG9: 0 | AH9: 140.32 | AJ9: =VLOOKUP(A9,'личные рез-ты по гонкам списком'!$J$1:$N$1645,2,FALSE) -> Ж | AK9: 2
A10: Авсянский Федор / Avsyanskij Fedor / 1988 | W10: 83.98 | AC10: 83.98 | AD10: 83.98 | AE10: 0 | AF10: 0 | AG10: 0 | AH10: 83.98 | AJ10: =VLOOKUP(A10,'личные рез-ты по гонкам списком'!$J$1:$N$1645,2,FALSE) -> М | AK10: 1
A11: Агаев Руслан / Agaev Ruslan / 1995 | P11: 137.67 | AC11: 137.67 | AD11: 137.67 | AE11: 0 | AF11: 0 | AG11: 0 | AH11: 137.67 | AJ11: =VLOOKUP(A11,'личные рез-ты по гонкам списком'!$J$1:$N$1645,2,FALSE) -> М | AK11: 1
A12: Агеев Константин / Ageev Konstantin / 1995 | X12: 303.52 | AC12: 303.52 | AD12: 303.52 | AE12: 0 | AF12: 0 | AG12: 0 | AH12: 303.52 | AJ12: =VLOOKUP(A12,'личные рез-ты по гонкам списком'!$J$1:$N$1645,2,FALSE) -> М | AK12: 1
A13: Агеева Катерина / Ageeva Katerina / 1986 | W13: 37.33 | AC13: 37.33 | AD13: 37.33 | AE13: 0 | AF13: 0 | AG13: 0 | AH13: 37.33 | AJ13: =VLOOKUP(A13,'личные рез-ты по гонкам списком'!$J$1:$N$1645,2,FALSE) -> Ж | AK13: 1
A14: Адаменко Виталий / Adamenko Vitalij / 1985 | L14: 26.61 | U14: 18.86 | Z14: 48.44 | AC14: 93.91 | AD14: 48.44 | AE14: 26.61 | AF14: 18.86 | AG14: 0 | AH14: 93.91 | AJ14: =VLOOKUP(A14,'личные рез-ты по гонкам списком'!$J$1:$N$1645,2,FALSE) -> М | AK14: 3
A15: Адамов Юрий / Adamov Yurij / 1976 | Z15: 42.39 | AC15: 42.39 | AD15: 42.39 | AE15: 0 | AF15: 0 | AG15: 0 | AH15: 42.39 | AJ15: =VLOOKUP(A15,'личные рез-ты по гонкам списком'!$J$1:$N$1645,2,FALSE) -> М | AK15: 1
A16: Адамович Денис / Adamovich Denis / 1986 | W16: 99.25 | AC16: 99.25 | AD16: 99.25 | AE16: 0 | AF16: 0 | AG16: 0 | AH16: 99.25 | AJ16: =VLOOKUP(A16,'личные рез-ты по гонкам списком'!$J$1:$N$1645,2,FALSE) -> М | AK16: 1
A17: Адамович Ирина / Adamovich Irina / 1973 | C17: 425.25 | T17: 283.28 | AC17: 708.53 | AD17: 425.25 | AE17: 283.28 | AF17: 0 | AG17: 0 | AH17: 708.53 | AJ17: =VLOOKUP(A17,'личные рез-ты по гонкам списком'!$J$1:$N$1645,2,FALSE) -> Ж | AK17: 2
A18: Адасик Вячеслав / Adasik Vyacheslav / 1975 | X18: 270.53 | AC18: 270.53 | AD18: 270.53 | AE18: 0 | AF18: 0 | AG18: 0 | AH18: 270.53 | AJ18: =VLOOKUP(A18,'личные рез-ты по гонкам списком'!$J$1:$N$1645,2,FALSE) -> М | AK18: 1
A19: Акулич Владимир / Akulich Vladimir / 1986 | E19: 279.1 | W19: 307.94 | AC19: 587.04 | AD19: 307.94 | AE19: 279.1 | AF19: 0 | AG19: 0 | AH19: 587.04 | AJ19: =VLOOKUP(A19,'личные рез-ты по гонкам списком'!$J$1:$N$1645,2,FALSE) -> М | AK19: 2
A20: Акулова Виктория / Akulova Viktoriya / 1980 | Z20: 153.27 | AC20: 153.27 | AD20: 153.27 | AE20: 0 | AF20: 0 | AG20: 0 | AH20: 153.27 | AJ20: =VLOOKUP(A20,'личные рез-ты по гонкам списком'!$J$1:$N$1645,2,FALSE) -> Ж | AK20: 1
A21: Александрова Дарья / Aleksandrova Darya / 1995 | E21: 296.74 | AC21: 296.74 | AD21: 296.74 | AE21: 0 | AF21: 0 | AG21: 0 | AH21: 296.74 | AJ21: =VLOOKUP(A21,'личные рез-ты по гонкам списком'!$J$1:$N$1645,2,FALSE) -> Ж | AK21: 1
A22: Александронец Ганна / Aleksandronets Ganna / 1991 | F22: 68.14 | AC22: 68.14 | AD22: 68.14 | AE22: 0 | AF22: 0 | AG22: 0 | AH22: 68.14 | AJ22: =VLOOKUP(A22,'личные рез-ты по гонкам списком'!$J$1:$N$1645,2,FALSE) -> Ж | AK22: 1
A23: Алексеев Алексей / Alekseev Aleksej / 1980 | F23: 401.56 | J23: 331.78 | N23: 500 | Q23: 225.4 | W23: 259.58 | AC23: 1718.32 | AD23: 500 | AE23: 401.56 | AF23: 331.78 | AG23: 259.58 | AH23: 1492.92 | AJ23: =VLOOKUP(A23,'личные рез-ты по гонкам списком'!$J$1:$N$1645,2,FALSE) -> М | AK23: 5
A24: Алексейчик Павел / Aleksejchik Pavel / 1994 | W24: 244.31 | AC24: 244.31 | AD24: 244.31 | AE24: 0 | AF24: 0 | AG24: 0 | AH24: 244.31 | AJ24: =VLOOKUP(A24,'личные рез-ты по гонкам списком'!$J$1:$N$1645,2,FALSE) -> М | AK24: 1
A25: Аленова Анастасия / Alenova Anastasiya / 1993 | Z25: 238.43 | AC25: 238.43 | AD25: 238.43 | AE25: 0 | AF25: 0 | AG25: 0 | AH25: 238.43 | AJ25: =VLOOKUP(A25,'личные рез-ты по гонкам списком'!$J$1:$N$1645,2,FALSE) -> Ж | AK25: 1
A26: Алесиюк Татьяна / Alesiyuk Tatyana / 1987 | W26: 242.62 | AC26: 242.62 | AD26: 242.62 | AE26: 0 | AF26: 0 | AG26: 0 | AH26: 242.62 | AJ26: =VLOOKUP(A26,'личные рез-ты по гонкам списком'!$J$1:$N$1645,2,FALSE) -> Ж | AK26: 1
A27: Ананич Александр / Ananich Aleksandr / 1979 | AB27: 108.37 | AC27: 108.37 | AD27: 108.37 | AE27: 0 | AF27: 0 | AG27: 0 | AH27: 108.37 | AJ27: =VLOOKUP(A27,'личные рез-ты по гонкам списком'!$J$1:$N$1645,2,FALSE) -> М | AK27: 1
A28: Анацко Леонид / Anatsko Leonid / 1961 | O28: 298.16 | Q28: 14.39 | AC28: 312.55 | AD28: 298.16 | AE28: 14.39 | AF28: 0 | AG28: 0 | AH28: 312.55 | AJ28: =VLOOKUP(A28,'личные рез-ты по гонкам списком'!$J$1:$N$1645,2,FALSE) -> М | AK28: 2
A29: Андрюшенко Андрей / Andryushenko Andrej / 1980 | W29: 94.16 | AC29: 94.16 | AD29: 94.16 | AE29: 0 | AF29: 0 | AG29: 0 | AH29: 94.16 | AJ29: =VLOOKUP(A29,'личные рез-ты по гонкам списком'!$J$1:$N$1645,2,FALSE) -> М | AK29: 1
A30: Андуро Сергей / Anduro Sergej / 1986 | M30: 307.23 | AC30: 307.23 | AD30: 307.23 | AE30: 0 | AF30: 0 | AG30: 0 | AH30: 307.23 | AJ30: =VLOOKUP(A30,'личные рез-ты по гонкам списком'!$J$1:$N$1645,2,FALSE) -> М | AK30: 1
A31: Аноничев Александр / Anonichev Aleksandr / 1982 | Q31: 369.28 | AC31: 369.28 | AD31: 369.28 | AE31: 0 | AF31: 0 | AG31: 0 | AH31: 369.28 | AJ31: =VLOOKUP(A31,'личные рез-ты по гонкам списком'!$J$1:$N$1645,2,FALSE) -> М | AK31: 1
A32: Антонова Мария / Antonova Mariya / 1980 | E32: 118.7 | AC32: 118.7 | AD32: 118.7 | AE32: 0 | AF32: 0 | AG32: 0 | AH32: 118.7 | AJ32: =VLOOKUP(A32,'личные рез-ты по гонкам списком'!$J$1:$N$1645,2,FALSE) -> Ж | AK32: 1
A33: Арабиенко Татьяна / Arabienko Tatyana / 1986 | D33: 609 | AC33: 609 | AD33: 609 | AE33: 0 | AF33: 0 | AG33: 0 | AH33: 609 | AJ33: =VLOOKUP(A33,'личные рез-ты по гонкам списком'!$J$1:$N$1645,2,FALSE) -> Ж | AK33: 1
A34: Аржаников Евгений / Arzhanikov Evgenij / 1976 | C34: 263.79 | I34: 85.78 | M34: 153.61 | AC34: 503.18 | AD34: 263.79 | AE34: 153.61 | AF34: 85.78 | AG34: 0 | AH34: 503.18 | AJ34: =VLOOKUP(A34,'личные рез-ты по гонкам списком'!$J$1:$N$1645,2,FALSE) -> М | AK34: 3
A35: Арзамасов Илья / Arzamasov Ilya / 1987 | G35: 637.16 | AC35: 637.16 | AD35: 637.16 | AE35: 0 | AF35: 0 | AG35: 0 | AH35: 637.16 | AJ35: =VLOOKUP(A35,'личные рез-ты по гонкам списком'!$J$1:$N$1645,2,FALSE) -> М | AK35: 1
A36: Арловская Кристина / Arlovskaya Kristina / 1989 | M36: 230.42 | AB36: 263.17 | AC36: 493.59 | AD36: 263.17 | AE36: 230.42 | AF36: 0 | AG36: 0 | AH36: 493.59 | AJ36: =VLOOKUP(A36,'личные рез-ты по гонкам списком'!$J$1:$N$1645,2,FALSE) -> Ж | AK36: 2
A37: Артихович Александр / Artihovich Aleksandr / 1972 | P37: 71.39 | V37: 91.45 | W37: 114.52 | AC37: 277.36 | AD37: 114.52 | AE37: 91.45 | AF37: 71.39 | AG37: 0 | AH37: 277.36 | AJ37: =VLOOKUP(A37,'личные рез-ты по гонкам списком'!$J$1:$N$1645,2,FALSE) -> М | AK37: 3
A38: Асаевич Роман / Asaevich Roman / 1964 | D38: 351.08 | AC38: 351.08 | AD38: 351.08 | AE38: 0 | AF38: 0 | AG38: 0 | AH38: 351.08 | AJ38: =VLOOKUP(A38,'личные рез-ты по гонкам списком'!$J$1:$N$1645,2,FALSE) -> М | AK38: 1
A39: Астапеня Андрей / Astapenya Andrej / 1985 | W39: 287.58 | AC39: 287.58 | AD39: 287.58 | AE39: 0 | AF39: 0 | AG39: 0 | AH39: 287.58 | AJ39: =VLOOKUP(A39,'личные рез-ты по гонкам списком'!$J$1:$N$1645,2,FALSE) -> М | AK39: 1
A40: Астапов Владимир / Astapov Vladimir / 1977 | B40: 375.97 | G40: 483.36 | AC40: 859.33 | AD40: 483.36 | AE40: 375.97 | AF40: 0 | AG40: 0 | AH40: 859.33 | AJ40: =VLOOKUP(A40,'личные рез-ты по гонкам списком'!$J$1:$N$1645,2,FALSE) -> М | AK40: 2
A41: Афанасьев Иван / Afanasev Ivan / 1979 | P41: 305.94 | AC41: 305.94 | AD41: 305.94 | AE41: 0 | AF41: 0 | AG41: 0 | AH41: 305.94 | AJ41: =VLOOKUP(A41,'личные рез-ты по гонкам списком'!$J$1:$N$1645,2,FALSE) -> М | AK41: 1
A42: Бабицкий Кирилл / Babitskij Kirill / 1998 | AB42: 628.52 | AC42: 628.52 | AD42: 628.52 | AE42: 0 | AF42: 0 | AG42: 0 | AH42: 628.52 | AJ42: =VLOOKUP(A42,'личные рез-ты по гонкам списком'!$J$1:$N$1645,2,FALSE) -> М | AK42: 1
A43: Бабич Виталий / Babich Vitalij / 1981 | C43: 345.66 | AC43: 345.66 | AD43: 345.66 | AE43: 0 | AF43: 0 | AG43: 0 | AH43: 345.66 | AJ43: =VLOOKUP(A43,'личные рез-ты по гонкам списком'!$J$1:$N$1645,2,FALSE) -> М | AK43: 1
A44: Бажанский Виталий / Bazhanskij Vitalij / 1982 | Q44: 182.24 | AC44: 182.24 | AD44: 182.24 | AE44: 0 | AF44: 0 | AG44: 0 | AH44: 182.24 | AJ44: =VLOOKUP(A44,'личные рез-ты по гонкам списком'!$J$1:$N$1645,2,FALSE) -> М | AK44: 1
A45: Балашов Никита / Balashov Nikita / 1983 | C45: 409.34 | S45: 272.73 | AC45: 682.07 | AD45: 409.34 | AE45: 272.73 | AF45: 0 | AG45: 0 | AH45: 682.07 | AJ45: =VLOOKUP(A45,'личные рез-ты по гонкам списком'!$J$1:$N$1645,2,FALSE) -> М | AK45: 2
A46: Балицкая Ольга / Balitskaya Olga / 1981 | Z46: 272.49 | AC46: 272.49 | AD46: 272.49 | AE46: 0 | AF46: 0 | AG46: 0 | AH46: 272.49 | AJ46: =VLOOKUP(A46,'личные рез-ты по гонкам списком'!$J$1:$N$1645,2,FALSE) -> Ж | AK46: 1
A47: Барановский Александр / Baranovskij Aleksandr / 1984 | S47: 300 | AC47: 300 | AD47: 300 | AE47: 0 | AF47: 0 | AG47: 0 | AH47: 300 | AJ47: =VLOOKUP(A47,'личные рез-ты по гонкам списком'!$J$1:$N$1645,2,FALSE) -> М | AK47: 1
A48: Барановский Алексей / Baranovskij Aleksej / 1981 | G48: 461.39 | Q48: 158.26 | AC48: 619.65 | AD48: 461.39 | AE48: 158.26 | AF48: 0 | AG48: 0 | AH48: 619.65 | AJ48: =VLOOKUP(A48,'личные рез-ты по гонкам списком'!$J$1:$N$1645,2,FALSE) -> М | AK48: 2
A49: Баронов Роман / Baronov Roman / 1993 | L49: 306.03 | P49: 224.36 | AC49: 530.39 | AD49: 306.03 | AE49: 224.36 | AF49: 0 | AG49: 0 | AH49: 530.39 | AJ49: =VLOOKUP(A49,'личные рез-ты по гонкам списком'!$J$1:$N$1645,2,FALSE) -> М | AK49: 2
A50: Барсумян Артур / Barsumyan Artur / 1992 | K50: 189.05 | AC50: 189.05 | AD50: 189.05 | AE50: 0 | AF50: 0 | AG50: 0 | AH50: 189.05 | AJ50: =VLOOKUP(A50,'личные рез-ты по гонкам списком'!$J$1:$N$1645,2,FALSE) -> М | AK50: 1
A51: Бахтизин Павел / Bahtizin Pavel / 1980 | F51: 255.54 | AC51: 255.54 | AD51: 255.54 | AE51: 0 | AF51: 0 | AG51: 0 | AH51: 255.54 | AJ51: =VLOOKUP(A51,'личные рез-ты по гонкам списком'!$J$1:$N$1645,2,FALSE) -> М | AK51: 1
A52: Бачища Николай / Bachischa Nikolaj / 1988 | AB52: 238.4 | AC52: 238.4 | AD52: 238.4 | AE52: 0 | AF52: 0 | AG52: 0 | AH52: 238.4 | AJ52: =VLOOKUP(A52,'личные рез-ты по гонкам списком'!$J$1:$N$1645,2,FALSE) -> М | AK52: 1
A53: Беганский Иван / Beganskij Ivan / 1984 | G53: 219.71 | AC53: 219.71 | AD53: 219.71 | AE53: 0 | AF53: 0 | AG53: 0 | AH53: 219.71 | AJ53: =VLOOKUP(A53,'личные рез-ты по гонкам списком'!$J$1:$N$1645,2,FALSE) -> М | AK53: 1
A54: Бегун Егор / Begun Egor / 1988 | E54: 250.23 | L54: 232.85 | V54: 169.83 | W54: 282.49 | AC54: 935.4 | AD54: 282.49 | AE54: 250.23 | AF54: 232.85 | AG54: 169.83 | AH54: 935.4 | AJ54: =VLOOKUP(A54,'личные рез-ты по гонкам списком'!$J$1:$N$1645,2,FALSE) -> М | AK54: 4
A55: Белая Юлия / Belaya Yuliya / 1988 | D55: 664.36 | F55: 136.29 | J55: 375.87 | Q55: 274.05 | AC55: 1450.57 | AD55: 664.36 | AE55: 375.87 | AF55: 274.05 | AG55: 136.29 | AH55: 1450.57 | AJ55: =VLOOKUP(A55,'личные рез-ты по гонкам списком'!$J$1:$N$1645,2,FALSE) -> Ж | AK55: 4
A56: Белинская Галина / Belinskaya Galina / 1980 | AB56: 684.25 | AC56: 684.25 | AD56: 684.25 | AE56: 0 | AF56: 0 | AG56: 0 | AH56: 684.25 | AJ56: =VLOOKUP(A56,'личные рез-ты по гонкам списком'!$J$1:$N$1645,2,FALSE) -> Ж | AK56: 1
A57: Белицкий Денис / Belitskij Denis / 1990 | C57: 90.96 | Q57: 43.16 | AC57: 134.12 | AD57: 90.96 | AE57: 43.16 | AF57: 0 | AG57: 0 | AH57: 134.12 | AJ57: =VLOOKUP(A57,'личные рез-ты по гонкам списком'!$J$1:$N$1645,2,FALSE) -> М | AK57: 2
A58: Белов Александр / Belov Aleksandr / 1991 | W58: 178.14 | AC58: 178.14 | AD58: 178.14 | AE58: 0 | AF58: 0 | AG58: 0 | AH58: 178.14 | AJ58: =VLOOKUP(A58,'личные рез-ты по гонкам списком'!$J$1:$N$1645,2,FALSE) -> М | AK58: 1
A59: Белоусов Александр / Belousov Aleksandr / 1981 | P59: 132.57 | AC59: 132.57 | AD59: 132.57 | AE59: 0 | AF59: 0 | AG59: 0 | AH59: 132.57 | AJ59: =VLOOKUP(A59,'личные рез-ты по гонкам списком'!$J$1:$N$1645,2,FALSE) -> М | AK59: 1
A60: Белоцкая Елена / Belotskaya Elena / 1987 | K60: 116.01 | AC60: 116.01 | AD60: 116.01 | AE60: 0 | AF60: 0 | AG60: 0 | AH60: 116.01 | AJ60: =VLOOKUP(A60,'личные рез-ты по гонкам списком'!$J$1:$N$1645,2,FALSE) -> Ж | AK60: 1
A61: Беляй Владимир / Belyaj Vladimir / 1989 | Z61: 260.38 | AC61: 260.38 | AD61: 260.38 | AE61: 0 | AF61: 0 | AG61: 0 | AH61: 260.38 | AJ61: =VLOOKUP(A61,'личные рез-ты по гонкам списком'!$J$1:$N$1645,2,FALSE) -> М | AK61: 1
A62: Бердников Дмитрий / Berdnikov Dmitrij / | P62: 66.29 | AC62: 66.29 | AD62: 66.29 | AE62: 0 | AF62: 0 | AG62: 0 | AH62: 66.29 | AJ62: =VLOOKUP(A62,'личные рез-ты по гонкам списком'!$J$1:$N$1645,2,FALSE) -> М | AK62: 1
A63: Березин Артём / Berezin Artjom / 1986 | Q63: 148.67 | T63: 182.11 | AC63: 330.78 | AD63: 182.11 | AE63: 148.67 | AF63: 0 | AG63: 0 | AH63: 330.78 | AJ63: =VLOOKUP(A63,'личные рез-ты по гонкам списком'!$J$1:$N$1645,2,FALSE) -> М | AK63: 2
A64: Березовский Андрей / Berezovskij Andrej / 1973 | J64: 465.77 | Q64: 297.34 | T64: 376.36 | V64: 378.85 | AB64: 693.54 | AC64: 2211.86 | AD64: 693.54 | AE64: 465.77 | AF64: 378.85 | AG64: 376.36 | AH64: 1914.52 | AJ64: =VLOOKUP(A64,'личные рез-ты по гонкам списком'!$J$1:$N$1645,2,FALSE) -> М | AK64: 5
A65: Бизюк Игорь / Bizyuk Igor / 1956 | D65: 157.99 | AC65: 157.99 | AD65: 157.99 | AE65: 0 | AF65: 0 | AG65: 0 | AH65: 157.99 | AJ65: =VLOOKUP(A65,'личные рез-ты по гонкам списком'!$J$1:$N$1645,2,FALSE) -> М | AK65: 1
A66: Бобровский Максим / Bobrovskij Maksim / 1991 | V66: 261.28 | AC66: 261.28 | AD66: 261.28 | AE66: 0 | AF66: 0 | AG66: 0 | AH66: 261.28 | AJ66: =VLOOKUP(A66,'личные рез-ты по гонкам списком'!$J$1:$N$1645,2,FALSE) -> М | AK66: 1
A67: Богачев Борис / Bogachev Boris / 1991 | T67: 437.06 | AC67: 437.06 | AD67: 437.06 | AE67: 0 | AF67: 0 | AG67: 0 | AH67: 437.06 | AJ67: =VLOOKUP(A67,'личные рез-ты по гонкам списком'!$J$1:$N$1645,2,FALSE) -> М | AK67: 1
A68: Богдевич Анатолий / Bogdevich Anatolij / 1999 | P68: 234.55 | AC68: 234.55 | AD68: 234.55 | AE68: 0 | AF68: 0 | AG68: 0 | AH68: 234.55 | AJ68: =VLOOKUP(A68,'личные рез-ты по гонкам списком'!$J$1:$N$1645,2,FALSE) -> М | AK68: 1
A69: Богомаз Владимир / Bogomaz Vladimir / 1982 | X69: 455.28 | AC69: 455.28 | AD69: 455.28 | AE69: 0 | AF69: 0 | AG69: 0 | AH69: 455.28 | AJ69: =VLOOKUP(A69,'личные рез-ты по гонкам списком'!$J$1:$N$1645,2,FALSE) -> М | AK69: 1
A70: Богомаз Екатерина / Bogomaz Ekaterina / 1981 | Z70: 107.86 | AC70: 107.86 | AD70: =LARGE(B70:AB70,1) -> 107.86 | AE70: =IF(COUNT(B70:AB70)=1,0,LARGE(B70:AB70,2)) -> 0 | AF70: =IF(COUNT(B70:AB70)<3,0,LARGE(B70:AB70,3)) -> 0 | AG70: =IF(COUNT(B70:AB70)<4,0,LARGE(B70:AB70,4)) -> 0 | AH70: =SUM(AD70:AG70) -> 107.86 | AJ70: =VLOOKUP(A70,'личные рез-ты по гонкам списком'!$J$1:$N$1645,2,FALSE) -> Ж | AK70: =COUNT(B70:AB70) -> 1
A71: Бойко Евгений / Bojko Evgenij / 1985 | R71: 165.79 | AC71: 165.79 | AD71: 165.79 | AE71: 0 | AF71: 0 | AG71: 0 | AH71: 165.79 | AJ71: =VLOOKUP(A71,'личные рез-ты по гонкам списком'!$J$1:$N$1645,2,FALSE) -> М | AK71: 1
A72: Бокунович Дмитрий / Bokunovich Dmitrij / 1982 | F72: 392.43 | AC72: 392.43 | AD72: 392.43 | AE72: 0 | AF72: 0 | AG72: 0 | AH72: 392.43 | AJ72: =VLOOKUP(A72,'личные рез-ты по гонкам списком'!$J$1:$N$1645,2,FALSE) -> М | AK72: 1
A73: Бокша Сергей / Boksha Sergej / 1988 | J73: 319.02 | T73: 133.55 | AC73: 452.57 | AD73: 319.02 | AE73: 133.55 | AF73: 0 | AG73: 0 | AH73: 452.57 | AJ73: =VLOOKUP(A73,'личные рез-ты по гонкам списком'!$J$1:$N$1645,2,FALSE) -> М | AK73: 2
A74: Болотов Илья / Bolotov Ilya / 1988 | W74: 127.25 | AC74: 127.25 | AD74: 127.25 | AE74: 0 | AF74: 0 | AG74: 0 | AH74: 127.25 | AJ74: =VLOOKUP(A74,'личные рез-ты по гонкам списком'!$J$1:$N$1645,2,FALSE) -> М | AK74: 1
A75: Бондарь Юлия / Bondar Yuliya / 1993 | C75: 275.16 | AC75: 275.16 | AD75: 275.16 | AE75: 0 | AF75: 0 | AG75: 0 | AH75: 275.16 | AJ75: =VLOOKUP(A75,'личные рез-ты по гонкам списком'!$J$1:$N$1645,2,FALSE) -> Ж | AK75: 1
A76: Борздыко Виктория / Borzdyko Viktoriya / 1994 | Z76: 164.63 | AC76: 164.63 | AD76: 164.63 | AE76: 0 | AF76: 0 | AG76: 0 | AH76: 164.63 | AJ76: =VLOOKUP(A76,'личные рез-ты по гонкам списком'!$J$1:$N$1645,2,FALSE) -> Ж | AK76: 1
A77: Борисевич Александр / Borisevich Aleksandr / 1989 | C77: 218.31 | Q77: 124.69 | AC77: 343 | AD77: 218.31 | AE77: 124.69 | AF77: 0 | AG77: 0 | AH77: 343 | AJ77: =VLOOKUP(A77,'личные рез-ты по гонкам списком'!$J$1:$N$1645,2,FALSE) -> М | AK77: 2
A78: Борисевич Анастасия / Borisevich Anastasiya / 1985 | C78: 137.58 | N78: 714.28 | S78: 63.16 | AC78: 915.02 | AD78: 714.28 | AE78: 137.58 | AF78: 63.16 | AG78: 0 | AH78: 915.02 | AJ78: =VLOOKUP(A78,'личные рез-ты по гонкам списком'!$J$1:$N$1645,2,FALSE) -> Ж | AK78: 3
A79: Борисевич Леонид / Borisevich Leonid / 1969 | J79: 401.97 | Q79: 292.55 | AA79: 896.09 | AC79: 1590.61 | AD79: 896.09 | AE79: 401.97 | AF79: 292.55 | AG79: 0 | AH79: 1590.61 | AJ79: =VLOOKUP(A79,'личные рез-ты по гонкам списком'!$J$1:$N$1645,2,FALSE) -> М | AK79: 3
A80: Бортник Александр / Bortnik Aleksandr / 1994 | L80: 139.71 | AC80: 139.71 | AD80: 139.71 | AE80: 0 | AF80: 0 | AG80: 0 | AH80: 139.71 | AJ80: =VLOOKUP(A80,'личные рез-ты по гонкам списком'!$J$1:$N$1645,2,FALSE) -> М | AK80: 1
A81: Бортняк Екатерина / Bortnyak Ekaterina / 1994 | U81: 13.8 | AC81: 13.8 | AD81: 13.8 | AE81: 0 | AF81: 0 | AG81: 0 | AH81: 13.8 | AJ81: =VLOOKUP(A81,'личные рез-ты по гонкам списком'!$J$1:$N$1645,2,FALSE) -> Ж | AK81: 1
A82: Брагин Иван / Bragin Ivan / 1986 | N82: 714.28 | AC82: 714.28 | AD82: 714.28 | AE82: 0 | AF82: 0 | AG82: 0 | AH82: 714.28 | AJ82: =VLOOKUP(A82,'личные рез-ты по гонкам списком'!$J$1:$N$1645,2,FALSE) -> М | AK82: 1
A83: Бритов Максим / Britov Maksim / 1974 | F83: 82.14 | AC83: 82.14 | AD83: 82.14 | AE83: 0 | AF83: 0 | AG83: 0 | AH83: 82.14 | AJ83: =VLOOKUP(A83,'личные рез-ты по гонкам списком'!$J$1:$N$1645,2,FALSE) -> М | AK83: 1
A84: Брытько Роман / Brytko Roman / 1995 | J84: 185.03 | L84: 292.72 | P84: 285.55 | U84: 254.56 | V84: 352.73 | Z84: 248.27 | AC84: 1618.86 | AD84: 352.73 | AE84: 292.72 | AF84: 285.55 | AG84: 254.56 | AH84: 1185.56 | AJ84: =VLOOKUP(A84,'личные рез-ты по гонкам списком'!$J$1:$N$1645,2,FALSE) -> М | AK84: 6
A85: Бубликов Александр / Bublikov Aleksandr / 1986 | F85: 36.51 | V85: 65.32 | Z85: 30.28 | AC85: 132.11 | AD85: 65.32 | AE85: 36.51 | AF85: 30.28 | AG85: 0 | AH85: 132.11 | AJ85: =VLOOKUP(A85,'личные рез-ты по гонкам списком'!$J$1:$N$1645,2,FALSE) -> М | AK85: 3
A86: Будник Владимир / Budnik Vladimir / 1987 | C86: 172.83 | AC86: 172.83 | AD86: 172.83 | AE86: 0 | AF86: 0 | AG86: 0 | AH86: 172.83 | AJ86: =VLOOKUP(A86,'личные рез-ты по гонкам списком'!$J$1:$N$1645,2,FALSE) -> М | AK86: 1
A87: Будрик Юлия / Budrik Yuliya / 1995 | P87: 239.79 | AC87: 239.79 | AD87: 239.79 | AE87: 0 | AF87: 0 | AG87: 0 | AH87: 239.79 | AJ87: =VLOOKUP(A87,'личные рез-ты по гонкам списком'!$J$1:$N$1645,2,FALSE) -> Ж | AK87: 1
A88: Будыхина Татьяна / Budyhina Tatyana / 1985 | C88: 37.52 | AC88: 37.52 | AD88: 37.52 | AE88: 0 | AF88: 0 | AG88: 0 | AH88: 37.52 | AJ88: =VLOOKUP(A88,'личные рез-ты по гонкам списком'!$J$1:$N$1645,2,FALSE) -> Ж | AK88: 1
A89: Бузо Александр / Buzo Aleksandr / 1982 | F89: 483.7 | I89: 403.18 | M89: 449.87 | Q89: 235 | S89: 309.09 | W89: 361.38 | AC89: 2242.22 | AD89: 483.7 | AE89: 449.87 | AF89: 403.18 | AG89: 361.38 | AH89: 1698.13 | AJ89: =VLOOKUP(A89,'личные рез-ты по гонкам списком'!$J$1:$N$1645,2,FALSE) -> М | AK89: 6
A90: Булеева Наталья / Buleeva Natalya / 1969 | I90: 226.85 | AC90: 226.85 | AD90: 226.85 | AE90: 0 | AF90: 0 | AG90: 0 | AH90: 226.85 | AJ90: =VLOOKUP(A90,'личные рез-ты по гонкам списком'!$J$1:$N$1645,2,FALSE) -> Ж | AK90: 1
A91: Бунос Анатолий / Bunos Anatolij / 1956 | I91: 308.82 | AC91: 308.82 | AD91: 308.82 | AE91: 0 | AF91: 0 | AG91: 0 | AH91: 308.82 | AJ91: =VLOOKUP(A91,'личные рез-ты по гонкам списком'!$J$1:$N$1645,2,FALSE) -> М | AK91: 1
A92: Бурак Анжелика / Burak Anzhelika / 1994 | E92: 128.59 | R92: 144.7 | AC92: 273.29 | AD92: 144.7 | AE92: 128.59 | AF92: 0 | AG92: 0 | AH92: 273.29 | AJ92: =VLOOKUP(A92,'личные рез-ты по гонкам списком'!$J$1:$N$1645,2,FALSE) -> Ж | AK92: 2
A93: Бураковская Ульяна / Burakovskaya Ulyana / 1996 | Z93: 136.24 | AC93: 136.24 | AD93: 136.24 | AE93: 0 | AF93: 0 | AG93: 0 | AH93: 136.24 | AJ93: =VLOOKUP(A93,'личные рез-ты по гонкам списком'!$J$1:$N$1645,2,FALSE) -> Ж | AK93: 1
A94: Бурый Евгений / Buryj Evgenij / 1984 | X94: 164.96 | AC94: 164.96 | AD94: 164.96 | AE94: 0 | AF94: 0 | AG94: 0 | AH94: 164.96 | AJ94: =VLOOKUP(A94,'личные рез-ты по гонкам списком'!$J$1:$N$1645,2,FALSE) -> М | AK94: 1
A95: Буто Дмитрий / Buto Dmitrij / 1988 | W95: 257.04 | AC95: 257.04 | AD95: 257.04 | AE95: 0 | AF95: 0 | AG95: 0 | AH95: 257.04 | AJ95: =VLOOKUP(A95,'личные рез-ты по гонкам списком'!$J$1:$N$1645,2,FALSE) -> М | AK95: 1
A96: Бутурля Александр / Buturlya Aleksandr / 1981 | R96: 113.98 | AC96: 113.98 | AD96: 113.98 | AE96: 0 | AF96: 0 | AG96: 0 | AH96: 113.98 | AJ96: =VLOOKUP(A96,'личные рез-ты по гонкам списком'!$J$1:$N$1645,2,FALSE) -> М | AK96: 1
A97: Буховецкий Андрей / Buhovetskij Andrej / 1987 | C97: 300.18 | AC97: 300.18 | AD97: 300.18 | AE97: 0 | AF97: 0 | AG97: 0 | AH97: 300.18 | AJ97: =VLOOKUP(A97,'личные рез-ты по гонкам списком'!$J$1:$N$1645,2,FALSE) -> М | AK97: 1
A98: Бушковский Максим / Bushkovskij Maksim / 1989 | Q98: 95.92 | W98: 150.15 | AC98: 246.07 | AD98: 150.15 | AE98: 95.92 | AF98: 0 | AG98: 0 | AH98: 246.07 | AJ98: =VLOOKUP(A98,'личные рез-ты по гонкам списком'!$J$1:$N$1645,2,FALSE) -> М | AK98: 2
A99: Быков Владимир / Bykov Vladimir / 1977 | AB99: 346.77 | AC99: 346.77 | AD99: 346.77 | AE99: 0 | AF99: 0 | AG99: 0 | AH99: 346.77 | AJ99: =VLOOKUP(A99,'личные рез-ты по гонкам списком'!$J$1:$N$1645,2,FALSE) -> М | AK99: 1
A100: Бычинский Владислав / Bychinskij Vladislav / 1992 | L100: 206.24 | AC100: 206.24 | AD100: 206.24 | AE100: 0 | AF100: 0 | AG100: 0 | AH100: 206.24 | AJ100: =VLOOKUP(A100,'личные рез-ты по гонкам списком'!$J$1:$N$1645,2,FALSE) -> М | AK100: 1
A101: Бычков Александр / Bychkov Aleksandr / 1990 | C101: 81.87 | AC101: 81.87 | AD101: 81.87 | AE101: 0 | AF101: 0 | AG101: 0 | AH101: 81.87 | AJ101: =VLOOKUP(A101,'личные рез-ты по гонкам списком'!$J$1:$N$1645,2,FALSE) -> М | AK101: 1
A102: Вагин Андрей / Vagin Andrej / 1989 | D102: 719.72 | J102: 491.3 | M102: 460.84 | X102: 521.26 | AC102: 2193.12 | AD102: 719.72 | AE102: 521.26 | AF102: 491.3 | AG102: 460.84 | AH102: 2193.12 | AJ102: =VLOOKUP(A102,'личные рез-ты по гонкам списком'!$J$1:$N$1645,2,FALSE) -> М | AK102: 4
A103: Вадим Лукин / Vadim Lukin / 1993 | V103: 300.47 | AC103: 300.47 | AD103: 300.47 | AE103: 0 | AF103: 0 | AG103: 0 | AH103: 300.47 | AJ103: =VLOOKUP(A103,'личные рез-ты по гонкам списком'!$J$1:$N$1645,2,FALSE) -> М | AK103: 1
A104: Вайдо Андрей / Vajdo Andrej / 1995 | W104: 389.37 | AC104: 389.37 | AD104: 389.37 | AE104: 0 | AF104: 0 | AG104: 0 | AH104: 389.37 | AJ104: =VLOOKUP(A104,'личные рез-ты по гонкам списком'!$J$1:$N$1645,2,FALSE) -> М | AK104: 1
A105: Вайтешонок Сергей / Vajteshonok Sergej / 1981 | K105: 120.3 | W105: 211.23 | AC105: 331.53 | AD105: 211.23 | AE105: 120.3 | AF105: 0 | AG105: 0 | AH105: 331.53 | AJ105: =VLOOKUP(A105,'личные рез-ты по гонкам списком'!$J$1:$N$1645,2,FALSE) -> М | AK105: 2
A106: Ванькова Светлана / Vankova Svetlana / 1984 | W106: 149.3 | AC106: 149.3 | AD106: 149.3 | AE106: 0 | AF106: 0 | AG106: 0 | AH106: 149.3 | AJ106: =VLOOKUP(A106,'личные рез-ты по гонкам списком'!$J$1:$N$1645,2,FALSE) -> Ж | AK106: 1
A107: Варава Андрей / Varava Andrej / 1994 | S107: 172.73 | AC107: 172.73 | AD107: 172.73 | AE107: 0 | AF107: 0 | AG107: 0 | AH107: 172.73 | AJ107: =VLOOKUP(A107,'личные рез-ты по гонкам списком'!$J$1:$N$1645,2,FALSE) -> М | AK107: 1
A108: Варданян Кристина / Vardanyan Kristina / 1981 | C108: 350.21 | AC108: 350.21 | AD108: 350.21 | AE108: 0 | AF108: 0 | AG108: 0 | AH108: 350.21 | AJ108: =VLOOKUP(A108,'личные рез-ты по гонкам списком'!$J$1:$N$1645,2,FALSE) -> Ж | AK108: 1
A109: Варивода Сергей / Varivoda Sergej / 1964 | Z109: 163.49 | AC109: 163.49 | AD109: 163.49 | AE109: 0 | AF109: 0 | AG109: 0 | AH109: 163.49 | AJ109: =VLOOKUP(A109,'личные рез-ты по гонкам списком'!$J$1:$N$1645,2,FALSE) -> М | AK109: 1
A110: Василевич Валентина / Vasilevich Valentina / 1998 | J110: 187.93 | Q110: 27.4 | X110: 166.28 | AC110: 381.61 | AD110: 187.93 | AE110: 166.28 | AF110: 27.4 | AG110: 0 | AH110: 381.61 | AJ110: =VLOOKUP(A110,'личные рез-ты по гонкам списком'!$J$1:$N$1645,2,FALSE) -> Ж | AK110: 3
A111: Васильченко Вадим / Vasilchenko Vadim / 1987 | F111: 146.02 | S111: 63.64 | AC111: 209.66 | AD111: 146.02 | AE111: 63.64 | AF111: 0 | AG111: 0 | AH111: 209.66 | AJ111: =VLOOKUP(A111,'личные рез-ты по гонкам списком'!$J$1:$N$1645,2,FALSE) -> М | AK111: 2
A112: Вдовиченко Ирина / Vdovichenko Irina / 1989 | I112: 97.22 | M112: 98.75 | AC112: 195.97 | AD112: 98.75 | AE112: 97.22 | AF112: 0 | AG112: 0 | AH112: 195.97 | AJ112: =VLOOKUP(A112,'личные рез-ты по гонкам списком'!$J$1:$N$1645,2,FALSE) -> Ж | AK112: 2
A113: Величко Павел / Velichko Pavel / 1982 | B113: 520.58 | Q113: 258.97 | AC113: 779.55 | AD113: 520.58 | AE113: 258.97 | AF113: 0 | AG113: 0 | AH113: 779.55 | AJ113: =VLOOKUP(A113,'личные рез-ты по гонкам списком'!$J$1:$N$1645,2,FALSE) -> М | AK113: 2
A114: Веремейчик Елена / Veremejchik Elena / 1986 | F114: 442.93 | P114: 248.06 | T114: 226.62 | AC114: 917.61 | AD114: 442.93 | AE114: 248.06 | AF114: 226.62 | AG114: 0 | AH114: 917.61 | AJ114: =VLOOKUP(A114,'личные рез-ты по гонкам списком'!$J$1:$N$1645,2,FALSE) -> Ж | AK114: 3
A115: Веремейчик Юрий / Veremejchik Yurij / 1979 | J115: 293.5 | M115: 274.31 | AC115: 567.81 | AD115: 293.5 | AE115: 274.31 | AF115: 0 | AG115: 0 | AH115: 567.81 | AJ115: =VLOOKUP(A115,'личные рез-ты по гонкам списком'!$J$1:$N$1645,2,FALSE) -> М | AK115: 2
A116: Веремич Юрий / Veremich Yurij / 1979 | S116: 263.64 | AC116: 263.64 | AD116: 263.64 | AE116: 0 | AF116: 0 | AG116: 0 | AH116: 263.64 | AJ116: =VLOOKUP(A116,'личные рез-ты по гонкам списком'!$J$1:$N$1645,2,FALSE) -> М | AK116: 1
A117: Верещако Павел / Vereschako Pavel / 1988 | I117: 283.08 | W117: 300.3 | AC117: 583.38 | AD117: 300.3 | AE117: 283.08 | AF117: 0 | AG117: 0 | AH117: 583.38 | AJ117: =VLOOKUP(A117,'личные рез-ты по гонкам списком'!$J$1:$N$1645,2,FALSE) -> М | AK117: 2
A118: Ветохин Иван / Vetohin Ivan / 1987 | R118: 41.45 | AC118: 41.45 | AD118: 41.45 | AE118: 0 | AF118: 0 | AG118: 0 | AH118: 41.45 | AJ118: =VLOOKUP(A118,'личные рез-ты по гонкам списком'!$J$1:$N$1645,2,FALSE) -> М | AK118: 1
A119: Ветохина София / Vetohina Sofiya / 2010 | R119: 34.05 | AC119: 34.05 | AD119: 34.05 | AE119: 0 | AF119: 0 | AG119: 0 | AH119: 34.05 | AJ119: =VLOOKUP(A119,'личные рез-ты по гонкам списком'!$J$1:$N$1645,2,FALSE) -> Ж | AK119: 1
A120: Винтергрин Андрей / Vintergrin Andrej / 1981 | C120: 236.51 | AC120: 236.51 | AD120: 236.51 | AE120: 0 | AF120: 0 | AG120: 0 | AH120: 236.51 | AJ120: =VLOOKUP(A120,'личные рез-ты по гонкам списком'!$J$1:$N$1645,2,FALSE) -> М | AK120: 1
A121: Вирский Константин / Virskij Konstantin / 1977 | L121: 199.59 | W121: 193.41 | AC121: 393 | AD121: 199.59 | AE121: 193.41 | AF121: 0 | AG121: 0 | AH121: 393 | AJ121: =VLOOKUP(A121,'личные рез-ты по гонкам списком'!$J$1:$N$1645,2,FALSE) -> М | AK121: 2
A122: Вирт Олег / Virt Oleg / 1980 | C122: 63.67 | AC122: 63.67 | AD122: 63.67 | AE122: 0 | AF122: 0 | AG122: 0 | AH122: 63.67 | AJ122: =VLOOKUP(A122,'личные рез-ты по гонкам списком'!$J$1:$N$1645,2,FALSE) -> М | AK122: 1
A123: Вишневская Анастасия / Vishnevskaya Anastasiya / 1995 | Z123: 56.77 | AC123: 56.77 | AD123: 56.77 | AE123: 0 | AF123: 0 | AG123: 0 | AH123: 56.77 | AJ123: =VLOOKUP(A123,'личные рез-ты по гонкам списком'!$J$1:$N$1645,2,FALSE) -> Ж | AK123: 1
A124: Войтехович Максим / Vojtehovich Maksim / 1990 | X124: 204.55 | AC124: 204.55 | AD124: 204.55 | AE124: 0 | AF124: 0 | AG124: 0 | AH124: 204.55 | AJ124: =VLOOKUP(A124,'личные рез-ты по гонкам списком'!$J$1:$N$1645,2,FALSE) -> М | AK124: 1
A125: Войтович Татьяна / Vojtovich Tatyana / 1986 | E125: 79.13 | L125: 143.29 | S125: 126.32 | W125: 83.98 | AC125: 432.72 | AD125: 143.29 | AE125: 126.32 | AF125: 83.98 | AG125: 79.13 | AH125: 432.72 | AJ125: =VLOOKUP(A125,'личные рез-ты по гонкам списком'!$J$1:$N$1645,2,FALSE) -> Ж | AK125: 4
A126: Волков Алексей / Volkov Aleksej / 1990 | F126: 100.39 | AC126: 100.39 | AD126: 100.39 | AE126: 0 | AF126: 0 | AG126: 0 | AH126: 100.39 | AJ126: =VLOOKUP(A126,'личные рез-ты по гонкам списком'!$J$1:$N$1645,2,FALSE) -> М | AK126: 1
A127: Волков Алексей / Volkov Aleksej / 1990 | X127: 98.97 | AC127: 98.97 | AD127: 98.97 | AE127: 0 | AF127: 0 | AG127: 0 | AH127: 98.97 | AJ127: =VLOOKUP(A127,'личные рез-ты по гонкам списком'!$J$1:$N$1645,2,FALSE) -> М | AK127: 1
A128: Волков Николай / Volkov Nikolaj / 1989 | I128: 428.91 | T128: 352.08 | AC128: 780.99 | AD128: 428.91 | AE128: 352.08 | AF128: 0 | AG128: 0 | AH128: 780.99 | AJ128: =VLOOKUP(A128,'личные рез-ты по гонкам списком'!$J$1:$N$1645,2,FALSE) -> М | AK128: 2
A129: Володько Андрей / Volodko Andrej / 1986 | D129: 526.63 | F129: 456.32 | K129: 206.24 | M129: 296.26 | Q129: 230.2 | X129: 257.33 | AC129: 1972.98 | AD129: 526.63 | AE129: 456.32 | AF129: 296.26 | AG129: 257.33 | AH129: 1536.54 | AJ129: =VLOOKUP(A129,'личные рез-ты по гонкам списком'!$J$1:$N$1645,2,FALSE) -> М | AK129: 6
A130: Володько Владимир / Volodko Vladimir / 2001 | R130: 186.52 | AC130: 186.52 | AD130: 186.52 | AE130: 0 | AF130: 0 | AG130: 0 | AH130: 186.52 | AJ130: =VLOOKUP(A130,'личные рез-ты по гонкам списком'!$J$1:$N$1645,2,FALSE) -> М | AK130: 1
A131: Волостных Сергей / Volostnyh Sergej / 1989 | D131: 210.65 | AC131: 210.65 | AD131: 210.65 | AE131: 0 | AF131: 0 | AG131: 0 | AH131: 210.65 | AJ131: =VLOOKUP(A131,'личные рез-ты по гонкам списком'!$J$1:$N$1645,2,FALSE) -> М | AK131: 1
A132: Воробьев Дмитрий / Vorobev Dmitrij / 1988 | W132: 45.81 | AC132: 45.81 | AD132: 45.81 | AE132: 0 | AF132: 0 | AG132: 0 | AH132: 45.81 | AJ132: =VLOOKUP(A132,'личные рез-ты по гонкам списком'!$J$1:$N$1645,2,FALSE) -> М | AK132: 1
A133: Воробьёв Дмитрий / Vorobjov Dmitrij / 1988 | L133: 153.02 | R133: 176.16 | AC133: 329.18 | AD133: 176.16 | AE133: 153.02 | AF133: 0 | AG133: 0 | AH133: 329.18 | AJ133: =VLOOKUP(A133,'личные рез-ты по гонкам списком'!$J$1:$N$1645,2,FALSE) -> М | AK133: 2
A134: Ворончук Алексей / Voronchuk Aleksej / 1987 | W134: 27.99 | AC134: 27.99 | AD134: =LARGE(B134:AB134,1) -> 27.99 | AE134: =IF(COUNT(B134:AB134)=1,0,LARGE(B134:AB134,2)) -> 0 | AF134: =IF(COUNT(B134:AB134)<3,0,LARGE(B134:AB134,3)) -> 0 | AG134: =IF(COUNT(B134:AB134)<4,0,LARGE(B134:AB134,4)) -> 0 | AH134: =SUM(AD134:AG134) -> 27.99 | AJ134: =VLOOKUP(A134,'личные рез-ты по гонкам списком'!$J$1:$N$1645,2,FALSE) -> М | AK134: =COUNT(B134:AB134) -> 1
A135: Воротникова Татьяна / Vorotnikova Tatyana / 1989 | X135: 193.99 | AC135: 193.99 | AD135: 193.99 | AE135: 0 | AF135: 0 | AG135: 0 | AH135: 193.99 | AJ135: =VLOOKUP(A135,'личные рез-ты по гонкам списком'!$J$1:$N$1645,2,FALSE) -> Ж | AK135: 1
A136: Врублевский Кирилл / Vrublevskij Kirill / 1995 | Z136: 217.99 | AC136: 217.99 | AD136: 217.99 | AE136: 0 | AF136: 0 | AG136: 0 | AH136: 217.99 | AJ136: =VLOOKUP(A136,'личные рез-ты по гонкам списком'!$J$1:$N$1645,2,FALSE) -> М | AK136: 1
A137: Выборный Александр / Vybornyj Aleksandr / 1985 | M137: 351.12 | Q137: 306.93 | AC137: 658.05 | AD137: 351.12 | AE137: 306.93 | AF137: 0 | AG137: 0 | AH137: 658.05 | AJ137: =VLOOKUP(A137,'личные рез-ты по гонкам списком'!$J$1:$N$1645,2,FALSE) -> М | AK137: 2
A138: Выробов Дмитрий / Vyrobov Dmitrij / 1988 | K138: 34.37 | AC138: 34.37 | AD138: 34.37 | AE138: 0 | AF138: 0 | AG138: 0 | AH138: 34.37 | AJ138: =VLOOKUP(A138,'личные рез-ты по гонкам списком'!$J$1:$N$1645,2,FALSE) -> М | AK138: 1
A139: Гайдуков Александр / Gajdukov Aleksandr / 1989 | L139: 299.38 | U139: 235.7 | AC139: 535.08 | AD139: 299.38 | AE139: 235.7 | AF139: 0 | AG139: 0 | AH139: 535.08 | AJ139: =VLOOKUP(A139,'личные рез-ты по гонкам списком'!$J$1:$N$1645,2,FALSE) -> М | AK139: 2
A140: Гайдукович Максим / Gajdukovich Maksim / 1988 | Z140: 211.94 | AC140: 211.94 | AD140: 211.94 | AE140: 0 | AF140: 0 | AG140: 0 | AH140: 211.94 | AJ140: =VLOOKUP(A140,'личные рез-ты по гонкам списком'!$J$1:$N$1645,2,FALSE) -> М | AK140: 1
A141: Галец Константин / Galets Konstantin / 1988 | U141: 94.28 | W141: 106.89 | AC141: 201.17 | AD141: 106.89 | AE141: 94.28 | AF141: 0 | AG141: 0 | AH141: 201.17 | AJ141: =VLOOKUP(A141,'личные рез-ты по гонкам списком'!$J$1:$N$1645,2,FALSE) -> М | AK141: 2
A142: Галка Дмитрий / Galka Dmitrij / 1988 | C142: 281.99 | AC142: 281.99 | AD142: 281.99 | AE142: 0 | AF142: 0 | AG142: 0 | AH142: 281.99 | AJ142: =VLOOKUP(A142,'личные рез-ты по гонкам списком'!$J$1:$N$1645,2,FALSE) -> М | AK142: 1
A143: Гамидов Нариман / Gamidov Nariman / 1972 | L143: 179.63 | AC143: 179.63 | AD143: 179.63 | AE143: 0 | AF143: 0 | AG143: 0 | AH143: 179.63 | AJ143: =VLOOKUP(A143,'личные рез-ты по гонкам списком'!$J$1:$N$1645,2,FALSE) -> М | AK143: 1
A144: Гамидов Тимур / Gamidov Timur / 1996 | L144: 345.95 | AC144: 345.95 | AD144: 345.95 | AE144: 0 | AF144: 0 | AG144: 0 | AH144: 345.95 | AJ144: =VLOOKUP(A144,'личные рез-ты по гонкам списком'!$J$1:$N$1645,2,FALSE) -> М | AK144: 1
A145: Гандзюк Всеволод / Gandzyuk Vsevolod / | S145: 72.73 | AC145: 72.73 | AD145: 72.73 | AE145: 0 | AF145: 0 | AG145: 0 | AH145: 72.73 | AJ145: =VLOOKUP(A145,'личные рез-ты по гонкам списком'!$J$1:$N$1645,2,FALSE) -> М | AK145: 1
A146: Гарбар Екатерина / Garbar Ekaterina / 1989 | P146: 140.57 | AC146: 140.57 | AD146: 140.57 | AE146: 0 | AF146: 0 | AG146: 0 | AH146: 140.57 | AJ146: =VLOOKUP(A146,'личные рез-ты по гонкам списком'!$J$1:$N$1645,2,FALSE) -> Ж | AK146: 1
A147: Гарбуз Алла / Garbuz Alla / 1969 | L147: 28.66 | R147: 25.54 | U147: 41.39 | AC147: 95.59 | AD147: 41.39 | AE147: 28.66 | AF147: 25.54 | AG147: 0 | AH147: 95.59 | AJ147: =VLOOKUP(A147,'личные рез-ты по гонкам списком'!$J$1:$N$1645,2,FALSE) -> Ж | AK147: 3
A148: Гаслова Ольга / Gaslova Olga / 1981 | Z148: 85.15 | AC148: 85.15 | AD148: 85.15 | AE148: 0 | AF148: 0 | AG148: 0 | AH148: 85.15 | AJ148: =VLOOKUP(A148,'личные рез-ты по гонкам списком'!$J$1:$N$1645,2,FALSE) -> Ж | AK148: 1
A149: Генсировский Павел / Gensirovskij Pavel / 1979 | B149: 1041.15 | AC149: 1041.15 | AD149: 1041.15 | AE149: 0 | AF149: 0 | AG149: 0 | AH149: 1041.15 | AJ149: =VLOOKUP(A149,'личные рез-ты по гонкам списком'!$J$1:$N$1645,2,FALSE) -> М | AK149: 1
A150: Геранин Дмитрий / Geranin Dmitrij / | R150: 207.24 | AC150: 207.24 | AD150: 207.24 | AE150: 0 | AF150: 0 | AG150: 0 | AH150: 207.24 | AJ150: =VLOOKUP(A150,'личные рез-ты по гонкам списком'!$J$1:$N$1645,2,FALSE) -> М | AK150: 1
A151: Герасевич Максим / Gerasevich Maksim / | I151: 94.36 | R151: 103.62 | W151: 15.27 | AC151: 213.25 | AD151: 103.62 | AE151: 94.36 | AF151: 15.27 | AG151: 0 | AH151: 213.25 | AJ151: =VLOOKUP(A151,'личные рез-ты по гонкам списком'!$J$1:$N$1645,2,FALSE) -> М | AK151: 3
A152: Герасимук Дмитрий / Gerasimuk Dmitrij / 1993 | U152: 245.13 | W152: 343.56 | AC152: 588.69 | AD152: 343.56 | AE152: 245.13 | AF152: 0 | AG152: 0 | AH152: 588.69 | AJ152: =VLOOKUP(A152,'личные рез-ты по гонкам списком'!$J$1:$N$1645,2,FALSE) -> М | AK152: 2
A153: Герасимук Юрий / Gerasimuk Yurij / 1992 | C153: 309.28 | H153: 789.68 | M153: 142.64 | X153: 362.91 | AC153: 1604.51 | AD153: 789.68 | AE153: 362.91 | AF153: 309.28 | AG153: 142.64 | AH153: 1604.51 | AJ153: =VLOOKUP(A153,'личные рез-ты по гонкам списком'!$J$1:$N$1645,2,FALSE) -> М | AK153: 4
A154: Герман Кирилл / German Kirill / 1999 | W154: 254.49 | AC154: 254.49 | AD154: 254.49 | AE154: 0 | AF154: 0 | AG154: 0 | AH154: 254.49 | AJ154: =VLOOKUP(A154,'личные рез-ты по гонкам списком'!$J$1:$N$1645,2,FALSE) -> М | AK154: 1
A155: Гецман Мила / Getsman Mila / 1988 | U155: 241.45 | AC155: 241.45 | AD155: 241.45 | AE155: 0 | AF155: 0 | AG155: 0 | AH155: 241.45 | AJ155: =VLOOKUP(A155,'личные рез-ты по гонкам списком'!$J$1:$N$1645,2,FALSE) -> Ж | AK155: 1
A156: Гидлевский Дмитрий / Gidlevskij Dmitrij / 1986 | K156: 309.35 | L156: 359.25 | AC156: 668.6 | AD156: 359.25 | AE156: 309.35 | AF156: 0 | AG156: 0 | AH156: 668.6 | AJ156: =VLOOKUP(A156,'личные рез-ты по гонкам списком'!$J$1:$N$1645,2,FALSE) -> М | AK156: 2
A157: Гилевич Диана / Gilevich Diana / 1993 | E157: 356.09 | J157: 516.82 | P157: 305.94 | AC157: 1178.85 | AD157: 516.82 | AE157: 356.09 | AF157: 305.94 | AG157: 0 | AH157: 1178.85 | AJ157: =VLOOKUP(A157,'личные рез-ты по гонкам списком'!$J$1:$N$1645,2,FALSE) -> Ж | AK157: 3
A158: Гилевич Кристина / Gilevich Kristina / 1994 | E158: 336.31 | J158: 469.83 | V158: 391.92 | AC158: 1198.06 | AD158: 469.83 | AE158: 391.92 | AF158: 336.31 | AG158: 0 | AH158: 1198.06 | AJ158: =VLOOKUP(A158,'личные рез-ты по гонкам списком'!$J$1:$N$1645,2,FALSE) -> Ж | AK158: 3
A159: Гладкая Ольга / Gladkaya Olga / 1986 | Z159: 39.74 | AC159: 39.74 | AD159: 39.74 | AE159: 0 | AF159: 0 | AG159: 0 | AH159: 39.74 | AJ159: =VLOOKUP(A159,'личные рез-ты по гонкам списком'!$J$1:$N$1645,2,FALSE) -> Ж | AK159: 1
A160: Гладкова Анна / Gladkova Anna / 1985 | K160: 103.12 | R160: 51.07 | AC160: 154.19 | AD160: 103.12 | AE160: 51.07 | AF160: 0 | AG160: 0 | AH160: 154.19 | AJ160: =VLOOKUP(A160,'личные рез-ты по гонкам списком'!$J$1:$N$1645,2,FALSE) -> Ж | AK160: 2
A161: Гладковский Владислав / Gladkovskij Vladislav / 1990 | C161: 354.76 | AC161: 354.76 | AD161: 354.76 | AE161: 0 | AF161: 0 | AG161: 0 | AH161: 354.76 | AJ161: =VLOOKUP(A161,'личные рез-ты по гонкам списком'!$J$1:$N$1645,2,FALSE) -> М | AK161: 1
A162: Глатанков Пётр / Glatankov Pjotr / 1978 | Z162: 187.71 | AC162: 187.71 | AD162: 187.71 | AE162: 0 | AF162: 0 | AG162: 0 | AH162: 187.71 | AJ162: =VLOOKUP(A162,'личные рез-ты по гонкам списком'!$J$1:$N$1645,2,FALSE) -> М | AK162: 1
A163: Глебко Сергей / Glebko Sergej / 1985 | Z163: 102.94 | AC163: 102.94 | AD163: 102.94 | AE163: 0 | AF163: 0 | AG163: 0 | AH163: 102.94 | AJ163: =VLOOKUP(A163,'личные рез-ты по гонкам списком'!$J$1:$N$1645,2,FALSE) -> М | AK163: 1
A164: Глушаков Сергей / Glushakov Sergej / 1958 | J164: 210.56 | AC164: 210.56 | AD164: 210.56 | AE164: 0 | AF164: 0 | AG164: 0 | AH164: 210.56 | AJ164: =VLOOKUP(A164,'личные рез-ты по гонкам списком'!$J$1:$N$1645,2,FALSE) -> М | AK164: 1
A165: Глушков Александр / Glushkov Aleksandr / 1980 | B165: 780.86 | O165: 417.43 | Q165: 191.83 | AC165: 1390.12 | AD165: 780.86 | AE165: 417.43 | AF165: 191.83 | AG165: 0 | AH165: 1390.12 | AJ165: =VLOOKUP(A165,'личные рез-ты по гонкам списком'!$J$1:$N$1645,2,FALSE) -> М | AK165: 3
A166: Голомзик Дмитрий / Golomzik Dmitrij / 1972 | V166: 52.26 | AC166: 52.26 | AD166: 52.26 | AE166: 0 | AF166: 0 | AG166: 0 | AH166: 52.26 | AJ166: =VLOOKUP(A166,'личные рез-ты по гонкам списком'!$J$1:$N$1645,2,FALSE) -> М | AK166: 1
A167: Голубева Елена / Golubeva Elena / 1987 | J167: 328.88 | Q167: 164.43 | AC167: 493.31 | AD167: 328.88 | AE167: 164.43 | AF167: 0 | AG167: 0 | AH167: 493.31 | AJ167: =VLOOKUP(A167,'личные рез-ты по гонкам списком'!$J$1:$N$1645,2,FALSE) -> Ж | AK167: 2
A168: Гомон Сергей / Gomon Sergej / 1990 | B168: 202.45 | AC168: 202.45 | AD168: 202.45 | AE168: 0 | AF168: 0 | AG168: 0 | AH168: 202.45 | AJ168: =VLOOKUP(A168,'личные рез-ты по гонкам списком'!$J$1:$N$1645,2,FALSE) -> М | AK168: 1
A169: Гончарик Наталья / Goncharik Natalya / 1991 | L169: 71.65 | AC169: 71.65 | AD169: 71.65 | AE169: 0 | AF169: 0 | AG169: 0 | AH169: 71.65 | AJ169: =VLOOKUP(A169,'личные рез-ты по гонкам списком'!$J$1:$N$1645,2,FALSE) -> Ж | AK169: 1
A170: Гончаров Игорь / Goncharov Igor / 1981 | X170: 316.72 | AC170: 316.72 | AD170: 316.72 | AE170: 0 | AF170: 0 | AG170: 0 | AH170: 316.72 | AJ170: =VLOOKUP(A170,'личные рез-ты по гонкам списком'!$J$1:$N$1645,2,FALSE) -> М | AK170: 1
A171: Гончаров Николай / Goncharov Nikolaj / 1984 | U171: 179.13 | AC171: 179.13 | AD171: 179.13 | AE171: 0 | AF171: 0 | AG171: 0 | AH171: 179.13 | AJ171: =VLOOKUP(A171,'личные рез-ты по гонкам списком'!$J$1:$N$1645,2,FALSE) -> М | AK171: 1
A172: Горбач Максим / Gorbach Maksim / 1983 | G172: 527.3 | AC172: 527.3 | AD172: 527.3 | AE172: 0 | AF172: 0 | AG172: 0 | AH172: 527.3 | AJ172: =VLOOKUP(A172,'личные рез-ты по гонкам списком'!$J$1:$N$1645,2,FALSE) -> М | AK172: 1
A173: Горбиков Кирилл / Gorbikov Kirill / 1982 | F173: 18.25 | AC173: 18.25 | AD173: 18.25 | AE173: 0 | AF173: 0 | AG173: 0 | AH173: 18.25 | AJ173: =VLOOKUP(A173,'личные рез-ты по гонкам списком'!$J$1:$N$1645,2,FALSE) -> М | AK173: 1
A174: Горевцова Евгения / Gorevtsova Evgeniya / 1989 | S174: 168.42 | W174: 111.98 | AC174: 280.4 | AD174: 168.42 | AE174: 111.98 | AF174: 0 | AG174: 0 | AH174: 280.4 | AJ174: =VLOOKUP(A174,'личные рез-ты по гонкам списком'!$J$1:$N$1645,2,FALSE) -> Ж | AK174: 2
A175: Горелик Юрий / Gorelik Yurij / 1987 | E175: 182.86 | W175: 267.22 | AC175: 450.08 | AD175: 267.22 | AE175: 182.86 | AF175: 0 | AG175: 0 | AH175: 450.08 | AJ175: =VLOOKUP(A175,'личные рез-ты по гонкам списком'!$J$1:$N$1645,2,FALSE) -> М | AK175: 2
A176: Горнов Антон / Gornov Anton / 1992 | Z176: 205.88 | AC176: 205.88 | AD176: 205.88 | AE176: 0 | AF176: 0 | AG176: 0 | AH176: 205.88 | AJ176: =VLOOKUP(A176,'личные рез-ты по гонкам списком'!$J$1:$N$1645,2,FALSE) -> М | AK176: 1
A177: Городко Игорь / Gorodko Igor / 1970 | C177: 72.77 | AC177: 72.77 | AD177: 72.77 | AE177: 0 | AF177: 0 | AG177: 0 | AH177: 72.77 | AJ177: =VLOOKUP(A177,'личные рез-ты по гонкам списком'!$J$1:$N$1645,2,FALSE) -> М | AK177: 1
A178: Горшков Игорь / Gorshkov Igor / 1977 | F178: 127.77 | I178: 102.94 | X178: 138.56 | AC178: 369.27 | AD178: 138.56 | AE178: 127.77 | AF178: 102.94 | AG178: 0 | AH178: 369.27 | AJ178: =VLOOKUP(A178,'личные рез-ты по гонкам списком'!$J$1:$N$1645,2,FALSE) -> М | AK178: 3
A179: Гославская Анастасия / Goslavskaya Anastasiya / 1991 | U179: 137.97 | AC179: 137.97 | AD179: 137.97 | AE179: 0 | AF179: 0 | AG179: 0 | AH179: 137.97 | AJ179: =VLOOKUP(A179,'личные рез-ты по гонкам списком'!$J$1:$N$1645,2,FALSE) -> Ж | AK179: 1
A180: Грабовец Павел / Grabovets Pavel / 1981 | B180: 954.39 | AC180: 954.39 | AD180: 954.39 | AE180: 0 | AF180: 0 | AG180: 0 | AH180: 954.39 | AJ180: =VLOOKUP(A180,'личные рез-ты по гонкам списком'!$J$1:$N$1645,2,FALSE) -> М | AK180: 1
A181: Гракович Ольга / Grakovich Olga / 1994 | P181: 90.96 | AC181: 90.96 | AD181: 90.96 | AE181: 0 | AF181: 0 | AG181: 0 | AH181: 90.96 | AJ181: =VLOOKUP(A181,'личные рез-ты по гонкам списком'!$J$1:$N$1645,2,FALSE) -> Ж | AK181: 1
A182: Грачева Анастасия / Gracheva Anastasiya / 1995 | W182: 18.66 | AC182: 18.66 | AD182: 18.66 | AE182: 0 | AF182: 0 | AG182: 0 | AH182: 18.66 | AJ182: =VLOOKUP(A182,'личные рез-ты по гонкам списком'!$J$1:$N$1645,2,FALSE) -> Ж | AK182: 1
A183: Гребенчук Максим / Grebenchuk Maksim / 1989 | E183: 153.98 | W183: 386.83 | AC183: 540.81 | AD183: 386.83 | AE183: 153.98 | AF183: 0 | AG183: 0 | AH183: 540.81 | AJ183: =VLOOKUP(A183,'личные рез-ты по гонкам списком'!$J$1:$N$1645,2,FALSE) -> М | AK183: 2
A184: Грейд Юлия / Grejd Yuliya / 1986 | I184: 194.44 | M184: 164.59 | AC184: 359.03 | AD184: 194.44 | AE184: 164.59 | AF184: 0 | AG184: 0 | AH184: 359.03 | AJ184: =VLOOKUP(A184,'личные рез-ты по гонкам списком'!$J$1:$N$1645,2,FALSE) -> Ж | AK184: 2
A185: Грек Илья / Grek Ilya / 1992 | E185: 288.72 | M185: 230.42 | AB185: 455.14 | AC185: 974.28 | AD185: 455.14 | AE185: 288.72 | AF185: 230.42 | AG185: 0 | AH185: 974.28 | AJ185: =VLOOKUP(A185,'личные рез-ты по гонкам списком'!$J$1:$N$1645,2,FALSE) -> М | AK185: 3
A186: Греков Игорь / Grekov Igor / 1970 | D186: 263.31 | F186: 136.9 | AC186: 400.21 | AD186: 263.31 | AE186: 136.9 | AF186: 0 | AG186: 0 | AH186: 400.21 | AJ186: =VLOOKUP(A186,'личные рез-ты по гонкам списком'!$J$1:$N$1645,2,FALSE) -> М | AK186: 2
A187: Гречишкин Алексей / Grechishkin Aleksej / 1983 | P187: 20.4 | AC187: 20.4 | AD187: 20.4 | AE187: 0 | AF187: 0 | AG187: 0 | AH187: 20.4 | AJ187: =VLOOKUP(A187,'личные рез-ты по гонкам списком'!$J$1:$N$1645,2,FALSE) -> М | AK187: 1
A188: Гриб Екатерина / Grib Ekaterina / 1981 | K188: 219.13 | L188: 243.6 | W188: 55.99 | AC188: 518.72 | AD188: 243.6 | AE188: 219.13 | AF188: 55.99 | AG188: 0 | AH188: 518.72 | AJ188: =VLOOKUP(A188,'личные рез-ты по гонкам списком'!$J$1:$N$1645,2,FALSE) -> Ж | AK188: 3
A189: Григорович Руслан / Grigorovich Ruslan / 1987 | K189: 232.02 | AC189: 232.02 | AD189: 232.02 | AE189: 0 | AF189: 0 | AG189: 0 | AH189: 232.02 | AJ189: =VLOOKUP(A189,'личные рез-ты по гонкам списком'!$J$1:$N$1645,2,FALSE) -> М | AK189: 1
A190: Григорьев Никита / Grigorev Nikita / 1990 | T190: 509.9 | AC190: 509.9 | AD190: 509.9 | AE190: 0 | AF190: 0 | AG190: 0 | AH190: 509.9 | AJ190: =VLOOKUP(A190,'личные рез-ты по гонкам списком'!$J$1:$N$1645,2,FALSE) -> М | AK190: 1
A191: Григорьева Светлана / Grigoreva Svetlana / 1984 | I191: 275.46 | P191: 157.1 | W191: 158.63 | AC191: 591.19 | AD191: 275.46 | AE191: 158.63 | AF191: 157.1 | AG191: 0 | AH191: 591.19 | AJ191: =VLOOKUP(A191,'личные рез-ты по гонкам списком'!$J$1:$N$1645,2,FALSE) -> Ж | AK191: 3
A192: Гринько Анастасия / Grinko Anastasiya / 1993 | I192: 178.24 | L192: 257.93 | AC192: 436.17 | AD192: 257.93 | AE192: 178.24 | AF192: 0 | AG192: 0 | AH192: 436.17 | AJ192: =VLOOKUP(A192,'личные рез-ты по гонкам списком'!$J$1:$N$1645,2,FALSE) -> Ж | AK192: 2
A193: Грицевич Виталий / Gritsevich Vitalij / 1987 | L193: 146.36 | AC193: 146.36 | AD193: 146.36 | AE193: 0 | AF193: 0 | AG193: 0 | AH193: 146.36 | AJ193: =VLOOKUP(A193,'личные рез-ты по гонкам списком'!$J$1:$N$1645,2,FALSE) -> М | AK193: 1
A194: Грицук Татьяна / Gritsuk Tatyana / 1973 | D194: 276.82 | AC194: 276.82 | AD194: 276.82 | AE194: 0 | AF194: 0 | AG194: 0 | AH194: 276.82 | AJ194: =VLOOKUP(A194,'личные рез-ты по гонкам списком'!$J$1:$N$1645,2,FALSE) -> Ж | AK194: 1
A195: Гришко Руслан / Grishko Ruslan / 1974 | W195: 2.54 | AC195: 2.54 | AD195: 2.54 | AE195: 0 | AF195: 0 | AG195: 0 | AH195: 2.54 | AJ195: =VLOOKUP(A195,'личные рез-ты по гонкам списком'!$J$1:$N$1645,2,FALSE) -> М | AK195: 1
A196: Грошева Елена / Grosheva Elena / 1994 | E196: 59.35 | AC196: 59.35 | AD196: 59.35 | AE196: 0 | AF196: 0 | AG196: 0 | AH196: 59.35 | AJ196: =VLOOKUP(A196,'личные рез-ты по гонкам списком'!$J$1:$N$1645,2,FALSE) -> Ж | AK196: 1
A197: Грушевская Виктория / Grushevskaya Viktoriya / 1992 | U197: 151.77 | AC197: 151.77 | AD197: 151.77 | AE197: 0 | AF197: 0 | AG197: 0 | AH197: 151.77 | AJ197: =VLOOKUP(A197,'личные рез-ты по гонкам списком'!$J$1:$N$1645,2,FALSE) -> Ж | AK197: 1
A198: Гумбар Илья / Gumbar Ilya / 1989 | Q198: 263.77 | AC198: 263.77 | AD198: =LARGE(B198:AB198,1) -> 263.77 | AE198: =IF(COUNT(B198:AB198)=1,0,LARGE(B198:AB198,2)) -> 0 | AF198: =IF(COUNT(B198:AB198)<3,0,LARGE(B198:AB198,3)) -> 0 | AG198: =IF(COUNT(B198:AB198)<4,0,LARGE(B198:AB198,4)) -> 0 | AH198: =SUM(AD198:AG198) -> 263.77 | AJ198: =VLOOKUP(A198,'личные рез-ты по гонкам списком'!$J$1:$N$1645,2,FALSE) -> М | AK198: =COUNT(B198:AB198) -> 1
A199: Гурская Татьяна / Gurskaya Tatyana / 1980 | B199: 1041.15 | AC199: 1041.15 | AD199: 1041.15 | AE199: 0 | AF199: 0 | AG199: 0 | AH199: 1041.15 | AJ199: =VLOOKUP(A199,'личные рез-ты по гонкам списком'!$J$1:$N$1645,2,FALSE) -> Ж | AK199: 1
A200: Гурский Олег / Gurskij Oleg / 1988 | X200: 46.19 | AC200: 46.19 | AD200: 46.19 | AE200: 0 | AF200: 0 | AG200: 0 | AH200: 46.19 | AJ200: =VLOOKUP(A200,'личные рез-ты по гонкам списком'!$J$1:$N$1645,2,FALSE) -> М | AK200: 1
A201: Гусаревич Денис / Gusarevich Denis / 1983 | B201: 578.42 | AC201: 578.42 | AD201: 578.42 | AE201: 0 | AF201: 0 | AG201: 0 | AH201: 578.42 | AJ201: =VLOOKUP(A201,'личные рез-ты по гонкам списком'!$J$1:$N$1645,2,FALSE) -> М | AK201: 1
A202: Давыдов Андрей / Davydov Andrej / 1980 | F202: 328.55 | AC202: 328.55 | AD202: 328.55 | AE202: 0 | AF202: 0 | AG202: 0 | AH202: 328.55 | AJ202: =VLOOKUP(A202,'личные рез-ты по гонкам списком'!$J$1:$N$1645,2,FALSE) -> М | AK202: 1
... 814 more rows

Sheet Рейтинг 2018_абс
A2: № п/п | B2: Фамилия, Имя, Год рождения | C2: Пол | D2: Сумма баллов | E2: Кол-во гонок в 2018 году
A3: 1 | B3: Синица Кирилл / Sinitsa Kirill / 1981 | C3: М | D3: 3941.04 | E3: 9
A4: 2 | B4: Молочко Александр / Molochko Aleksandr / 1981 | C4: М | D4: 3307.87 | E4: 8
A5: 3 | B5: Скирук Юлия / Skiruk Yuliya / 1988 | C5: Ж | D5: 2591.4 | E5: 6
A6: 4 | B6: Тюев Даниил / Tyuev Daniil / 1977 | C6: М | D6: 2545.28 | E6: 8
A7: 5 | B7: Торубарова Татьяна / Torubarova Tatyana / 1983 | C7: Ж | D7: 2445 | E7: 4
A8: 6 | B8: Крисенков Алексей / Krisenkov Aleksej / 1983 | C8: М | D8: 2426.5 | E8: 8
A9: 7 | B9: Мальков Валентин / Malkov Valentin / 1988 | C9: М | D9: 2387.57 | E9: 6
A10: 8 | B10: Леонов Иван / Leonov Ivan / 1986 | C10: М | D10: 2329.45 | E10: 5
A11: 9 | B11: Сулимчик Оксана / Sulimchik Oksana / 1986 | C11: Ж | D11: 2248.83 | E11: 3
A12: 10 | B12: Храмов Антон / Hramov Anton / 1991 | C12: М | D12: 2199.64 | E12: 5
A13: 11 | B13: Вагин Андрей / Vagin Andrej / 1989 | C13: М | D13: 2193.12 | E13: 4
A14: 12 | B14: Черкас Александра / Cherkas Aleksandra / 1992 | C14: Ж | D14: 2151.39 | E14: 7
A15: 13 | B15: Попадюк Игорь / Popadyuk Igor / 1982 | C15: М | D15: 2061.48 | E15: 6
A16: 14 | B16: Ходан Александр / Hodan Aleksandr / 1988 | C16: М | D16: 2042.88 | E16: 4
A17: 15 | B17: Федорович Николай / Fedorovich Nikolaj / 1959 | C17: М | D17: 2032.55 | E17: 6
A18: 16 | B18: Харитонов Иван / Haritonov Ivan / 1973 | C18: М | D18: 1966.13 | E18: 5
A19: 17 | B19: Березовский Андрей / Berezovskij Andrej / 1973 | C19: М | D19: 1914.52 | E19: 5
A20: 18 | B20: Скуратович Антон / Skuratovich Anton / 1985 | C20: М | D20: 1904.86 | E20: 7
A21: 19 | B21: Ласюк Юрий / Lasyuk Yurij / 1987 | C21: М | D21: 1903.13 | E21: 6
A22: 20 | B22: Селютин Владимир / Selyutin Vladimir / 1990 | C22: М | D22: 1880.21 | E22: 8
A23: 21 | B23: Исаев Антон / Isaev Anton / 1979 | C23: М | D23: 1862.81 | E23: 2
A24: 22 | B24: Хорошавин Вячеслав / Horoshavin Vyacheslav / 1985 | C24: М | D24: 1844.7 | E24: 6
A25: 23 | B25: Лысенко Павел / Lysenko Pavel / 1966 | C25: М | D25: 1835.31 | E25: 2
A26: 24 | B26: Трубкина Анастасия / Trubkina Anastasiya / 1989 | C26: Ж | D26: 1833.27 | E26: 4
A27: 25 | B27: Тарасенко Павел / Tarasenko Pavel / 1983 | C27: М | D27: 1800.13 | E27: 5
A28: 26 | B28: Сидоревич Александр / Sidorevich Aleksandr / 1985 | C28: М | D28: 1768.94 | E28: 4
A29: 27 | B29: Побединский Александр / Pobedinskij Aleksandr / 1983 | C29: М | D29: 1723.11 | E29: 2
A30: 28 | B30: Бузо Александр / Buzo Aleksandr / 1982 | C30: М | D30: 1698.13 | E30: 6
A31: 29 | B31: Мосийчук Максим / Mosijchuk Maksim / 1984 | C31: М | D31: 1668.6 | E31: 4
A32: 30 | B32: Коровец Богдан / Korovets Bogdan / 1976 | C32: М | D32: 1653.04 | E32: 6
A33: 31 | B33: Герасимук Юрий / Gerasimuk Yurij / 1992 | C33: М | D33: 1604.51 | E33: 4
A34: 32 | B34: Маркевич Денис / Markevich Denis / 1981 | C34: М | D34: 1592.5 | E34: 5
A35: 33 | B35: Борисевич Леонид / Borisevich Leonid / 1969 | C35: М | D35: 1590.61 | E35: 3
A36: 34 | B36: Лойко Сергей / Lojko Sergej / 1985 | C36: М | D36: 1559.17 | E36: 6
A37: 35 | B37: Молчан Александр / Molchan Aleksandr / 1988 | C37: М | D37: 1547.01 | E37: 6
A38: 36 | B38: Володько Андрей / Volodko Andrej / 1986 | C38: М | D38: 1536.54 | E38: 6
A39: 37 | B39: Алексеев Алексей / Alekseev Aleksej / 1980 | C39: М | D39: 1492.92 | E39: 5
A40: 38 | B40: Лисовский Виктор / Lisovskij Viktor / 1964 | C40: М | D40: 1492.06 | E40: 5
A41: 39 | B41: Евсюченя Александр / Evsyuchenya Aleksandr / 1991 | C41: М | D41: 1466.7 | E41: 3
A42: 40 | B42: Овсиюк Богдан / Ovsiyuk Bogdan / 1993 | C42: М | D42: 1456.89 | E42: 3
A43: 41 | B43: Белая Юлия / Belaya Yuliya / 1988 | C43: Ж | D43: 1450.57 | E43: 4
A44: 42 | B44: Лавник Игорь / Lavnik Igor / 1983 | C44: М | D44: 1409.23 | E44: 5
A45: 43 | B45: Глушков Александр / Glushkov Aleksandr / 1980 | C45: М | D45: 1390.12 | E45: 3
A46: 44 | B46: Суховерхая Татьяна / Suhoverhaya Tatyana / 1986 | C46: Ж | D46: 1356.5 | E46: 3
A47: 45 | B47: Цвирбут Юлия / Tsvirbut Yuliya / 1992 | C47: Ж | D47: 1352.71 | E47: 3
A48: 46 | B48: Подрез Ярослав / Podrez Yaroslav / 1996 | C48: М | D48: 1350.06 | E48: 3
A49: 47 | B49: Свечников Антон / Svechnikov Anton / 1991 | C49: М | D49: 1344.42 | E49: 4
A50: 48 | B50: Едомская Вольга / Edomskaya Volga / 1987 | C50: Ж | D50: 1322.29 | E50: 6
A51: 49 | B51: Лесковец Александр / Leskovets Aleksandr / 1990 | C51: М | D51: 1321.32 | E51: 3
A52: 50 | B52: Кликун Татьяна / Klikun Tatyana / 1989 | C52: Ж | D52: 1295.35 | E52: 5
A53: 51 | B53: Пехтерева Татьяна / Pehtereva Tatyana / 1987 | C53: Ж | D53: 1279.31 | E53: 4
A54: 52 | B54: Католиков Роман / Katolikov Roman / 1985 | C54: М | D54: 1257.08 | E54: 5
A55: 53 | B55: Дегтярев Сергей / Degtyarev Sergej / 1983 | C55: М | D55: 1235.23 | E55: 4
A56: 54 | B56: Журавлёв Андрей / Zhuravljov Andrej / 1978 | C56: М | D56: 1226.42 | E56: 3
A57: 55 | B57: Попов Юрий / Popov Yurij / 1969 | C57: М | D57: 1218.91 | E57: 2
A58: 56 | B58: Мартысевич Роман / Martysevich Roman / 1993 | C58: М | D58: 1200.08 | E58: 2
A59: 57 | B59: Гилевич Кристина / Gilevich Kristina / 1994 | C59: Ж | D59: 1198.06 | E59: 3
A60: 58 | B60: Никонов Максим / Nikonov Maksim / 1979 | C60: М | D60: 1196.41 | E60: 3
A61: 59 | B61: Брытько Роман / Brytko Roman / 1995 | C61: М | D61: 1185.56 | E61: 6
A62: 60 | B62: Гилевич Диана / Gilevich Diana / 1993 | C62: Ж | D62: 1178.85 | E62: 3
A63: 61 | B63: Михно Алла / Mihno Alla / 1979 | C63: Ж | D63: 1143.49 | E63: 3
A64: 62 | B64: Невмержицкая Анна / Nevmerzhitskaya Anna / 1997 | C64: Ж | D64: 1139.3 | E64: 4
A65: 63 | B65: Маковский Дмитрий / Makovskij Dmitrij / 1981 | C65: М | D65: 1121.67 | E65: 3
A66: 64 | B66: Суховей Михаил / Suhovej Mihail / 1991 | C66: М | D66: 1118.68 | E66: 2
A67: 65 | B67: Новик Анастасия / Novik Anastasiya / 1985 | C67: Ж | D67: 1116.19 | E67: 3
A68: 66 | B68: Милинкевич Елена / Milinkevich Elena / 1977 | C68: Ж | D68: 1107.72 | E68: 3
A69: 67 | B69: Тихонов Василий / Tihonov Vasilij / 1993 | C69: М | D69: 1086.92 | E69: 2
A70: 68 | B70: Стойчикова Ксения / Stojchikova Kseniya / 1997 | C70: Ж | D70: 1086.31 | E70: 3
A71: 69 | B71: Карпович Владимир / Karpovich Vladimir / 1983 | C71: М | D71: 1070.08 | E71: 5
A72: 70 | B72: Пивень Андрей / Piven Andrej / 1992 | C72: М | D72: 1066.77 | E72: 1
A73: 71 | B73: Жидович Вадим / Zhidovich Vadim / 1984 | C73: М | D73: 1063.58 | E73: 6
A74: 72 | B74: Шепетько Сергей / Shepetko Sergej / 1987 | C74: М | D74: 1048.72 | E74: 7
A75: 73 | B75: Мартынов Дмитрий / Martynov Dmitrij / 1984 | C75: М | D75: 1042.33 | E75: 3
A76: 74 | B76: Генсировский Павел / Gensirovskij Pavel / 1979 | C76: М | D76: 1041.15 | E76: 1
A77: 75 | B77: Гурская Татьяна / Gurskaya Tatyana / 1980 | C77: Ж | D77: 1041.15 | E77: 1
A78: 76 | B78: Рагойша Пётр / Ragojsha Pjotr / 1976 | C78: М | D78: 1041.07 | E78: 2
A79: 77 | B79: Суханова Надежда / Suhanova Nadezhda / 1994 | C79: Ж | D79: 1037.62 | E79: 2
A80: 78 | B80: Печёнов Георгий / Pechjonov Georgij / 1975 | C80: М | D80: 1037.27 | E80: 4
A81: 79 | B81: Орловский Павел / Orlovskij Pavel / 1989 | C81: М | D81: 1034.49 | E81: 3
A82: 80 | B82: Совпель Максим / Sovpel Maksim / 1993 | C82: М | D82: 1031.08 | E82: 3
A83: 81 | B83: Жучин Алексей / Zhuchin Aleksej / 1983 | C83: М | D83: 1018.71 | E83: 3
A84: 82 | B84: Юкевич Александр / Yukevich Aleksandr / 1983 | C84: М | D84: 1013.17 | E84: 3
A85: 83 | B85: Палий Андрей / Palij Andrej / 1984 | C85: М | D85: 1003.79 | E85: 7
A86: 84 | B86: Сердитов Вадим / Serditov Vadim / 1993 | C86: М | D86: 996.06 | E86: 2
A87: 85 | B87: Остаповец Евгений / Ostapovets Evgenij / 1990 | C87: М | D87: 984.95 | E87: 3
A88: 86 | B88: Казарин Дмитрий / Kazarin Dmitrij / 1994 | C88: М | D88: 983.73 | E88: 7
A89: 87 | B89: Козич Андрей / Kozich Andrej / 1986 | C89: М | D89: 983.31 | E89: 1
A90: 88 | B90: Полякова Анна / Polyakova Anna / 1987 | C90: Ж | D90: 977.05 | E90: 5
A91: 89 | B91: Смолко Николай / Smolko Nikolaj / 1987 | C91: М | D91: 974.61 | E91: 2
A92: 90 | B92: Грек Илья / Grek Ilya / 1992 | C92: М | D92: 974.28 | E92: 3
A93: 91 | B93: Нечаев Владимир / Nechaev Vladimir / 1995 | C93: М | D93: 959.74 | E93: 3
A94: 92 | B94: Грабовец Павел / Grabovets Pavel / 1981 | C94: М | D94: 954.39 | E94: 1
A95: 93 | B95: Куцун Надежда / Kutsun Nadezhda / 1982 | C95: Ж | D95: 952.24 | E95: 2
A96: 94 | B96: Жданович Александра / Zhdanovich Aleksandra / 1985 | C96: Ж | D96: 951.89 | E96: 4
A97: 95 | B97: Пухаева Светлана / Puhaeva Svetlana / 1980 | C97: Ж | D97: 947.29 | E97: 3
A98: 96 | B98: Журавлёва Оксана / Zhuravljova Oksana / 1980 | C98: Ж | D98: 945.63 | E98: 3
A99: 97 | B99: Миканович Антон / Mikanovich Anton / 1990 | C99: М | D99: 938.98 | E99: 4
A100: 98 | B100: Бегун Егор / Begun Egor / 1988 | C100: М | D100: 935.4 | E100: 4
A101: 99 | B101: Сіпачоў Аляксей / Sіpachou Alyaksej / 1979 | C101: М | D101: 935.07 | E101: 3
A102: 100 | B102: Осадчий Константин / Osadchij Konstantin / 1985 | C102: М | D102: 921.29 | E102: 1
A103: 101 | B103: Веремейчик Елена / Veremejchik Elena / 1986 | C103: Ж | D103: 917.61 | E103: 3
A104: 102 | B104: Борисевич Анастасия / Borisevich Anastasiya / 1985 | C104: Ж | D104: 915.02 | E104: 3
A105: 103 | B105: Дальниченко Юрий / Dalnichenko Yurij / 1985 | C105: М | D105: 914.25 | E105: 2
A106: 104 | B106: Лукьяненко Александр / Lukyanenko Aleksandr / 1984 | C106: М | D106: 914.2 | E106: 2
A107: 105 | B107: Казакевич Ирина / Kazakevich Irina / 1969 | C107: Ж | D107: 892.41 | E107: 2
A108: 106 | B108: Сафроненко Андрей / Safronenko Andrej / 1984 | C108: М | D108: 888.03 | E108: 2
A109: 107 | B109: Шахметова Наталья / Shahmetova Natalya / 1992 | C109: Ж | D109: 886.22 | E109: 3
A110: 108 | B110: Зеленко Дмитрий / Zelenko Dmitrij / 1987 | C110: М | D110: 875.55 | E110: 3
A111: 109 | B111: Леденёв Андрей / Ledenjov Andrej / 1971 | C111: М | D111: 874.72 | E111: 2
A112: 110 | B112: Астапов Владимир / Astapov Vladimir / 1977 | C112: М | D112: 859.33 | E112: 2
A113: 111 | B113: Хамицевич Михаил / Hamitsevich Mihail / 1980 | C113: М | D113: 849.8 | E113: 4
A114: 112 | B114: Крус Виктор / Krus Viktor / 1980 | C114: М | D114: 849.72 | E114: 4
A115: 113 | B115: Ярмончик Игорь / Yarmonchik Igor / 1985 | C115: М | D115: 842.05 | E115: 3
A116: 114 | B116: Королёв Максим / Koroljov Maksim / 1989 | C116: М | D116: 839.98 | E116: 3
A117: 115 | B117: Шклярик Олег / Shklyarik Oleg / 1970 | C117: М | D117: 839.05 | E117: 3
A118: 116 | B118: Нестерович Сергей / Nesterovich Sergej / 1994 | C118: М | D118: 838.05 | E118: 2
A119: 117 | B119: Плодунов Захар / Plodunov Zahar / 1993 | C119: М | D119: 837.67 | E119: 2
A120: 118 | B120: Попов Александр / Popov Aleksandr / 1986 | C120: М | D120: 836.6 | E120: 2
A121: 119 | B121: Казак Дмитрий / Kazak Dmitrij / 1979 | C121: М | D121: 835.01 | E121: 2
A122: 120 | B122: Остапов Владимир / Ostapov Vladimir / 1977 | C122: М | D122: 817.92 | E122: 2
A123: 121 | B123: Ермохин Максим / Ermohin Maksim / 1975 | C123: М | D123: 817.91 | E123: 2
A124: 122 | B124: Жила Анастасия / Zhila Anastasiya / 1994 | C124: Ж | D124: 813.31 | E124: 3
A125: 123 | B125: McTavish John / McTavish John / 1987 | C125: М | D125: 811.58 | E125: 2
A126: 124 | B126: Окромешко Антон / Okromeshko Anton / 1990 | C126: М | D126: 809.79 | E126: 1
A127: 125 | B127: Фомина Ирина / Fomina Irina / 1986 | C127: Ж | D127: 806.83 | E127: 3
A128: 126 | B128: Солодкин Сергей / Solodkin Sergej / 1984 | C128: М | D128: 798.46 | E128: 2
A129: 127 | B129: Кирcанов Алексей / Kircanov Aleksej / 1981 | C129: М | D129: 795.25 | E129: 2
A130: 128 | B130: Дашин Михаил / Dashin Mihail / 1986 | C130: М | D130: 785.64 | E130: 4
A131: 129 | B131: Волков Николай / Volkov Nikolaj / 1989 | C131: М | D131: 780.99 | E131: 2
A132: 130 | B132: Величко Павел / Velichko Pavel / 1982 | C132: М | D132: 779.55 | E132: 2
A133: 131 | B133: Слободько Дмитрий / Slobodko Dmitrij / 1984 | C133: М | D133: 779.28 | E133: 2
A134: 132 | B134: Зятиков Евгений / Zyatikov Evgenij / 1982 | C134: М | D134: 769.49 | E134: 5
A135: 133 | B135: Фенченко Алексей / Fenchenko Aleksej / 1989 | C135: М | D135: 768.07 | E135: 1
A136: 134 | B136: Тривашкевич Евгений / Trivashkevich Evgenij / 1996 | C136: М | D136: 767.11 | E136: 2
A137: 135 | B137: Делендик Надежда / Delendik Nadezhda / 1987 | C137: Ж | D137: 766.62 | E137: 2
A138: 136 | B138: Лисовский Павел / Lisovskij Pavel / 1986 | C138: М | D138: 761.4 | E138: 2
A139: 137 | B139: Павленко Юрий / Pavlenko Yurij / 1983 | C139: М | D139: 748.27 | E139: 2
A140: 138 | B140: Симогостицкий Александр / Simogostitskij Aleksandr / 1987 | C140: М | D140: 735.38 | E140: 3
A141: 139 | B141: Якубовский Игорь / Yakubovskij Igor / 1984 | C141: М | D141: 734.49 | E141: 5
A142: 140 | B142: Кордунская Екатерина / Kordunskaya Ekaterina / 1983 | C142: Ж | D142: 730.53 | E142: 2
A143: 141 | B143: Титуленко Егор / Titulenko Egor / 1983 | C143: М | D143: 720.56 | E143: 2
A144: 142 | B144: Некрасов Василий / Nekrasov Vasilij / 1986 | C144: М | D144: 715.21 | E144: 1
A145: 143 | B145: Брагин Иван / Bragin Ivan / 1986 | C145: М | D145: 714.28 | E145: 1
A146: 144 | B146: Чернель Татьяна / Chernel Tatyana / 1982 | C146: Ж | D146: 710.82 | E146: 2
A147: 145 | B147: Адамович Ирина / Adamovich Irina / 1973 | C147: Ж | D147: 708.53 | E147: 2
A148: 146 | B148: Кшановская Ирина / Kshanovskaya Irina / 1977 | C148: Ж | D148: 698.53 | E148: 3
A149: 147 | B149: Ключеня Виталий / Klyuchenya Vitalij / 1982 | C149: М | D149: 696.06 | E149: 3
A150: 148 | B150: Новікаў Анатоль / Novіkau Anatol / 1984 | C150: М | D150: 694.1 | E150: 1
A151: 149 | B151: Полещук Татьяна / Poleschuk Tatyana / 1988 | C151: Ж | D151: 694.1 | E151: 1
A152: 150 | B152: Белинская Галина / Belinskaya Galina / 1980 | C152: Ж | D152: 684.25 | E152: 1
A153: 151 | B153: Тимошенко Алёна / Timoshenko Aljona / 1982 | C153: Ж | D153: 683.83 | E153: 2
A154: 152 | B154: Балашов Никита / Balashov Nikita / 1983 | C154: М | D154: 682.07 | E154: 2
A155: 153 | B155: Гидлевский Дмитрий / Gidlevskij Dmitrij / 1986 | C155: М | D155: 668.6 | E155: 2
A156: 154 | B156: Павловская Светлана / Pavlovskaya Svetlana / 1984 | C156: Ж | D156: 661.18 | E156: 3
A157: 155 | B157: Выборный Александр / Vybornyj Aleksandr / 1985 | C157: М | D157: 658.05 | E157: 2
A158: 156 | B158: Олин Денис / Olin Denis / 1976 | C158: М | D158: 657.88 | E158: 2
A159: 157 | B159: Лещевич Валерий / Leschevich Valerij / 1989 | C159: М | D159: 655.4 | E159: 2
A160: 158 | B160: Таранко Марта / Taranko Marta / 1990 | C160: Ж | D160: 652.62 | E160: 3
A161: 159 | B161: Заяц Александр / Zayats Aleksandr / 1978 | C161: М | D161: 644.08 | E161: 2
A162: 160 | B162: Арзамасов Илья / Arzamasov Ilya / 1987 | C162: М | D162: 637.16 | E162: 1
A163: 161 | B163: Обухова Екатерина / Obuhova Ekaterina / 1978 | C163: Ж | D163: 631.62 | E163: 1
A164: 162 | B164: Сикорская Настя / Sikorskaya Nastya / 1983 | C164: Ж | D164: 630.72 | E164: 2
A165: 163 | B165: Липницкая Виктория / Lipnitskaya Viktoriya / 1987 | C165: Ж | D165: 629.84 | E165: 3
A166: 164 | B166: Бабицкий Кирилл / Babitskij Kirill / 1998 | C166: М | D166: 628.52 | E166: 1
A167: 165 | B167: Шило Руслан / Shilo Ruslan / 1993 | C167: М | D167: 623.79 | E167: 2
A168: 166 | B168: Жучков Алексей / Zhuchkov Aleksej / 1985 | C168: М | D168: 621.9 | E168: 5
A169: 167 | B169: Барановский Алексей / Baranovskij Aleksej / 1981 | C169: М | D169: 619.65 | E169: 2
A170: 168 | B170: Кондяр Павел / Kondyar Pavel / 1993 | C170: М | D170: 616.63 | E170: 2
A171: 169 | B171: Цвирко Артур / Tsvirko Artur / 1991 | C171: М | D171: 615.19 | E171: 1
A172: 170 | B172: Явтушенко Вадим / Yavtushenko Vadim / 1981 | C172: М | D172: 615.03 | E172: 4
A173: 171 | B173: Пак Олег / Pak Oleg / 1977 | C173: М | D173: 610.73 | E173: 2
A174: 172 | B174: Юлов Герман / Yulov German / 1993 | C174: М | D174: 610.66 | E174: 2
A175: 173 | B175: Заречанский Юрий / Zarechanskij Yurij / 1980 | C175: М | D175: 609.41 | E175: 3
A176: 174 | B176: Паплёвка Иван / Papljovka Ivan / 1990 | C176: М | D176: 609.33 | E176: 2
A177: 175 | B177: Арабиенко Татьяна / Arabienko Tatyana / 1986 | C177: Ж | D177: 609 | E177: 1
A178: 176 | B178: Коротких Елена / Korotkih Elena / 1984 | C178: Ж | D178: 604.2 | E178: 2
A179: 177 | B179: Студенков Александр / Studenkov Aleksandr / 1984 | C179: М | D179: 604.08 | E179: 2
A180: 178 | B180: Медвецкий Денис / Medvetskij Denis / 1986 | C180: М | D180: 604.07 | E180: 4
A181: 179 | B181: Михно Борис / Mihno Boris / 1982 | C181: М | D181: 603.04 | E181: 4
A182: 180 | B182: Сорокин Денис / Sorokin Denis / 1998 | C182: М | D182: 597.39 | E182: 1
A183: 181 | B183: Прокопович Ростислав / Prokopovich Rostislav / 1982 | C183: М | D183: 596.84 | E183: 1
A184: 182 | B184: Кислицын Артем / Kislitsyn Artem / 1992 | C184: М | D184: 596.32 | E184: 1
A185: 183 | B185: Нагорнюк Михаил / Nagornyuk Mihail / 1984 | C185: М | D185: 593.22 | E185: 1
A186: 184 | B186: Григорьева Светлана / Grigoreva Svetlana / 1984 | C186: Ж | D186: 591.19 | E186: 3
A187: 185 | B187: Герасимук Дмитрий / Gerasimuk Dmitrij / 1993 | C187: М | D187: 588.69 | E187: 2
A188: 186 | B188: Иванов Денис / Ivanov Denis / 1990 | C188: М | D188: 588.38 | E188: 3
A189: 187 | B189: Третьяк Екатерина / Tretyak Ekaterina / 1985 | C189: Ж | D189: 587.7 | E189: 2
A190: 188 | B190: Акулич Владимир / Akulich Vladimir / 1986 | C190: М | D190: 587.04 | E190: 2
A191: 189 | B191: Шванц Алексей / Shvants Aleksej / 1991 | C191: М | D191: 585.64 | E191: 1
A192: 190 | B192: Верещако Павел / Vereschako Pavel / 1988 | C192: М | D192: 583.38 | E192: 2
A193: 191 | B193: Лещинский Владимир / Leschinskij Vladimir / 1983 | C193: М | D193: 579.29 | E193: 1
A194: 192 | B194: Кукобникова Вита / Kukobnikova Vita / 1993 | C194: Ж | D194: 579 | E194: 4
A195: 193 | B195: Гусаревич Денис / Gusarevich Denis / 1983 | C195: М | D195: 578.42 | E195: 1
A196: 194 | B196: Костров Александр / Kostrov Aleksandr / 1982 | C196: М | D196: 572.32 | E196: 2
A197: 195 | B197: Никитюк Алексей / Nikityuk Aleksej / 1985 | C197: М | D197: 569.42 | E197: 2
A198: 196 | B198: Веремейчик Юрий / Veremejchik Yurij / 1979 | C198: М | D198: 567.81 | E198: 2
A199: 197 | B199: Никифоров Дмитрий / Nikiforov Dmitrij / 1989 | C199: М | D199: 565.02 | E199: 2
A200: 198 | B200: Жданович Максим / Zhdanovich Maksim / 1987 | C200: М | D200: 561.73 | E200: 1
A201: 199 | B201: Макарский Сергей / Makarskij Sergej / 1987 | C201: М | D201: 554.26 | E201: 2
... 812 more rows

Sheet Рейтинг 2018_М1
A2: № п/п | B2: Фамилия, Имя, Год рождения | C2: Пол | D2: Сумма баллов | E2: Кол-во гонок в 2018 году
A3: 1 | B3: Синица Кирилл / Sinitsa Kirill / 1981 | C3: М | D3: 3941.04 | E3: 9
A4: 2 | B4: Молочко Александр / Molochko Aleksandr / 1981 | C4: М | D4: 3307.87 | E4: 8
A5: 3 | B5: Тюев Даниил / Tyuev Daniil / 1977 | C5: М | D5: 2545.28 | E5: 8
A6: 4 | B6: Крисенков Алексей / Krisenkov Aleksej / 1983 | C6: М | D6: 2426.5 | E6: 8
A7: 5 | B7: Мальков Валентин / Malkov Valentin / 1988 | C7: М | D7: 2387.57 | E7: 6
A8: 6 | B8: Леонов Иван / Leonov Ivan / 1986 | C8: М | D8: 2329.45 | E8: 5
A9: 7 | B9: Храмов Антон / Hramov Anton / 1991 | C9: М | D9: 2199.64 | E9: 5
A10: 8 | B10: Вагин Андрей / Vagin Andrej / 1989 | C10: М | D10: 2193.12 | E10: 4
A11: 9 | B11: Попадюк Игорь / Popadyuk Igor / 1982 | C11: М | D11: 2061.48 | E11: 6
A12: 10 | B12: Ходан Александр / Hodan Aleksandr / 1988 | C12: М | D12: 2042.88 | E12: 4
A13: 11 | B13: Федорович Николай / Fedorovich Nikolaj / 1959 | C13: М | D13: 2032.55 | E13: 6
A14: 12 | B14: Харитонов Иван / Haritonov Ivan / 1973 | C14: М | D14: 1966.13 | E14: 5
A15: 13 | B15: Березовский Андрей / Berezovskij Andrej / 1973 | C15: М | D15: 1914.52 | E15: 5
A16: 14 | B16: Скуратович Антон / Skuratovich Anton / 1985 | C16: М | D16: 1904.86 | E16: 7
A17: 15 | B17: Ласюк Юрий / Lasyuk Yurij / 1987 | C17: М | D17: 1903.13 | E17: 6
A18: 16 | B18: Селютин Владимир / Selyutin Vladimir / 1990 | C18: М | D18: 1880.21 | E18: 8
A19: 17 | B19: Исаев Антон / Isaev Anton / 1979 | C19: М | D19: 1862.81 | E19: 2
A20: 18 | B20: Хорошавин Вячеслав / Horoshavin Vyacheslav / 1985 | C20: М | D20: 1844.7 | E20: 6
A21: 19 | B21: Лысенко Павел / Lysenko Pavel / 1966 | C21: М | D21: 1835.31 | E21: 2
A22: 20 | B22: Тарасенко Павел / Tarasenko Pavel / 1983 | C22: М | D22: 1800.13 | E22: 5
A23: 21 | B23: Сидоревич Александр / Sidorevich Aleksandr / 1985 | C23: М | D23: 1768.94 | E23: 4
A24: 22 | B24: Побединский Александр / Pobedinskij Aleksandr / 1983 | C24: М | D24: 1723.11 | E24: 2
A25: 23 | B25: Бузо Александр / Buzo Aleksandr / 1982 | C25: М | D25: 1698.13 | E25: 6
A26: 24 | B26: Мосийчук Максим / Mosijchuk Maksim / 1984 | C26: М | D26: 1668.6 | E26: 4
A27: 25 | B27: Коровец Богдан / Korovets Bogdan / 1976 | C27: М | D27: 1653.04 | E27: 6
A28: 26 | B28: Герасимук Юрий / Gerasimuk Yurij / 1992 | C28: М | D28: 1604.51 | E28: 4
A29: 27 | B29: Маркевич Денис / Markevich Denis / 1981 | C29: М | D29: 1592.5 | E29: 5
A30: 28 | B30: Борисевич Леонид / Borisevich Leonid / 1969 | C30: М | D30: 1590.61 | E30: 3
A31: 29 | B31: Лойко Сергей / Lojko Sergej / 1985 | C31: М | D31: 1559.17 | E31: 6
A32: 30 | B32: Молчан Александр / Molchan Aleksandr / 1988 | C32: М | D32: 1547.01 | E32: 6
A33: 31 | B33: Володько Андрей / Volodko Andrej / 1986 | C33: М | D33: 1536.54 | E33: 6
A34: 32 | B34: Алексеев Алексей / Alekseev Aleksej / 1980 | C34: М | D34: 1492.92 | E34: 5
A35: 33 | B35: Лисовский Виктор / Lisovskij Viktor / 1964 | C35: М | D35: 1492.06 | E35: 5
A36: 34 | B36: Евсюченя Александр / Evsyuchenya Aleksandr / 1991 | C36: М | D36: 1466.7 | E36: 3
A37: 35 | B37: Овсиюк Богдан / Ovsiyuk Bogdan / 1993 | C37: М | D37: 1456.89 | E37: 3
A38: 36 | B38: Лавник Игорь / Lavnik Igor / 1983 | C38: М | D38: 1409.23 | E38: 5
A39: 37 | B39: Глушков Александр / Glushkov Aleksandr / 1980 | C39: М | D39: 1390.12 | E39: 3
A40: 38 | B40: Подрез Ярослав / Podrez Yaroslav / 1996 | C40: М | D40: 1350.06 | E40: 3
A41: 39 | B41: Свечников Антон / Svechnikov Anton / 1991 | C41: М | D41: 1344.42 | E41: 4
A42: 40 | B42: Лесковец Александр / Leskovets Aleksandr / 1990 | C42: М | D42: 1321.32 | E42: 3
A43: 41 | B43: Католиков Роман / Katolikov Roman / 1985 | C43: М | D43: 1257.08 | E43: 5
A44: 42 | B44: Дегтярев Сергей / Degtyarev Sergej / 1983 | C44: М | D44: 1235.23 | E44: 4
A45: 43 | B45: Журавлёв Андрей / Zhuravljov Andrej / 1978 | C45: М | D45: 1226.42 | E45: 3
A46: 44 | B46: Попов Юрий / Popov Yurij / 1969 | C46: М | D46: 1218.91 | E46: 2
A47: 45 | B47: Мартысевич Роман / Martysevich Roman / 1993 | C47: М | D47: 1200.08 | E47: 2
A48: 46 | B48: Никонов Максим / Nikonov Maksim / 1979 | C48: М | D48: 1196.41 | E48: 3
A49: 47 | B49: Брытько Роман / Brytko Roman / 1995 | C49: М | D49: 1185.56 | E49: 6
A50: 48 | B50: Маковский Дмитрий / Makovskij Dmitrij / 1981 | C50: М | D50: 1121.67 | E50: 3
A51: 49 | B51: Суховей Михаил / Suhovej Mihail / 1991 | C51: М | D51: 1118.68 | E51: 2
A52: 50 | B52: Тихонов Василий / Tihonov Vasilij / 1993 | C52: М | D52: 1086.92 | E52: 2
A53: 51 | B53: Карпович Владимир / Karpovich Vladimir / 1983 | C53: М | D53: 1070.08 | E53: 5
A54: 52 | B54: Пивень Андрей / Piven Andrej / 1992 | C54: М | D54: 1066.77 | E54: 1
A55: 53 | B55: Жидович Вадим / Zhidovich Vadim / 1984 | C55: М | D55: 1063.58 | E55: 6
A56: 54 | B56: Шепетько Сергей / Shepetko Sergej / 1987 | C56: М | D56: 1048.72 | E56: 7
A57: 55 | B57: Мартынов Дмитрий / Martynov Dmitrij / 1984 | C57: М | D57: 1042.33 | E57: 3
A58: 56 | B58: Генсировский Павел / Gensirovskij Pavel / 1979 | C58: М | D58: 1041.15 | E58: 1
A59: 57 | B59: Рагойша Пётр / Ragojsha Pjotr / 1976 | C59: М | D59: 1041.07 | E59: 2
A60: 58 | B60: Печёнов Георгий / Pechjonov Georgij / 1975 | C60: М | D60: 1037.27 | E60: 4
A61: 59 | B61: Орловский Павел / Orlovskij Pavel / 1989 | C61: М | D61: 1034.49 | E61: 3
A62: 60 | B62: Совпель Максим / Sovpel Maksim / 1993 | C62: М | D62: 1031.08 | E62: 3
A63: 61 | B63: Жучин Алексей / Zhuchin Aleksej / 1983 | C63: М | D63: 1018.71 | E63: 3
A64: 62 | B64: Юкевич Александр / Yukevich Aleksandr / 1983 | C64: М | D64: 1013.17 | E64: 3
A65: 63 | B65: Палий Андрей / Palij Andrej / 1984 | C65: М | D65: 1003.79 | E65: 7
A66: 64 | B66: Сердитов Вадим / Serditov Vadim / 1993 | C66: М | D66: 996.06 | E66: 2
A67: 65 | B67: Остаповец Евгений / Ostapovets Evgenij / 1990 | C67: М | D67: 984.95 | E67: 3
A68: 66 | B68: Казарин Дмитрий / Kazarin Dmitrij / 1994 | C68: М | D68: 983.73 | E68: 7
A69: 67 | B69: Козич Андрей / Kozich Andrej / 1986 | C69: М | D69: 983.31 | E69: 1
A70: 68 | B70: Смолко Николай / Smolko Nikolaj / 1987 | C70: М | D70: 974.61 | E70: 2
A71: 69 | B71: Грек Илья / Grek Ilya / 1992 | C71: М | D71: 974.28 | E71: 3
A72: 70 | B72: Нечаев Владимир / Nechaev Vladimir / 1995 | C72: М | D72: 959.74 | E72: 3
A73: 71 | B73: Грабовец Павел / Grabovets Pavel / 1981 | C73: М | D73: 954.39 | E73: 1
A74: 72 | B74: Миканович Антон / Mikanovich Anton / 1990 | C74: М | D74: 938.98 | E74: 4
A75: 73 | B75: Бегун Егор / Begun Egor / 1988 | C75: М | D75: 935.4 | E75: 4
A76: 74 | B76: Сіпачоў Аляксей / Sіpachou Alyaksej / 1979 | C76: М | D76: 935.07 | E76: 3
A77: 75 | B77: Осадчий Константин / Osadchij Konstantin / 1985 | C77: М | D77: 921.29 | E77: 1
A78: 76 | B78: Дальниченко Юрий / Dalnichenko Yurij / 1985 | C78: М | D78: 914.25 | E78: 2
A79: 77 | B79: Лукьяненко Александр / Lukyanenko Aleksandr / 1984 | C79: М | D79: 914.2 | E79: 2
A80: 78 | B80: Сафроненко Андрей / Safronenko Andrej / 1984 | C80: М | D80: 888.03 | E80: 2
A81: 79 | B81: Зеленко Дмитрий / Zelenko Dmitrij / 1987 | C81: М | D81: 875.55 | E81: 3
A82: 80 | B82: Леденёв Андрей / Ledenjov Andrej / 1971 | C82: М | D82: 874.72 | E82: 2
A83: 81 | B83: Астапов Владимир / Astapov Vladimir / 1977 | C83: М | D83: 859.33 | E83: 2
A84: 82 | B84: Хамицевич Михаил / Hamitsevich Mihail / 1980 | C84: М | D84: 849.8 | E84: 4
A85: 83 | B85: Крус Виктор / Krus Viktor / 1980 | C85: М | D85: 849.72 | E85: 4
A86: 84 | B86: Ярмончик Игорь / Yarmonchik Igor / 1985 | C86: М | D86: 842.05 | E86: 3
A87: 85 | B87: Королёв Максим / Koroljov Maksim / 1989 | C87: М | D87: 839.98 | E87: 3
A88: 86 | B88: Шклярик Олег / Shklyarik Oleg / 1970 | C88: М | D88: 839.05 | E88: 3
A89: 87 | B89: Нестерович Сергей / Nesterovich Sergej / 1994 | C89: М | D89: 838.05 | E89: 2
A90: 88 | B90: Плодунов Захар / Plodunov Zahar / 1993 | C90: М | D90: 837.67 | E90: 2
A91: 89 | B91: Попов Александр / Popov Aleksandr / 1986 | C91: М | D91: 836.6 | E91: 2
A92: 90 | B92: Казак Дмитрий / Kazak Dmitrij / 1979 | C92: М | D92: 835.01 | E92: 2
A93: 91 | B93: Остапов Владимир / Ostapov Vladimir / 1977 | C93: М | D93: 817.92 | E93: 2
A94: 92 | B94: Ермохин Максим / Ermohin Maksim / 1975 | C94: М | D94: 817.91 | E94: 2
A95: 93 | B95: McTavish John / McTavish John / 1987 | C95: М | D95: 811.58 | E95: 2
A96: 94 | B96: Окромешко Антон / Okromeshko Anton / 1990 | C96: М | D96: 809.79 | E96: 1
A97: 95 | B97: Солодкин Сергей / Solodkin Sergej / 1984 | C97: М | D97: 798.46 | E97: 2
A98: 96 | B98: Кирcанов Алексей / Kircanov Aleksej / 1981 | C98: М | D98: 795.25 | E98: 2
A99: 97 | B99: Дашин Михаил / Dashin Mihail / 1986 | C99: М | D99: 785.64 | E99: 4
A100: 98 | B100: Волков Николай / Volkov Nikolaj / 1989 | C100: М | D100: 780.99 | E100: 2
A101: 99 | B101: Величко Павел / Velichko Pavel / 1982 | C101: М | D101: 779.55 | E101: 2
A102: 100 | B102: Слободько Дмитрий / Slobodko Dmitrij / 1984 | C102: М | D102: 779.28 | E102: 2
A103: 101 | B103: Зятиков Евгений / Zyatikov Evgenij / 1982 | C103: М | D103: 769.49 | E103: 5
A104: 102 | B104: Фенченко Алексей / Fenchenko Aleksej / 1989 | C104: М | D104: 768.07 | E104: 1
A105: 103 | B105: Тривашкевич Евгений / Trivashkevich Evgenij / 1996 | C105: М | D105: 767.11 | E105: 2
A106: 104 | B106: Лисовский Павел / Lisovskij Pavel / 1986 | C106: М | D106: 761.4 | E106: 2
A107: 105 | B107: Павленко Юрий / Pavlenko Yurij / 1983 | C107: М | D107: 748.27 | E107: 2
A108: 106 | B108: Симогостицкий Александр / Simogostitskij Aleksandr / 1987 | C108: М | D108: 735.38 | E108: 3
A109: 107 | B109: Якубовский Игорь / Yakubovskij Igor / 1984 | C109: М | D109: 734.49 | E109: 5
A110: 108 | B110: Титуленко Егор / Titulenko Egor / 1983 | C110: М | D110: 720.56 | E110: 2
A111: 109 | B111: Некрасов Василий / Nekrasov Vasilij / 1986 | C111: М | D111: 715.21 | E111: 1
A112: 110 | B112: Брагин Иван / Bragin Ivan / 1986 | C112: М | D112: 714.28 | E112: 1
A113: 111 | B113: Ключеня Виталий / Klyuchenya Vitalij / 1982 | C113: М | D113: 696.06 | E113: 3
A114: 112 | B114: Новікаў Анатоль / Novіkau Anatol / 1984 | C114: М | D114: 694.1 | E114: 1
A115: 113 | B115: Балашов Никита / Balashov Nikita / 1983 | C115: М | D115: 682.07 | E115: 2
A116: 114 | B116: Гидлевский Дмитрий / Gidlevskij Dmitrij / 1986 | C116: М | D116: 668.6 | E116: 2
A117: 115 | B117: Выборный Александр / Vybornyj Aleksandr / 1985 | C117: М | D117: 658.05 | E117: 2
A118: 116 | B118: Олин Денис / Olin Denis / 1976 | C118: М | D118: 657.88 | E118: 2
A119: 117 | B119: Лещевич Валерий / Leschevich Valerij / 1989 | C119: М | D119: 655.4 | E119: 2
A120: 118 | B120: Заяц Александр / Zayats Aleksandr / 1978 | C120: М | D120: 644.08 | E120: 2
A121: 119 | B121: Арзамасов Илья / Arzamasov Ilya / 1987 | C121: М | D121: 637.16 | E121: 1
A122: 120 | B122: Бабицкий Кирилл / Babitskij Kirill / 1998 | C122: М | D122: 628.52 | E122: 1
A123: 121 | B123: Шило Руслан / Shilo Ruslan / 1993 | C123: М | D123: 623.79 | E123: 2
A124: 122 | B124: Жучков Алексей / Zhuchkov Aleksej / 1985 | C124: М | D124: 621.9 | E124: 5
A125: 123 | B125: Барановский Алексей / Baranovskij Aleksej / 1981 | C125: М | D125: 619.65 | E125: 2
A126: 124 | B126: Кондяр Павел / Kondyar Pavel / 1993 | C126: М | D126: 616.63 | E126: 2
A127: 125 | B127: Цвирко Артур / Tsvirko Artur / 1991 | C127: М | D127: 615.19 | E127: 1
A128: 126 | B128: Явтушенко Вадим / Yavtushenko Vadim / 1981 | C128: М | D128: 615.03 | E128: 4
A129: 127 | B129: Пак Олег / Pak Oleg / 1977 | C129: М | D129: 610.73 | E129: 2
A130: 128 | B130: Юлов Герман / Yulov German / 1993 | C130: М | D130: 610.66 | E130: 2
A131: 129 | B131: Заречанский Юрий / Zarechanskij Yurij / 1980 | C131: М | D131: 609.41 | E131: 3
A132: 130 | B132: Паплёвка Иван / Papljovka Ivan / 1990 | C132: М | D132: 609.33 | E132: 2
A133: 131 | B133: Студенков Александр / Studenkov Aleksandr / 1984 | C133: М | D133: 604.08 | E133: 2
A134: 132 | B134: Медвецкий Денис / Medvetskij Denis / 1986 | C134: М | D134: 604.07 | E134: 4
A135: 133 | B135: Михно Борис / Mihno Boris / 1982 | C135: М | D135: 603.04 | E135: 4
A136: 134 | B136: Сорокин Денис / Sorokin Denis / 1998 | C136: М | D136: 597.39 | E136: 1
A137: 135 | B137: Прокопович Ростислав / Prokopovich Rostislav / 1982 | C137: М | D137: 596.84 | E137: 1
A138: 136 | B138: Кислицын Артем / Kislitsyn Artem / 1992 | C138: М | D138: 596.32 | E138: 1
A139: 137 | B139: Нагорнюк Михаил / Nagornyuk Mihail / 1984 | C139: М | D139: 593.22 | E139: 1
A140: 138 | B140: Герасимук Дмитрий / Gerasimuk Dmitrij / 1993 | C140: М | D140: 588.69 | E140: 2
A141: 139 | B141: Иванов Денис / Ivanov Denis / 1990 | C141: М | D141: 588.38 | E141: 3
A142: 140 | B142: Акулич Владимир / Akulich Vladimir / 1986 | C142: М | D142: 587.04 | E142: 2
A143: 141 | B143: Шванц Алексей / Shvants Aleksej / 1991 | C143: М | D143: 585.64 | E143: 1
A144: 142 | B144: Верещако Павел / Vereschako Pavel / 1988 | C144: М | D144: 583.38 | E144: 2
A145: 143 | B145: Лещинский Владимир / Leschinskij Vladimir / 1983 | C145: М | D145: 579.29 | E145: 1
A146: 144 | B146: Гусаревич Денис / Gusarevich Denis / 1983 | C146: М | D146: 578.42 | E146: 1
A147: 145 | B147: Костров Александр / Kostrov Aleksandr / 1982 | C147: М | D147: 572.32 | E147: 2
A148: 146 | B148: Никитюк Алексей / Nikityuk Aleksej / 1985 | C148: М | D148: 569.42 | E148: 2
A149: 147 | B149: Веремейчик Юрий / Veremejchik Yurij / 1979 | C149: М | D149: 567.81 | E149: 2
A150: 148 | B150: Никифоров Дмитрий / Nikiforov Dmitrij / 1989 | C150: М | D150: 565.02 | E150: 2
A151: 149 | B151: Жданович Максим / Zhdanovich Maksim / 1987 | C151: М | D151: 561.73 | E151: 1
A152: 150 | B152: Макарский Сергей / Makarskij Sergej / 1987 | C152: М | D152: 554.26 | E152: 2
A153: 151 | B153: Матвийчук Вадим / Matvijchuk Vadim / 1976 | C153: М | D153: 552.02 | E153: 2
A154: 152 | B154: Иванчик Константин / Ivanchik Konstantin / 1983 | C154: М | D154: 550.69 | E154: 2
A155: 153 | B155: Чудаков Владислав / Chudakov Vladislav / 1977 | C155: М | D155: 549.82 | E155: 3
A156: 154 | B156: Трасковский Дмитрий / Traskovskij Dmitrij / 1986 | C156: М | D156: 549.5 | E156: 1
A157: 155 | B157: Чеберяк Сергей / Cheberyak Sergej / 1987 | C157: М | D157: 547.66 | E157: 1
A158: 156 | B158: Драгун Борис / Dragun Boris / 1970 | C158: М | D158: 547 | E158: 2
A159: 157 | B159: Шапелевич Максим / Shapelevich Maksim / 1987 | C159: М | D159: 544.35 | E159: 3
A160: 158 | B160: Минько Алексей / Minko Aleksej / 1997 | C160: М | D160: 544.18 | E160: 1
A161: 159 | B161: Радиончик Александр / Radionchik Aleksandr / 1985 | C161: М | D161: 542.92 | E161: 3
A162: 160 | B162: Рачковский Сергей / Rachkovskij Sergej / 1988 | C162: М | D162: 541.83 | E162: 1
A163: 161 | B163: Кучук Андрей / Kuchuk Andrej / 1994 | C163: М | D163: 541.06 | E163: 1
A164: 162 | B164: Гребенчук Максим / Grebenchuk Maksim / 1989 | C164: М | D164: 540.81 | E164: 2
A165: 163 | B165: Тофоров Дмитрий / Toforov Dmitrij / 1991 | C165: М | D165: 536.69 | E165: 1
A166: 164 | B166: Подосетников Андрей / Podosetnikov Andrej / 1976 | C166: М | D166: 536.36 | E166: 2
A167: 165 | B167: Гайдуков Александр / Gajdukov Aleksandr / 1989 | C167: М | D167: 535.08 | E167: 2
A168: 166 | B168: Чернышев Дмитрий / Chernyshev Dmitrij / 1987 | C168: М | D168: 533.11 | E168: 2
A169: 167 | B169: Баронов Роман / Baronov Roman / 1993 | C169: М | D169: 530.39 | E169: 2
A170: 168 | B170: Яроцкий Евгений / Yarotskij Evgenij / 1987 | C170: М | D170: 529.4 | E170: 2
A171: 169 | B171: Горбач Максим / Gorbach Maksim / 1983 | C171: М | D171: 527.3 | E171: 1
A172: 170 | B172: Дундуков Андрей / Dundukov Andrej / 1985 | C172: М | D172: 515.9 | E172: 3
A173: 171 | B173: Домбровский Евгений / Dombrovskij Evgenij / 1987 | C173: М | D173: 515.58 | E173: 2
A174: 172 | B174: Заверач Денис / Zaverach Denis / 1985 | C174: М | D174: 514.67 | E174: 1
A175: 173 | B175: Чичин Юрий / Chichin Yurij / 1979 | C175: М | D175: 512.77 | E175: 3
A176: 174 | B176: Григорьев Никита / Grigorev Nikita / 1990 | C176: М | D176: 509.9 | E176: 1
A177: 175 | B177: Пучик Александр / Puchik Aleksandr / 1983 | C177: М | D177: 509.07 | E177: 1
A178: 176 | B178: Аржаников Евгений / Arzhanikov Evgenij / 1976 | C178: М | D178: 503.18 | E178: 3
A179: 177 | B179: Ланин Иван / Lanin Ivan / 1989 | C179: М | D179: 500.97 | E179: 2
A180: 178 | B180: Новиков Денис / Novikov Denis / 1989 | C180: М | D180: 500.64 | E180: 2
A181: 179 | B181: Толкачев Дмитрий / Tolkachev Dmitrij / 1971 | C181: М | D181: 500.3 | E181: 1
A182: 180 | B182: Злобин Денис / Zlobin Denis / 1982 | C182: М | D182: 497.76 | E182: 1
A183: 181 | B183: Кушель Максим / Kushel Maksim / 1998 | C183: М | D183: 494.87 | E183: 1
A184: 182 | B184: Шестаков Геннадий / Shestakov Gennadij / 1962 | C184: М | D184: 491.66 | E184: 1
A185: 183 | B185: Кожан Михаил / Kozhan Mihail / 1946 | C185: М | D185: 489.45 | E185: 2
A186: 184 | B186: Романцевич Илья / Romantsevich Ilya / 1990 | C186: М | D186: 488.27 | E186: 1
A187: 185 | B187: Середа Александр / Sereda Aleksandr / 1986 | C187: М | D187: 482.29 | E187: 1
A188: 186 | B188: Шалайко Дмитрий / Shalajko Dmitrij / 1993 | C188: М | D188: 481.68 | E188: 1
A189: 187 | B189: Мурашов Владимир / Murashov Vladimir / 1983 | C189: М | D189: 476.91 | E189: 2
A190: 188 | B190: Зарицкий Сергей / Zaritskij Sergej / 1975 | C190: М | D190: 475.08 | E190: 1
A191: 189 | B191: Мактавиш Джон / Maktavish Dzhon / 1987 | C191: М | D191: 474.57 | E191: 1
A192: 190 | B192: Николаевский Станислав / Nikolaevskij Stanislav / 1985 | C192: М | D192: 473.96 | E192: 1
A193: 191 | B193: Зданович Андрей / Zdanovich Andrej / 1973 | C193: М | D193: 471.53 | E193: 3
A194: 192 | B194: Жевняк Андрей / Zhevnyak Andrej / 1986 | C194: М | D194: 471.16 | E194: 2
A195: 193 | B195: Кохан Виталий / Kohan Vitalij / 1982 | C195: М | D195: 470.69 | E195: 2
A196: 194 | B196: Савич Евгений / Savich Evgenij / 1980 | C196: М | D196: 468.51 | E196: 2
A197: 195 | B197: Ладеев Дмитрий / Ladeev Dmitrij / 1981 | C197: М | D197: 468.31 | E197: 2
A198: 196 | B198: Ларионов Андрей / Larionov Andrej / 1981 | C198: М | D198: 464.84 | E198: 2
A199: 197 | B199: Щербо Виктор / Scherbo Viktor / 1961 | C199: М | D199: 464.78 | E199: 3
A200: 198 | B200: Хадорик Владимир / Hadorik Vladimir / 1986 | C200: М | D200: 463.85 | E200: 2
A201: 199 | B201: Крюков Дима / Kryukov Dima / 1988 | C201: М | D201: 461.34 | E201: 1
... 493 more rows

Sheet Рейтинг 2018_Ж
A2: № п/п | B2: Фамилия, Имя, Год рождения | C2: Пол | D2: Сумма баллов | E2: Кол-во гонок в 2018 году
A3: 1 | B3: Скирук Юлия / Skiruk Yuliya / 1988 | C3: Ж | D3: 2591.4 | E3: 6
A4: 2 | B4: Торубарова Татьяна / Torubarova Tatyana / 1983 | C4: Ж | D4: 2445 | E4: 4
A5: 3 | B5: Сулимчик Оксана / Sulimchik Oksana / 1986 | C5: Ж | D5: 2248.83 | E5: 3
A6: 4 | B6: Черкас Александра / Cherkas Aleksandra / 1992 | C6: Ж | D6: 2151.39 | E6: 7
A7: 5 | B7: Трубкина Анастасия / Trubkina Anastasiya / 1989 | C7: Ж | D7: 1833.27 | E7: 4
A8: 6 | B8: Белая Юлия / Belaya Yuliya / 1988 | C8: Ж | D8: 1450.57 | E8: 4
A9: 7 | B9: Суховерхая Татьяна / Suhoverhaya Tatyana / 1986 | C9: Ж | D9: 1356.5 | E9: 3
A10: 8 | B10: Цвирбут Юлия / Tsvirbut Yuliya / 1992 | C10: Ж | D10: 1352.71 | E10: 3
A11: 9 | B11: Едомская Вольга / Edomskaya Volga / 1987 | C11: Ж | D11: 1322.29 | E11: 6
A12: 10 | B12: Кликун Татьяна / Klikun Tatyana / 1989 | C12: Ж | D12: 1295.35 | E12: 5
A13: 11 | B13: Пехтерева Татьяна / Pehtereva Tatyana / 1987 | C13: Ж | D13: 1279.31 | E13: 4
A14: 12 | B14: Гилевич Кристина / Gilevich Kristina / 1994 | C14: Ж | D14: 1198.06 | E14: 3
A15: 13 | B15: Гилевич Диана / Gilevich Diana / 1993 | C15: Ж | D15: 1178.85 | E15: 3
A16: 14 | B16: Михно Алла / Mihno Alla / 1979 | C16: Ж | D16: 1143.49 | E16: 3
A17: 15 | B17: Невмержицкая Анна / Nevmerzhitskaya Anna / 1997 | C17: Ж | D17: 1139.3 | E17: 4
A18: 16 | B18: Новик Анастасия / Novik Anastasiya / 1985 | C18: Ж | D18: 1116.19 | E18: 3
A19: 17 | B19: Милинкевич Елена / Milinkevich Elena / 1977 | C19: Ж | D19: 1107.72 | E19: 3
A20: 18 | B20: Стойчикова Ксения / Stojchikova Kseniya / 1997 | C20: Ж | D20: 1086.31 | E20: 3
A21: 19 | B21: Гурская Татьяна / Gurskaya Tatyana / 1980 | C21: Ж | D21: 1041.15 | E21: 1
A22: 20 | B22: Суханова Надежда / Suhanova Nadezhda / 1994 | C22: Ж | D22: 1037.62 | E22: 2
A23: 21 | B23: Полякова Анна / Polyakova Anna / 1987 | C23: Ж | D23: 977.05 | E23: 5
A24: 22 | B24: Куцун Надежда / Kutsun Nadezhda / 1982 | C24: Ж | D24: 952.24 | E24: 2
A25: 23 | B25: Жданович Александра / Zhdanovich Aleksandra / 1985 | C25: Ж | D25: 951.89 | E25: 4
A26: 24 | B26: Пухаева Светлана / Puhaeva Svetlana / 1980 | C26: Ж | D26: 947.29 | E26: 3
A27: 25 | B27: Журавлёва Оксана / Zhuravljova Oksana / 1980 | C27: Ж | D27: 945.63 | E27: 3
A28: 26 | B28: Веремейчик Елена / Veremejchik Elena / 1986 | C28: Ж | D28: 917.61 | E28: 3
A29: 27 | B29: Борисевич Анастасия / Borisevich Anastasiya / 1985 | C29: Ж | D29: 915.02 | E29: 3
A30: 28 | B30: Казакевич Ирина / Kazakevich Irina / 1969 | C30: Ж | D30: 892.41 | E30: 2
A31: 29 | B31: Шахметова Наталья / Shahmetova Natalya / 1992 | C31: Ж | D31: 886.22 | E31: 3
A32: 30 | B32: Жила Анастасия / Zhila Anastasiya / 1994 | C32: Ж | D32: 813.31 | E32: 3
A33: 31 | B33: Фомина Ирина / Fomina Irina / 1986 | C33: Ж | D33: 806.83 | E33: 3
A34: 32 | B34: Делендик Надежда / Delendik Nadezhda / 1987 | C34: Ж | D34: 766.62 | E34: 2
A35: 33 | B35: Кордунская Екатерина / Kordunskaya Ekaterina / 1983 | C35: Ж | D35: 730.53 | E35: 2
A36: 34 | B36: Чернель Татьяна / Chernel Tatyana / 1982 | C36: Ж | D36: 710.82 | E36: 2
A37: 35 | B37: Адамович Ирина / Adamovich Irina / 1973 | C37: Ж | D37: 708.53 | E37: 2
A38: 36 | B38: Кшановская Ирина / Kshanovskaya Irina / 1977 | C38: Ж | D38: 698.53 | E38: 3
A39: 37 | B39: Полещук Татьяна / Poleschuk Tatyana / 1988 | C39: Ж | D39: 694.1 | E39: 1
A40: 38 | B40: Белинская Галина / Belinskaya Galina / 1980 | C40: Ж | D40: 684.25 | E40: 1
A41: 39 | B41: Тимошенко Алёна / Timoshenko Aljona / 1982 | C41: Ж | D41: 683.83 | E41: 2
A42: 40 | B42: Павловская Светлана / Pavlovskaya Svetlana / 1984 | C42: Ж | D42: 661.18 | E42: 3
A43: 41 | B43: Таранко Марта / Taranko Marta / 1990 | C43: Ж | D43: 652.62 | E43: 3
A44: 42 | B44: Обухова Екатерина / Obuhova Ekaterina / 1978 | C44: Ж | D44: 631.62 | E44: 1
A45: 43 | B45: Сикорская Настя / Sikorskaya Nastya / 1983 | C45: Ж | D45: 630.72 | E45: 2
A46: 44 | B46: Липницкая Виктория / Lipnitskaya Viktoriya / 1987 | C46: Ж | D46: 629.84 | E46: 3
A47: 45 | B47: Арабиенко Татьяна / Arabienko Tatyana / 1986 | C47: Ж | D47: 609 | E47: 1
A48: 46 | B48: Коротких Елена / Korotkih Elena / 1984 | C48: Ж | D48: 604.2 | E48: 2
A49: 47 | B49: Григорьева Светлана / Grigoreva Svetlana / 1984 | C49: Ж | D49: 591.19 | E49: 3
A50: 48 | B50: Третьяк Екатерина / Tretyak Ekaterina / 1985 | C50: Ж | D50: 587.7 | E50: 2
A51: 49 | B51: Кукобникова Вита / Kukobnikova Vita / 1993 | C51: Ж | D51: 579 | E51: 4
A52: 50 | B52: Хлопцева Инга / Hloptseva Inga / 1982 | C52: Ж | D52: 554.18 | E52: 2
A53: 51 | B53: Колташова Елена / Koltashova Elena / 1984 | C53: Ж | D53: 553.63 | E53: 1
A54: 52 | B54: Малькевич Елена / Malkevich Elena / 1984 | C54: Ж | D54: 545.6 | E54: 2
A55: 53 | B55: Туровец Ольга / Turovets Olga / 1979 | C55: Ж | D55: 531.29 | E55: 4
A56: 54 | B56: Струщенко Светлана / Struschenko Svetlana / 1986 | C56: Ж | D56: 529.1 | E56: 3
A57: 55 | B57: Гриб Екатерина / Grib Ekaterina / 1981 | C57: Ж | D57: 518.72 | E57: 3
A58: 56 | B58: Михалкин Сергей / Mihalkin Sergej / 1989 | C58: Ж | D58: 516.82 | E58: 1
A59: 57 | B59: Шкурко Людмила / Shkurko Lyudmila / 1988 | C59: Ж | D59: 505.26 | E59: 1
A60: 58 | B60: Арловская Кристина / Arlovskaya Kristina / 1989 | C60: Ж | D60: 493.59 | E60: 2
A61: 59 | B61: Голубева Елена / Golubeva Elena / 1987 | C61: Ж | D61: 493.31 | E61: 2
A62: 60 | B62: Зеленкевич Валентина / Zelenkevich Valentina / 1999 | C62: Ж | D62: 487.79 | E62: 1
A63: 61 | B63: Диксон Катерина / Dikson Katerina / 1993 | C63: Ж | D63: 486.5 | E63: 1
A64: 62 | B64: Шаповалова Ирина / Shapovalova Irina / 1993 | C64: Ж | D64: 481.75 | E64: 2
A65: 63 | B65: Радчук Алеся / Radchuk Alesya / 1996 | C65: Ж | D65: 473.71 | E65: 1
A66: 64 | B66: Широкова Анастасия / Shirokova Anastasiya / 1988 | C66: Ж | D66: 468.13 | E66: 2
A67: 65 | B67: Недведская Елена / Nedvedskaya Elena / 1986 | C67: Ж | D67: 468.02 | E67: 2
A68: 66 | B68: Конопацкая Юлия / Konopatskaya Yuliya / 1998 | C68: Ж | D68: 454.57 | E68: 2
A69: 67 | B69: Литвинская Людмила / Litvinskaya Lyudmila / 1977 | C69: Ж | D69: 452.26 | E69: 2
A70: 68 | B70: Калвинковская Ольга / Kalvinkovskaya Olga / 1994 | C70: Ж | D70: 450.27 | E70: 1
A71: 69 | B71: Зюзина Алёна / Zyuzina Aljona / 1978 | C71: Ж | D71: 443.41 | E71: 1
A72: 70 | B72: Трухтанова Елена / Truhtanova Elena / 1985 | C72: Ж | D72: 442.91 | E72: 1
A73: 71 | B73: Гринько Анастасия / Grinko Anastasiya / 1993 | C73: Ж | D73: 436.17 | E73: 2
A74: 72 | B74: Войтович Татьяна / Vojtovich Tatyana / 1986 | C74: Ж | D74: 432.72 | E74: 4
A75: 73 | B75: Мурашкина Галина / Murashkina Galina / 1988 | C75: Ж | D75: 429.81 | E75: 2
A76: 74 | B76: Янович Лена / Yanovich Lena / 1996 | C76: Ж | D76: 421.08 | E76: 1
A77: 75 | B77: Драгун Алина / Dragun Alina / 1993 | C77: Ж | D77: 412.75 | E77: 1
A78: 76 | B78: Сенникова Светлана / Sennikova Svetlana / 1980 | C78: Ж | D78: 412.09 | E78: 2
A79: 77 | B79: Сильванович Валерия / Silvanovich Valeriya / 1998 | C79: Ж | D79: 411.38 | E79: 2
A80: 78 | B80: Коледа Татьяна / Koleda Tatyana / 1990 | C80: Ж | D80: 400.24 | E80: 1
A81: 79 | B81: Танасейчук Анна / Tanasejchuk Anna / 1983 | C81: Ж | D81: 388.88 | E81: 1
A82: 80 | B82: Шибаева Светлана / Shibaeva Svetlana / 1995 | C82: Ж | D82: 387.98 | E82: 1
A83: 81 | B83: Медведева Ольга / Medvedeva Olga / 1991 | C83: Ж | D83: 387.73 | E83: 1
A84: 82 | B84: Ткачук Дарья / Tkachuk Darya / 1981 | C84: Ж | D84: 387.54 | E84: 1
A85: 83 | B85: Тиханович Елена / Tihanovich Elena / 1989 | C85: Ж | D85: 382.59 | E85: 1
A86: 84 | B86: Василевич Валентина / Vasilevich Valentina / 1998 | C86: Ж | D86: 381.61 | E86: 3
A87: 85 | B87: Необердина Мария / Neoberdina Mariya / 1987 | C87: Ж | D87: 379.23 | E87: 2
A88: 86 | B88: Крюкова Наталья / Kryukova Natalya / 1987 | C88: Ж | D88: 378.95 | E88: 1
A89: 87 | B89: Моисеева Вероника / Moiseeva Veronika / 1983 | C89: Ж | D89: 378.36 | E89: 3
A90: 88 | B90: Янченко Ксения / Yanchenko Kseniya / 1997 | C90: Ж | D90: 375.22 | E90: 1
A91: 89 | B91: Новикова Галина / Novikova Galina / 1975 | C91: Ж | D91: 374.79 | E91: 1
A92: 90 | B92: Федченко Ярослава / Fedchenko Yaroslava / 2002 | C92: Ж | D92: 370.4 | E92: 3
A93: 91 | B93: Моисеева Елена / Moiseeva Elena / 1990 | C93: Ж | D93: 363.92 | E93: 1
A94: 92 | B94: Грейд Юлия / Grejd Yuliya / 1986 | C94: Ж | D94: 359.03 | E94: 2
A95: 93 | B95: Куцакова Татьяна / Kutsakova Tatyana / 1987 | C95: Ж | D95: 358.23 | E95: 1
A96: 94 | B96: Зятикова Наталья / Zyatikova Natalya / 1983 | C96: Ж | D96: 356.69 | E96: 3
A97: 95 | B97: Ямбушева Катерина / Yambusheva Katerina / 1987 | C97: Ж | D97: 356.48 | E97: 1
A98: 96 | B98: Емельянова Анна / Emelyanova Anna / 1995 | C98: Ж | D98: 354.59 | E98: 1
A99: 97 | B99: Варданян Кристина / Vardanyan Kristina / 1981 | C99: Ж | D99: 350.21 | E99: 1
A100: 98 | B100: Замахаева Мария / Zamahaeva Mariya / 1985 | C100: Ж | D100: 346.2 | E100: 1
A101: 99 | B101: Левонюк Анна / Levonyuk Anna / 1986 | C101: Ж | D101: 345.26 | E101: 1
A102: 100 | B102: Позднева Мария / Pozdneva Mariya / 2001 | C102: Ж | D102: 343.56 | E102: 2
A103: 101 | B103: Сорокина Марина / Sorokina Marina / 1981 | C103: Ж | D103: 340.72 | E103: 1
A104: 102 | B104: Кальвинковская Екатерина / Kalvinkovskaya Ekaterina / 1993 | C104: Ж | D104: 337.7 | E104: 1
A105: 103 | B105: Завалова Анастасия / Zavalova Anastasiya / 1994 | C105: Ж | D105: 335.32 | E105: 2
A106: 104 | B106: Шнитко Светлана / Shnitko Svetlana / 1981 | C106: Ж | D106: 332.55 | E106: 1
A107: 105 | B107: Лавриченок Светлана / Lavrichenok Svetlana / 1971 | C107: Ж | D107: 332.18 | E107: 1
A108: 106 | B108: Кизик Валерия / Kizik Valeriya / 1990 | C108: Ж | D108: 326.6 | E108: 1
A109: 107 | B109: Стракович Екатерина / Strakovich Ekaterina / 1991 | C109: Ж | D109: 322.42 | E109: 3
A110: 108 | B110: Лаврецкая Елена / Lavretskaya Elena / 1986 | C110: Ж | D110: 317.27 | E110: 1
A111: 109 | B111: Русакова Татьяна / Rusakova Tatyana / 1979 | C111: Ж | D111: 316.81 | E111: 2
A112: 110 | B112: Яцкевич Ольга / Yatskevich Olga / 1988 | C112: Ж | D112: 315.79 | E112: 1
A113: 111 | B113: Марозик Юлия / Marozik Yuliya / 1993 | C113: Ж | D113: 313.53 | E113: 1
A114: 112 | B114: Шир Алисия / Shir Alisiya / 1982 | C114: Ж | D114: 306.63 | E114: 1
A115: 113 | B115: Никеенко Вита / Nikeenko Vita / 1984 | C115: Ж | D115: 304.84 | E115: 1
A116: 114 | B116: Денисик Светлана / Denisik Svetlana / 1998 | C116: Ж | D116: 298.6 | E116: 1
A117: 115 | B117: Александрова Дарья / Aleksandrova Darya / 1995 | C117: Ж | D117: 296.74 | E117: 1
A118: 116 | B118: Хмелевская Ольга / Hmelevskaya Olga / 1988 | C118: Ж | D118: 292.6 | E118: 2
A119: 117 | B119: Козич Галина / Kozich Galina / 1990 | C119: Ж | D119: 289.4 | E119: 1
A120: 118 | B120: Зарубина Наталья / Zarubina Natalya / 1989 | C120: Ж | D120: 286.85 | E120: 1
A121: 119 | B121: Телегина София / Telegina Sofiya / 1991 | C121: Ж | D121: 286.58 | E121: 1
A122: 120 | B122: Марченко Людмила / Marchenko Lyudmila / 1972 | C122: Ж | D122: 284.22 | E122: 2
A123: 121 | B123: Жучина Катерина / Zhuchina Katerina / 1986 | C123: Ж | D123: 283.64 | E123: 2
A124: 122 | B124: Титова Инна / Titova Inna / 1986 | C124: Ж | D124: 281.14 | E124: 1
A125: 123 | B125: Горевцова Евгения / Gorevtsova Evgeniya / 1989 | C125: Ж | D125: 280.4 | E125: 2
A126: 124 | B126: Михальчук Евгения / Mihalchuk Evgeniya / | C126: Ж | D126: 276.96 | E126: 1
A127: 125 | B127: Грицук Татьяна / Gritsuk Tatyana / 1973 | C127: Ж | D127: 276.82 | E127: 1
A128: 126 | B128: Кожемякина Анна / Kozhemyakina Anna / 1991 | C128: Ж | D128: 276.78 | E128: 2
A129: 127 | B129: Бондарь Юлия / Bondar Yuliya / 1993 | C129: Ж | D129: 275.16 | E129: 1
A130: 128 | B130: Морозик Юлия / Morozik Yuliya / 1993 | C130: Ж | D130: 273.68 | E130: 1
A131: 129 | B131: Бурак Анжелика / Burak Anzhelika / 1994 | C131: Ж | D131: 273.29 | E131: 2
A132: 130 | B132: Балицкая Ольга / Balitskaya Olga / 1981 | C132: Ж | D132: 272.49 | E132: 1
A133: 131 | B133: Чеснокова Надежда / Chesnokova Nadezhda / 1988 | C133: Ж | D133: 270.68 | E133: 1
A134: 132 | B134: Казимирская Надежда / Kazimirskaya Nadezhda / 1983 | C134: Ж | D134: 267.07 | E134: 1
A135: 133 | B135: Швайковская Ольга / Shvajkovskaya Olga / 1979 | C135: Ж | D135: 263.34 | E135: 1
A136: 134 | B136: Кузеева Марина / Kuzeeva Marina / 1986 | C136: Ж | D136: 262.66 | E136: 1
A137: 135 | B137: Питкевич Екатерина / Pitkevich Ekaterina / 1984 | C137: Ж | D137: 262.15 | E137: 1
A138: 136 | B138: Сковорода Инна / Skovoroda Inna / 1995 | C138: Ж | D138: 261.13 | E138: 1
A139: 137 | B139: Чеботаева Валерия / Chebotaeva Valeriya / 1993 | C139: Ж | D139: 259.26 | E139: 1
A140: 138 | B140: Силивонова Виктория / Silivonova Viktoriya / 1994 | C140: Ж | D140: 256.5 | E140: 2
A141: 139 | B141: Костеневич Ольга / Kostenevich Olga / 1990 | C141: Ж | D141: 255.25 | E141: 1
A142: 140 | B142: Дедкова Ирина / Dedkova Irina / 1981 | C142: Ж | D142: 251.95 | E142: 1
A143: 141 | B143: Пилипейко Дарья / Pilipejko Darya / 1999 | C143: Ж | D143: 249.78 | E143: 1
A144: 142 | B144: Жукова Елизавета / Zhukova Elizaveta / 1989 | C144: Ж | D144: 248.35 | E144: 1
A145: 143 | B145: Зарубина Ульяна / Zarubina Ulyana / | C145: Ж | D145: 247.28 | E145: 1
A146: 144 | B146: Тарасевич Алёна / Tarasevich Aljona / 1991 | C146: Ж | D146: 247.28 | E146: 1
A147: 145 | B147: Малаховская Татьяна / Malahovskaya Tatyana / 1989 | C147: Ж | D147: 243.05 | E147: 1
A148: 146 | B148: Алесиюк Татьяна / Alesiyuk Tatyana / 1987 | C148: Ж | D148: 242.62 | E148: 1
A149: 147 | B149: Косціна Вікторыя / Kostsіna Vіktoryya / 1992 | C149: Ж | D149: 242.19 | E149: 2
A150: 148 | B150: Гецман Мила / Getsman Mila / 1988 | C150: Ж | D150: 241.45 | E150: 1
A151: 149 | B151: Будрик Юлия / Budrik Yuliya / 1995 | C151: Ж | D151: 239.79 | E151: 1
A152: 150 | B152: Зарецкая Оксана / Zaretskaya Oksana / 1982 | C152: Ж | D152: 238.5 | E152: 1
A153: 151 | B153: Аленова Анастасия / Alenova Anastasiya / 1993 | C153: Ж | D153: 238.43 | E153: 1
A154: 152 | B154: Нефедова Оксана / Nefedova Oksana / 1979 | C154: Ж | D154: 237.64 | E154: 1
A155: 153 | B155: Королёва Виктория / Koroljova Viktoriya / 1977 | C155: Ж | D155: 235.15 | E155: 1
A156: 154 | B156: Купреева Татьяна / Kupreeva Tatyana / 1990 | C156: Ж | D156: 234.55 | E156: 1
A157: 155 | B157: Ладутько Наталья / Ladutko Natalya / 1974 | C157: Ж | D157: 233.59 | E157: 5
A158: 156 | B158: Зубкевич Анжелика / Zubkevich Anzhelika / 1992 | C158: Ж | D158: 232.75 | E158: 1
A159: 157 | B159: Егорова Дарина / Egorova Darina / 1994 | C159: Ж | D159: 231.58 | E159: 1
A160: 158 | B160: Лесникович Лиана / Lesnikovich Liana / 1988 | C160: Ж | D160: 231.52 | E160: 1
A161: 159 | B161: Пиньковская Ирина / Pinkovskaya Irina / 1986 | C161: Ж | D161: 229.82 | E161: 1
A162: 160 | B162: Новикова Анастасия / Novikova Anastasiya / 1992 | C162: Ж | D162: 227.65 | E162: 1
A163: 161 | B163: Булеева Наталья / Buleeva Natalya / 1969 | C163: Ж | D163: 226.85 | E163: 1
A164: 162 | B164: Харик Анна / Harik Anna / 1986 | C164: Ж | D164: 225.13 | E164: 1
A165: 163 | B165: Пальвинская Валерия / Palvinskaya Valeriya / 1996 | C165: Ж | D165: 221.45 | E165: 1
A166: 164 | B166: Сушко Александра / Sushko Aleksandra / 1995 | C166: Ж | D166: 221.4 | E166: 1
A167: 165 | B167: Зеленцова Галина / Zelentsova Galina / 1988 | C167: Ж | D167: 221.3 | E167: 1
A168: 166 | B168: Лисовская Наталья / Lisovskaya Natalya / 1998 | C168: Ж | D168: 219.24 | E168: 1
A169: 167 | B169: Попадюк Виктория / Popadyuk Viktoriya / 1985 | C169: Ж | D169: 217.61 | E169: 1
A170: 168 | B170: Сыченко Евгения / Sychenko Evgeniya / 1992 | C170: Ж | D170: 215.72 | E170: 1
A171: 169 | B171: Пархимович Ирина / Parhimovich Irina / 1988 | C171: Ж | D171: 214.99 | E171: 1
A172: 170 | B172: Жукова Марина / Zhukova Marina / 1985 | C172: Ж | D172: 214.62 | E172: 1
A173: 171 | B173: Корожан Наталья / Korozhan Natalya / 1974 | C173: Ж | D173: 212.63 | E173: 1
A174: 172 | B174: Кравченко Марина / Kravchenko Marina / 1990 | C174: Ж | D174: 211.72 | E174: 3
A175: 173 | B175: Литвинка Нина / Litvinka Nina / 1991 | C175: Ж | D175: 210.54 | E175: 1
A176: 174 | B176: Тишковец Анастасия / Tishkovets Anastasiya / 1988 | C176: Ж | D176: 210.04 | E176: 1
A177: 175 | B177: Малышко Татьяна / Malyshko Tatyana / 1983 | C177: Ж | D177: 206.24 | E177: 1
A178: 176 | B178: Чигорская Татьяна / Chigorskaya Tatyana / 1977 | C178: Ж | D178: 205.29 | E178: 1
A179: 177 | B179: Молочко Анна / Molochko Anna / 2006 | C179: Ж | D179: 204.28 | E179: 1
A180: 178 | B180: Тумашик Екатерина / Tumashik Ekaterina / 1984 | C180: Ж | D180: 200.61 | E180: 1
A181: 179 | B181: Красовская Инна / Krasovskaya Inna / 1975 | C181: Ж | D181: 200.12 | E181: 1
A182: 180 | B182: Павлова Анна / Pavlova Anna / 1992 | C182: Ж | D182: 198.45 | E182: 1
A183: 181 | B183: Вдовиченко Ирина / Vdovichenko Irina / 1989 | C183: Ж | D183: 195.97 | E183: 2
A184: 182 | B184: Жегуло Ольга / Zhegulo Olga / 1983 | C184: Ж | D184: 195.96 | E184: 1
A185: 183 | B185: Воротникова Татьяна / Vorotnikova Tatyana / 1989 | C185: Ж | D185: 193.99 | E185: 1
A186: 184 | B186: Коновалова Елена / Konovalova Elena / 1975 | C186: Ж | D186: 193.35 | E186: 1
A187: 185 | B187: Фадеева Светлана / Fadeeva Svetlana / 1980 | C187: Ж | D187: 193.16 | E187: 1
A188: 186 | B188: Сенько Вероника / Senko Veronika / 1990 | C188: Ж | D188: 193.01 | E188: 1
A189: 187 | B189: Старовойтова Евгения / Starovojtova Evgeniya / 1996 | C189: Ж | D189: 191.83 | E189: 1
A190: 188 | B190: Цветкова Мария / Tsvetkova Mariya / 1994 | C190: Ж | D190: 189.47 | E190: 1
A191: 189 | B191: Чигорская Татьяна / Chigorskaya Tatyana / 1977 | C191: Ж | D191: 187.94 | E191: 1
A192: 190 | B192: Островцова Марина / Ostrovtsova Marina / 1987 | C192: Ж | D192: 187.61 | E192: 1
A193: 191 | B193: Торопова Мария / Toropova Mariya / 1989 | C193: Ж | D193: 186.28 | E193: 1
A194: 192 | B194: Тмофеева Александр / Tmofeeva Aleksandr / 1990 | C194: Ж | D194: 186.26 | E194: 1
A195: 193 | B195: Рудковская Татьяна / Rudkovskaya Tatyana / 1997 | C195: Ж | D195: 181.91 | E195: 1
A196: 194 | B196: Остапюк Анна / Ostapyuk Anna / 2000 | C196: Ж | D196: 181.66 | E196: 1
A197: 195 | B197: Хурс Елена / Hurs Elena / 1989 | C197: Ж | D197: 179.36 | E197: 1
A198: 196 | B198: Скабицкая Анна / Skabitskaya Anna / 1987 | C198: Ж | D198: 178.75 | E198: 1
A199: 197 | B199: Казак Наталья / Kazak Natalya / 1979 | C199: Ж | D199: 176.93 | E199: 3
A200: 198 | B200: Климова Вера / Klimova Vera / 1992 | C200: Ж | D200: 175.98 | E200: 1
A201: 199 | B201: Куликовских Иванна / Kulikovskih Ivanna / 1974 | C201: Ж | D201: 175.1 | E201: 1
... 120 more rows
